Body_Code,Body_Name,Service,GL Code,GL Code Desc,Posting Date,Doc Number,Doc Net Amount,Supplier Name
http://statistics.data.gov.uk/id/local-authority/38,Oxfordshire County Council,,1162,VAT - Input Adjustment,29/09/2015,3110016854,957.54,Arval UK Ltd
http://statistics.data.gov.uk/id/local-authority/38,Oxfordshire County Council,,1162,VAT - Input Adjustment,02/09/2015,3110011578,"3,424.00",BERRYMANS LACE MAWER SOLICITORS
http://statistics.data.gov.uk/id/local-authority/38,Oxfordshire County Council,,1162,VAT - Input Adjustment,21/09/2015,3110015132,"1,082.80",MORGAN COLE LLP
http://statistics.data.gov.uk/id/local-authority/38,Oxfordshire County Council,,1162,VAT - Input Adjustment,15/09/2015,3110013594,630.46,Ross & Roberts Ltd
http://statistics.data.gov.uk/id/local-authority/38,Oxfordshire County Council,,1165,VAT Errors and Adjustments,29/09/2015,3110016855,640.2,Browne Jacobson LLP
http://statistics.data.gov.uk/id/local-authority/38,Oxfordshire County Council,,1165,VAT Errors and Adjustments,23/09/2015,3110015912,"1,051.16",Dolce Ltd
http://statistics.data.gov.uk/id/local-authority/38,Oxfordshire County Council,,1165,VAT Errors and Adjustments,23/09/2015,3110015911,"1,886.71",Dolce Ltd
http://statistics.data.gov.uk/id/local-authority/38,Oxfordshire County Council,,1263,Employees Contribution - NHS,01/09/2015,3110010870,"3,191.43",NHS PENSION SCHEME ACCOUNT
http://statistics.data.gov.uk/id/local-authority/38,Oxfordshire County Council,,1263,Employees Contribution - NHS,01/09/2015,3110010867,"4,822.81",NHS PENSION SCHEME ACCOUNT
http://statistics.data.gov.uk/id/local-authority/38,Oxfordshire County Council,,1264,Employers Contribution - NHS,01/09/2015,3110010871,"3,282.98",NHS PENSION SCHEME ACCOUNT
http://statistics.data.gov.uk/id/local-authority/38,Oxfordshire County Council,,1264,Employers Contribution - NHS,01/09/2015,3110010868,"5,312.86",NHS PENSION SCHEME ACCOUNT
http://statistics.data.gov.uk/id/local-authority/38,Oxfordshire County Council,,1265,Added Years - NHS,01/09/2015,3110010869,"1,560.19",NHS PENSION SCHEME ACCOUNT
http://statistics.data.gov.uk/id/local-authority/38,Oxfordshire County Council,,1286,Pension Fund normal deductions - ees,14/09/2015,3110013334,"759,962.88",Oxfordshire CC Pension Fund
http://statistics.data.gov.uk/id/local-authority/38,Oxfordshire County Council,,1287,Pension Fund normal contributions - ers,14/09/2015,3110013335,"2,327,265.97",Oxfordshire CC Pension Fund
http://statistics.data.gov.uk/id/local-authority/38,Oxfordshire County Council,,1288,Contributions re added years - other,14/09/2015,3110013336,"11,275.54",Oxfordshire CC Pension Fund
http://statistics.data.gov.uk/id/local-authority/38,Oxfordshire County Council,,1307,Teacher - Superannuation Employees,01/09/2015,3110010866,"4,902.19",TEACHERS PENSION AGENCY
http://statistics.data.gov.uk/id/local-authority/38,Oxfordshire County Council,,1307,Teacher - Superannuation Employees,01/09/2015,3110010864,"649,737.83",TEACHERS PENSION AGENCY
http://statistics.data.gov.uk/id/local-authority/38,Oxfordshire County Council,,1308,Teacher - Superannuation Employers,01/09/2015,3110010865,"1,010,470.27",TEACHERS PENSION AGENCY
http://statistics.data.gov.uk/id/local-authority/38,Oxfordshire County Council,,1320,Childcare Vouchers A/C,23/09/2015,3110015916,"81,018.23",KiddiVouchers
http://statistics.data.gov.uk/id/local-authority/38,Oxfordshire County Council,,1325,Attachment of Earnings,07/09/2015,3110011885,717.63,HMCTS
http://statistics.data.gov.uk/id/local-authority/38,Oxfordshire County Council,,1325,Attachment of Earnings,07/09/2015,3110011891,"1,552.47",Oxford City Council
http://statistics.data.gov.uk/id/local-authority/38,Oxfordshire County Council,,1325,Attachment of Earnings,07/09/2015,3110011881,"1,416.28",SECRETARY OF STATE FOR SOCIAL
http://statistics.data.gov.uk/id/local-authority/38,Oxfordshire County Council,,1325,Attachment of Earnings,07/09/2015,3110011894,523.25,Vale of White Horse District Counci
http://statistics.data.gov.uk/id/local-authority/38,Oxfordshire County Council,,1360,Sundry Creditors,02/09/2015,3110011586,616.93,CHARTIS INSURANCE UK LTD
http://statistics.data.gov.uk/id/local-authority/38,Oxfordshire County Council,RESIDENTIAL TREATMEN,1362,Creditors GR/IR -,02/09/2015,2200020396,"2,382.86",BROADREACH HOUSE
http://statistics.data.gov.uk/id/local-authority/38,Oxfordshire County Council,Mainstream Res,1362,Creditors GR/IR -,01/09/2015,2200020173,"12,400.00",Cambian Childcare Ltd
http://statistics.data.gov.uk/id/local-authority/38,Oxfordshire County Council,Mainstream Res,1362,Creditors GR/IR -,01/09/2015,2200020171,"16,285.80",Cambian Childcare Ltd
http://statistics.data.gov.uk/id/local-authority/38,Oxfordshire County Council,INDIVI PLACEMENT OAT,1362,Creditors GR/IR -,11/09/2015,2200029085,"10,453.50",Cambian Learning Disabilities
http://statistics.data.gov.uk/id/local-authority/38,Oxfordshire County Council,Independent Foster,1362,Creditors GR/IR -,28/09/2015,2200035593,"1,437.42",FAMILY PLACEMENT.COM
http://statistics.data.gov.uk/id/local-authority/38,Oxfordshire County Council,Independent Foster,1362,Creditors GR/IR -,07/09/2015,2200022147,-849.53,Fostering Solutions Limited
http://statistics.data.gov.uk/id/local-authority/38,Oxfordshire County Council,Independent Foster,1362,Creditors GR/IR -,01/09/2015,2200021811,"1,604.66",Fostering Solutions Limited
http://statistics.data.gov.uk/id/local-authority/38,Oxfordshire County Council,Independent Foster,1362,Creditors GR/IR -,18/09/2015,2200028860,"-2,576.50",FOSTERPLUS LTD
http://statistics.data.gov.uk/id/local-authority/38,Oxfordshire County Council,Independent Foster,1362,Creditors GR/IR -,15/09/2015,2200028522,"-1,358.28",FOSTERPLUS LTD
http://statistics.data.gov.uk/id/local-authority/38,Oxfordshire County Council,Independent Foster,1362,Creditors GR/IR -,18/09/2015,2200028862,"2,576.50",FOSTERPLUS LTD
http://statistics.data.gov.uk/id/local-authority/38,Oxfordshire County Council,Independent Foster,1362,Creditors GR/IR -,15/09/2015,2200028855,"3,780.00",FOSTERPLUS LTD
http://statistics.data.gov.uk/id/local-authority/38,Oxfordshire County Council,Independent Foster,1362,Creditors GR/IR -,01/09/2015,2200020793,"5,017.35",Future Fostering
http://statistics.data.gov.uk/id/local-authority/38,Oxfordshire County Council,DTOC Funding,1362,Creditors GR/IR -,01/09/2015,2200030773,"-15,000.00",Oxford Health NHS
http://statistics.data.gov.uk/id/local-authority/38,Oxfordshire County Council,DTOC Funding,1362,Creditors GR/IR -,22/09/2015,2200030765,"16,000.00",Oxford Health NHS
http://statistics.data.gov.uk/id/local-authority/38,Oxfordshire County Council,WYCHWOOD PROJECT,1362,Creditors GR/IR -,01/09/2015,2200025690,500,Stafford & Stafford
http://statistics.data.gov.uk/id/local-authority/38,Oxfordshire County Council,CONTRACEPTION,1362,Creditors GR/IR -,09/09/2015,2200024211,"1,880.89",The Leys Health Centre
http://statistics.data.gov.uk/id/local-authority/38,Oxfordshire County Council,PENSION ADMIN,1362,Creditors GR/IR -,17/09/2015,2200030336,883.04,XMA Limited - Toner Orders Only
http://statistics.data.gov.uk/id/local-authority/38,Oxfordshire County Council,,1422,GMBATU Union,02/09/2015,3110011582,876.94,GENERAL MUNICIPAL BOILERMAKERS
http://statistics.data.gov.uk/id/local-authority/38,Oxfordshire County Council,,1425,Unison Union deductions,02/09/2015,3110011585,"15,337.95",Hants Unison
http://statistics.data.gov.uk/id/local-authority/38,Oxfordshire County Council,,1426,FBU Union,02/09/2015,3110011579,"6,299.90",FIRE BRIGADE UNION
http://statistics.data.gov.uk/id/local-authority/38,Oxfordshire County Council,,1429,Charitable Donations,02/09/2015,3110011580,695.38,GIVE AS YOU EARN
http://statistics.data.gov.uk/id/local-authority/38,Oxfordshire County Council,,1441,Uncleared Misc Income Receipts,10/09/2015,3110012861,"-1,040.72",OCC One Time Vendor
http://statistics.data.gov.uk/id/local-authority/38,Oxfordshire County Council,,1441,Uncleared Misc Income Receipts,22/09/2015,3110015186,524.7,OCC One Time Vendor
http://statistics.data.gov.uk/id/local-authority/38,Oxfordshire County Council,,1441,Uncleared Misc Income Receipts,09/09/2015,3110012597,541.29,OCC One Time Vendor
http://statistics.data.gov.uk/id/local-authority/38,Oxfordshire County Council,,1441,Uncleared Misc Income Receipts,04/09/2015,3110011775,627.81,OCC One Time Vendor
http://statistics.data.gov.uk/id/local-authority/38,Oxfordshire County Council,,1441,Uncleared Misc Income Receipts,24/09/2015,3110015966,727.88,OCC One Time Vendor
http://statistics.data.gov.uk/id/local-authority/38,Oxfordshire County Council,,1441,Uncleared Misc Income Receipts,30/09/2015,3110017342,803.62,OCC One Time Vendor
http://statistics.data.gov.uk/id/local-authority/38,Oxfordshire County Council,,1441,Uncleared Misc Income Receipts,22/09/2015,3110015179,919.1,OCC One Time Vendor
http://statistics.data.gov.uk/id/local-authority/38,Oxfordshire County Council,,1441,Uncleared Misc Income Receipts,28/09/2015,3110016523,"1,039.98",OCC One Time Vendor
http://statistics.data.gov.uk/id/local-authority/38,Oxfordshire County Council,,1441,Uncleared Misc Income Receipts,10/09/2015,3110012844,"1,040.72",OCC One Time Vendor
http://statistics.data.gov.uk/id/local-authority/38,Oxfordshire County Council,,1441,Uncleared Misc Income Receipts,09/09/2015,3110012598,"1,120.03",OCC One Time Vendor
http://statistics.data.gov.uk/id/local-authority/38,Oxfordshire County Council,,1441,Uncleared Misc Income Receipts,22/09/2015,3110015182,"2,856.43",OCC One Time Vendor
http://statistics.data.gov.uk/id/local-authority/38,Oxfordshire County Council,,1441,Uncleared Misc Income Receipts,22/09/2015,3110015185,"3,907.33",OCC One Time Vendor
http://statistics.data.gov.uk/id/local-authority/38,Oxfordshire County Council,,1441,Uncleared Misc Income Receipts,22/09/2015,3110015181,"4,033.33",OCC One Time Vendor
http://statistics.data.gov.uk/id/local-authority/38,Oxfordshire County Council,,1441,Uncleared Misc Income Receipts,15/09/2015,3110013543,"5,245.12",OCC One Time Vendor
http://statistics.data.gov.uk/id/local-authority/38,Oxfordshire County Council,,1441,Uncleared Misc Income Receipts,04/09/2015,3110011771,"10,532.29",OCC One Time Vendor
http://statistics.data.gov.uk/id/local-authority/38,Oxfordshire County Council,,1441,Uncleared Misc Income Receipts,04/09/2015,3110011776,"17,666.68",OCC One Time Vendor
http://statistics.data.gov.uk/id/local-authority/38,Oxfordshire County Council,,1441,Uncleared Misc Income Receipts,09/09/2015,3110012596,"25,016.31",OCC One Time Vendor
http://statistics.data.gov.uk/id/local-authority/38,Oxfordshire County Council,,1902,TF rev � Payments,11/09/2015,3110013342,"2,132.69",Rathbone Investment Management Ltd
http://statistics.data.gov.uk/id/local-authority/38,Oxfordshire County Council,NCS,2040,Agency Staff,16/09/2015,2200028050,"1,200.00",Alexander Stewart
http://statistics.data.gov.uk/id/local-authority/38,Oxfordshire County Council,COMMENTS&INFORMATION,2040,Agency Staff,01/09/2015,2200020106,572,Anne James
http://statistics.data.gov.uk/id/local-authority/38,Oxfordshire County Council,COMMENTS&INFORMATION,2040,Agency Staff,01/09/2015,2200020127,"2,350.00",Anne James
http://statistics.data.gov.uk/id/local-authority/38,Oxfordshire County Council,DIDCOT HUB,2040,Agency Staff,25/09/2015,2200034977,827.33,3D Recruit Ltd
http://statistics.data.gov.uk/id/local-authority/38,Oxfordshire County Council,LOCALITY TM CHERWELL,2040,Agency Staff,18/09/2015,2200029998,852.25,3D Recruit Ltd
http://statistics.data.gov.uk/id/local-authority/38,Oxfordshire County Council,LOCALITY TM CHERWELL,2040,Agency Staff,09/09/2015,2200023607,"1,059.85",3D Recruit Ltd
http://statistics.data.gov.uk/id/local-authority/38,Oxfordshire County Council,DIDCOT HUB,2040,Agency Staff,18/09/2015,2200030028,"1,074.34",3D Recruit Ltd
http://statistics.data.gov.uk/id/local-authority/38,Oxfordshire County Council,LOCALITY TM CHERWELL,2040,Agency Staff,09/09/2015,2200023603,"1,258.00",3D Recruit Ltd
http://statistics.data.gov.uk/id/local-authority/38,Oxfordshire County Council,LOCALITY TM CHERWELL,2040,Agency Staff,18/09/2015,2200030000,"1,274.20",3D Recruit Ltd
http://statistics.data.gov.uk/id/local-authority/38,Oxfordshire County Council,LOCALITY TM CHERWELL,2040,Agency Staff,04/09/2015,2200027483,"1,295.80",3D Recruit Ltd
http://statistics.data.gov.uk/id/local-authority/38,Oxfordshire County Council,DIDCOT HUB,2040,Agency Staff,01/09/2015,2200019813,"1,347.41",3D Recruit Ltd
http://statistics.data.gov.uk/id/local-authority/38,Oxfordshire County Council,DIDCOT HUB,2040,Agency Staff,25/09/2015,2200035056,"1,347.41",3D Recruit Ltd
http://statistics.data.gov.uk/id/local-authority/38,Oxfordshire County Council,DIDCOT HUB,2040,Agency Staff,04/09/2015,2200023089,"1,350.11",3D Recruit Ltd
http://statistics.data.gov.uk/id/local-authority/38,Oxfordshire County Council,BLUE BADGE,2040,Agency Staff,17/09/2015,2200028538,"-1,120.00",Access Independent Limited
http://statistics.data.gov.uk/id/local-authority/38,Oxfordshire County Council,BLUE BADGE,2040,Agency Staff,17/09/2015,2200028822,700,Access Independent Limited
http://statistics.data.gov.uk/id/local-authority/38,Oxfordshire County Council,BLUE BADGE,2040,Agency Staff,01/09/2015,2200021862,"1,120.00",Access Independent Limited
http://statistics.data.gov.uk/id/local-authority/38,Oxfordshire County Council,LOCALITY TEAM -SOUTH,2040,Agency Staff,21/09/2015,2200034979,"1,346.70",Ajana Ltd
http://statistics.data.gov.uk/id/local-authority/38,Oxfordshire County Council,LOCALITY TEAM -SOUTH,2040,Agency Staff,15/09/2015,2200028808,"2,047.45",Ajana Ltd
http://statistics.data.gov.uk/id/local-authority/38,Oxfordshire County Council,NCS,2040,Agency Staff,09/09/2015,2200027590,-720,Aspire Oxfordshire
http://statistics.data.gov.uk/id/local-authority/38,Oxfordshire County Council,NCS,2040,Agency Staff,09/09/2015,2200026398,720,Aspire Oxfordshire
http://statistics.data.gov.uk/id/local-authority/38,Oxfordshire County Council,LOCALITY TEAM - VALE,2040,Agency Staff,15/09/2015,2200029440,988.25,Aurora Resourcing
http://statistics.data.gov.uk/id/local-authority/38,Oxfordshire County Council,COMMUNICATIONS,2040,Agency Staff,30/09/2015,2200036764,730.8,Blue Skies Services Ltd
http://statistics.data.gov.uk/id/local-authority/38,Oxfordshire County Council,COMMUNICATIONS,2040,Agency Staff,04/09/2015,2200027734,858.4,Blue Skies Services Ltd
http://statistics.data.gov.uk/id/local-authority/38,Oxfordshire County Council,COMMUNICATIONS,2040,Agency Staff,24/09/2015,2200034073,858.4,Blue Skies Services Ltd
http://statistics.data.gov.uk/id/local-authority/38,Oxfordshire County Council,THRIVING FAMILY CITY,2040,Agency Staff,11/09/2015,2200024826,"-1,347.00",Caritas Recruitment Ltd
http://statistics.data.gov.uk/id/local-authority/38,Oxfordshire County Council,FAM SUPP NORTH,2040,Agency Staff,11/09/2015,2200024955,"-1,346.80",Caritas Recruitment Ltd
http://statistics.data.gov.uk/id/local-authority/38,Oxfordshire County Council,THRIVING FAMILY CITY,2040,Agency Staff,28/09/2015,2200034724,"-1,332.00",Caritas Recruitment Ltd
http://statistics.data.gov.uk/id/local-authority/38,Oxfordshire County Council,FAM SUPP NORTH,2040,Agency Staff,01/09/2015,2200019994,"-1,217.30",Caritas Recruitment Ltd
http://statistics.data.gov.uk/id/local-authority/38,Oxfordshire County Council,LITTLEMORE HUB,2040,Agency Staff,09/09/2015,2200024908,540,Caritas Recruitment Ltd
http://statistics.data.gov.uk/id/local-authority/38,Oxfordshire County Council,THRIVING FAMILY NRTH,2040,Agency Staff,29/09/2015,2200036190,547,Caritas Recruitment Ltd
http://statistics.data.gov.uk/id/local-authority/38,Oxfordshire County Council,ABINGDON HUB,2040,Agency Staff,16/09/2015,2200031724,740.25,Caritas Recruitment Ltd
http://statistics.data.gov.uk/id/local-authority/38,Oxfordshire County Council,LOCALITY TEAM - CITY,2040,Agency Staff,17/09/2015,2200028917,768.9,Caritas Recruitment Ltd
http://statistics.data.gov.uk/id/local-authority/38,Oxfordshire County Council,THRIVING FAMILY CITY,2040,Agency Staff,16/09/2015,2200031820,787.5,Caritas Recruitment Ltd
http://statistics.data.gov.uk/id/local-authority/38,Oxfordshire County Council,THRIVING FAMILY CITY,2040,Agency Staff,24/09/2015,2200032528,824.4,Caritas Recruitment Ltd
http://statistics.data.gov.uk/id/local-authority/38,Oxfordshire County Council,THRIVING FAMILY NRTH,2040,Agency Staff,29/09/2015,2200036200,832.5,Caritas Recruitment Ltd
http://statistics.data.gov.uk/id/local-authority/38,Oxfordshire County Council,THRIVING FAMILY CITY,2040,Agency Staff,16/09/2015,2200034959,875,Caritas Recruitment Ltd
http://statistics.data.gov.uk/id/local-authority/38,Oxfordshire County Council,FAM SUPP NORTH,2040,Agency Staff,16/09/2015,2200031733,967.25,Caritas Recruitment Ltd
http://statistics.data.gov.uk/id/local-authority/38,Oxfordshire County Council,FAM SUPP CITY 1,2040,Agency Staff,09/09/2015,2200023825,987.3,Caritas Recruitment Ltd
http://statistics.data.gov.uk/id/local-authority/38,Oxfordshire County Council,LOCALITY TEAM - CITY,2040,Agency Staff,29/09/2015,2200035054,"1,019.90",Caritas Recruitment Ltd
http://statistics.data.gov.uk/id/local-authority/38,Oxfordshire County Council,THRIVING FAMILY CITY,2040,Agency Staff,16/09/2015,2200031826,"1,050.00",Caritas Recruitment Ltd
http://statistics.data.gov.uk/id/local-authority/38,Oxfordshire County Council,THRIVING FAMILY CITY,2040,Agency Staff,16/09/2015,2200034944,"1,050.00",Caritas Recruitment Ltd
http://statistics.data.gov.uk/id/local-authority/38,Oxfordshire County Council,LITTLEMORE HUB,2040,Agency Staff,18/09/2015,2200030432,"1,080.00",Caritas Recruitment Ltd
http://statistics.data.gov.uk/id/local-authority/38,Oxfordshire County Council,LOCALITY TEAM - CITY,2040,Agency Staff,02/09/2015,2200020634,"1,085.70",Caritas Recruitment Ltd
http://statistics.data.gov.uk/id/local-authority/38,Oxfordshire County Council,LOCALITY TEAM - CITY,2040,Agency Staff,01/09/2015,2200019930,"1,089.30",Caritas Recruitment Ltd
http://statistics.data.gov.uk/id/local-authority/38,Oxfordshire County Council,THRIVING FAMILY NRTH,2040,Agency Staff,29/09/2015,2200036206,"1,091.50",Caritas Recruitment Ltd
http://statistics.data.gov.uk/id/local-authority/38,Oxfordshire County Council,FAM SUPP NORTH,2040,Agency Staff,28/09/2015,2200034595,"1,092.00",Caritas Recruitment Ltd
http://statistics.data.gov.uk/id/local-authority/38,Oxfordshire County Council,FAM SUPP NORTH,2040,Agency Staff,16/09/2015,2200031734,"1,095.00",Caritas Recruitment Ltd
http://statistics.data.gov.uk/id/local-authority/38,Oxfordshire County Council,FAM SUPP NORTH,2040,Agency Staff,16/09/2015,2200031735,"1,095.00",Caritas Recruitment Ltd
http://statistics.data.gov.uk/id/local-authority/38,Oxfordshire County Council,FAM SUPP NORTH,2040,Agency Staff,16/09/2015,2200031740,"1,095.00",Caritas Recruitment Ltd
http://statistics.data.gov.uk/id/local-authority/38,Oxfordshire County Council,LOCALITY TEAM - CITY,2040,Agency Staff,04/09/2015,2200022081,"1,123.10",Caritas Recruitment Ltd
http://statistics.data.gov.uk/id/local-authority/38,Oxfordshire County Council,LOCALITY TEAM - CITY,2040,Agency Staff,16/09/2015,2200032534,"1,153.35",Caritas Recruitment Ltd
http://statistics.data.gov.uk/id/local-authority/38,Oxfordshire County Council,FAMILY SUPPORT S'TH2,2040,Agency Staff,16/09/2015,2200030937,"1,167.95",Caritas Recruitment Ltd
http://statistics.data.gov.uk/id/local-authority/38,Oxfordshire County Council,LOCALITY TEAM - CITY,2040,Agency Staff,02/09/2015,2200020602,"1,217.30",Caritas Recruitment Ltd
http://statistics.data.gov.uk/id/local-authority/38,Oxfordshire County Council,LOCALITY TEAM - CITY,2040,Agency Staff,02/09/2015,2200022816,"1,217.30",Caritas Recruitment Ltd
http://statistics.data.gov.uk/id/local-authority/38,Oxfordshire County Council,LOCALITY TEAM - CITY,2040,Agency Staff,10/09/2015,2200025138,"1,217.30",Caritas Recruitment Ltd
http://statistics.data.gov.uk/id/local-authority/38,Oxfordshire County Council,ABINGDON HUB,2040,Agency Staff,16/09/2015,2200030255,"1,217.30",Caritas Recruitment Ltd
http://statistics.data.gov.uk/id/local-authority/38,Oxfordshire County Council,ABINGDON HUB,2040,Agency Staff,16/09/2015,2200030257,"1,217.30",Caritas Recruitment Ltd
http://statistics.data.gov.uk/id/local-authority/38,Oxfordshire County Council,FAMILY SUPPORT S'TH2,2040,Agency Staff,16/09/2015,2200030916,"1,217.30",Caritas Recruitment Ltd
http://statistics.data.gov.uk/id/local-authority/38,Oxfordshire County Council,ABINGDON HUB,2040,Agency Staff,16/09/2015,2200031717,"1,217.30",Caritas Recruitment Ltd
http://statistics.data.gov.uk/id/local-authority/38,Oxfordshire County Council,ABINGDON HUB,2040,Agency Staff,16/09/2015,2200031726,"1,217.30",Caritas Recruitment Ltd
http://statistics.data.gov.uk/id/local-authority/38,Oxfordshire County Council,FAMILY SUPPORT S'TH2,2040,Agency Staff,29/09/2015,2200034910,"1,217.30",Caritas Recruitment Ltd
http://statistics.data.gov.uk/id/local-authority/38,Oxfordshire County Council,LOCALITY TEAM - CITY,2040,Agency Staff,29/09/2015,2200035105,"1,217.30",Caritas Recruitment Ltd
http://statistics.data.gov.uk/id/local-authority/38,Oxfordshire County Council,LOCALITY TEAM - CITY,2040,Agency Staff,04/09/2015,2200027054,"1,226.30",Caritas Recruitment Ltd
http://statistics.data.gov.uk/id/local-authority/38,Oxfordshire County Council,LOCALITY TEAM - CITY,2040,Agency Staff,17/09/2015,2200028889,"1,240.73",Caritas Recruitment Ltd
http://statistics.data.gov.uk/id/local-authority/38,Oxfordshire County Council,LOCALITY TEAM - CITY,2040,Agency Staff,18/09/2015,2200028919,"1,258.20",Caritas Recruitment Ltd
http://statistics.data.gov.uk/id/local-authority/38,Oxfordshire County Council,FAM SUPP NORTH,2040,Agency Staff,16/09/2015,2200034912,"1,265.40",Caritas Recruitment Ltd
http://statistics.data.gov.uk/id/local-authority/38,Oxfordshire County Council,LOCALITY TEAM - CITY,2040,Agency Staff,01/09/2015,2200022873,"1,293.15",Caritas Recruitment Ltd
http://statistics.data.gov.uk/id/local-authority/38,Oxfordshire County Council,THRIVING FAMILY CITY,2040,Agency Staff,16/09/2015,2200031827,"1,295.00",Caritas Recruitment Ltd
http://statistics.data.gov.uk/id/local-authority/38,Oxfordshire County Council,LOCALITY TEAM - CITY,2040,Agency Staff,03/09/2015,2200021010,"1,310.63",Caritas Recruitment Ltd
http://statistics.data.gov.uk/id/local-authority/38,Oxfordshire County Council,LOCALITY TEAM - CITY,2040,Agency Staff,07/09/2015,2200023692,"1,328.10",Caritas Recruitment Ltd
http://statistics.data.gov.uk/id/local-authority/38,Oxfordshire County Council,LITTLEMORE HUB,2040,Agency Staff,09/09/2015,2200024898,"1,332.00",Caritas Recruitment Ltd
http://statistics.data.gov.uk/id/local-authority/38,Oxfordshire County Council,THRIVING FAMILY CITY,2040,Agency Staff,15/09/2015,2200029026,"1,332.00",Caritas Recruitment Ltd
http://statistics.data.gov.uk/id/local-authority/38,Oxfordshire County Council,LITTLEMORE HUB,2040,Agency Staff,18/09/2015,2200030430,"1,332.00",Caritas Recruitment Ltd
http://statistics.data.gov.uk/id/local-authority/38,Oxfordshire County Council,LITTLEMORE HUB,2040,Agency Staff,18/09/2015,2200030440,"1,332.00",Caritas Recruitment Ltd
http://statistics.data.gov.uk/id/local-authority/38,Oxfordshire County Council,THRIVING FAMILY CITY,2040,Agency Staff,18/09/2015,2200034713,"1,332.00",Caritas Recruitment Ltd
http://statistics.data.gov.uk/id/local-authority/38,Oxfordshire County Council,THRIVING FAMILY CITY,2040,Agency Staff,24/09/2015,2200032519,"1,332.00",Caritas Recruitment Ltd
http://statistics.data.gov.uk/id/local-authority/38,Oxfordshire County Council,LITTLEMORE HUB,2040,Agency Staff,07/09/2015,2200022400,"1,339.20",Caritas Recruitment Ltd
http://statistics.data.gov.uk/id/local-authority/38,Oxfordshire County Council,THRIVING FAMILY CITY,2040,Agency Staff,23/09/2015,2200032140,"1,342.40",Caritas Recruitment Ltd
http://statistics.data.gov.uk/id/local-authority/38,Oxfordshire County Council,LITTLEMORE HUB,2040,Agency Staff,29/09/2015,2200035010,"1,342.40",Caritas Recruitment Ltd
http://statistics.data.gov.uk/id/local-authority/38,Oxfordshire County Council,FAM SUPP NORTH,2040,Agency Staff,07/09/2015,2200023676,"1,346.80",Caritas Recruitment Ltd
http://statistics.data.gov.uk/id/local-authority/38,Oxfordshire County Council,FAM SUPP NORTH,2040,Agency Staff,07/09/2015,2200024236,"1,346.80",Caritas Recruitment Ltd
http://statistics.data.gov.uk/id/local-authority/38,Oxfordshire County Council,FAM SUPP SOUTH,2040,Agency Staff,16/09/2015,2200030923,"1,346.80",Caritas Recruitment Ltd
http://statistics.data.gov.uk/id/local-authority/38,Oxfordshire County Council,FAM SUPP NORTH,2040,Agency Staff,16/09/2015,2200034904,"1,346.80",Caritas Recruitment Ltd
http://statistics.data.gov.uk/id/local-authority/38,Oxfordshire County Council,FAM SUPP SOUTH,2040,Agency Staff,16/09/2015,2200034907,"1,346.80",Caritas Recruitment Ltd
http://statistics.data.gov.uk/id/local-authority/38,Oxfordshire County Council,FAM SUPP SOUTH,2040,Agency Staff,16/09/2015,2200030364,"1,347.00",Caritas Recruitment Ltd
http://statistics.data.gov.uk/id/local-authority/38,Oxfordshire County Council,THRIVING FAMILY CITY,2040,Agency Staff,24/09/2015,2200032523,"1,348.80",Caritas Recruitment Ltd
http://statistics.data.gov.uk/id/local-authority/38,Oxfordshire County Council,MASH PROJECT,2040,Agency Staff,16/09/2015,2200031871,"1,365.00",Caritas Recruitment Ltd
http://statistics.data.gov.uk/id/local-authority/38,Oxfordshire County Council,FAM SUPP CITY 2,2040,Agency Staff,14/09/2015,2200025821,"1,365.30",Caritas Recruitment Ltd
http://statistics.data.gov.uk/id/local-authority/38,Oxfordshire County Council,FAM SUPP CITY 2,2040,Agency Staff,14/09/2015,2200025824,"1,365.30",Caritas Recruitment Ltd
http://statistics.data.gov.uk/id/local-authority/38,Oxfordshire County Council,THRIVING FAMILY NRTH,2040,Agency Staff,29/09/2015,2200036191,"1,369.00",Caritas Recruitment Ltd
http://statistics.data.gov.uk/id/local-authority/38,Oxfordshire County Council,THRIVING FAMILY NRTH,2040,Agency Staff,29/09/2015,2200036198,"1,369.00",Caritas Recruitment Ltd
http://statistics.data.gov.uk/id/local-authority/38,Oxfordshire County Council,THRIVING FAMILY NRTH,2040,Agency Staff,29/09/2015,2200036205,"1,369.00",Caritas Recruitment Ltd
http://statistics.data.gov.uk/id/local-authority/38,Oxfordshire County Council,THRIVING FAMILY NRTH,2040,Agency Staff,30/09/2015,2200036178,"1,369.00",Caritas Recruitment Ltd
http://statistics.data.gov.uk/id/local-authority/38,Oxfordshire County Council,THRIVING FAMILY NRTH,2040,Agency Staff,30/09/2015,2200036183,"1,369.00",Caritas Recruitment Ltd
http://statistics.data.gov.uk/id/local-authority/38,Oxfordshire County Council,FAM SUPP CITY 1,2040,Agency Staff,01/09/2015,2200019851,"1,373.00",Caritas Recruitment Ltd
http://statistics.data.gov.uk/id/local-authority/38,Oxfordshire County Council,THRIVING FAMILY NRTH,2040,Agency Staff,30/09/2015,2200036174,"1,377.40",Caritas Recruitment Ltd
http://statistics.data.gov.uk/id/local-authority/38,Oxfordshire County Council,DIDCOT HUB,2040,Agency Staff,23/09/2015,2200034222,"1,380.35",Caritas Recruitment Ltd
http://statistics.data.gov.uk/id/local-authority/38,Oxfordshire County Council,FAM SUPP NORTH,2040,Agency Staff,16/09/2015,2200033721,"1,400.35",Caritas Recruitment Ltd
http://statistics.data.gov.uk/id/local-authority/38,Oxfordshire County Council,THRIVING FAMILY NRTH,2040,Agency Staff,30/09/2015,2200036181,"1,421.20",Caritas Recruitment Ltd
http://statistics.data.gov.uk/id/local-authority/38,Oxfordshire County Council,THRIVING FAMILY NRTH,2040,Agency Staff,29/09/2015,2200036203,"1,427.05",Caritas Recruitment Ltd
http://statistics.data.gov.uk/id/local-authority/38,Oxfordshire County Council,THRIVING FAMILY NRTH,2040,Agency Staff,29/09/2015,2200036194,"1,447.30",Caritas Recruitment Ltd
http://statistics.data.gov.uk/id/local-authority/38,Oxfordshire County Council,THRIVING FAMILY NRTH,2040,Agency Staff,29/09/2015,2200036199,"1,453.15",Caritas Recruitment Ltd
http://statistics.data.gov.uk/id/local-authority/38,Oxfordshire County Council,LOCALITY TEAM - CITY,2040,Agency Staff,04/09/2015,2200022309,"1,480.50",Caritas Recruitment Ltd
http://statistics.data.gov.uk/id/local-authority/38,Oxfordshire County Council,FAM SUPP SOUTH,2040,Agency Staff,01/09/2015,2200020931,"1,661.30",Caritas Recruitment Ltd
http://statistics.data.gov.uk/id/local-authority/38,Oxfordshire County Council,FAM SUPP SOUTH,2040,Agency Staff,07/09/2015,2200031486,"1,661.30",Caritas Recruitment Ltd
http://statistics.data.gov.uk/id/local-authority/38,Oxfordshire County Council,FAM SUPP SOUTH,2040,Agency Staff,16/09/2015,2200030372,"1,661.30",Caritas Recruitment Ltd
http://statistics.data.gov.uk/id/local-authority/38,Oxfordshire County Council,FAM SUPP SOUTH,2040,Agency Staff,16/09/2015,2200030820,"1,661.30",Caritas Recruitment Ltd
http://statistics.data.gov.uk/id/local-authority/38,Oxfordshire County Council,FAM SUPP SOUTH,2040,Agency Staff,16/09/2015,2200030822,"1,661.30",Caritas Recruitment Ltd
http://statistics.data.gov.uk/id/local-authority/38,Oxfordshire County Council,FAM SUPP SOUTH,2040,Agency Staff,16/09/2015,2200030827,"1,661.30",Caritas Recruitment Ltd
http://statistics.data.gov.uk/id/local-authority/38,Oxfordshire County Council,FAM SUPP SOUTH,2040,Agency Staff,16/09/2015,2200030830,"1,661.30",Caritas Recruitment Ltd
http://statistics.data.gov.uk/id/local-authority/38,Oxfordshire County Council,FAM SUPP SOUTH,2040,Agency Staff,29/09/2015,2200034990,"1,661.30",Caritas Recruitment Ltd
http://statistics.data.gov.uk/id/local-authority/38,Oxfordshire County Council,FAM SUPP NORTH,2040,Agency Staff,16/09/2015,2200031736,"2,190.00",Caritas Recruitment Ltd
http://statistics.data.gov.uk/id/local-authority/38,Oxfordshire County Council,FAM SUPP NORTH,2040,Agency Staff,16/09/2015,2200033869,"5,722.50",Caritas Recruitment Ltd
http://statistics.data.gov.uk/id/local-authority/38,Oxfordshire County Council,Mockingbird,2040,Agency Staff,09/09/2015,2200025409,"2,544.00",Censeo Oxford Ltd
http://statistics.data.gov.uk/id/local-authority/38,Oxfordshire County Council,SIGNING & LINING,2040,Agency Staff,15/09/2015,2200027029,"-2,449.63",Champion Employment Ltd
http://statistics.data.gov.uk/id/local-authority/38,Oxfordshire County Council,SCH&SOC CARE TRANSP,2040,Agency Staff,15/09/2015,2200032027,"-1,427.88",Champion Employment Ltd
http://statistics.data.gov.uk/id/local-authority/38,Oxfordshire County Council,SUFF & ACCESS,2040,Agency Staff,11/09/2015,2200025430,505.05,Champion Employment Ltd
http://statistics.data.gov.uk/id/local-authority/38,Oxfordshire County Council,STRATEGY,2040,Agency Staff,08/09/2015,2200022832,514.67,Champion Employment Ltd
http://statistics.data.gov.uk/id/local-authority/38,Oxfordshire County Council,CSC SUPP & SERVICES,2040,Agency Staff,08/09/2015,2200027621,514.67,Champion Employment Ltd
http://statistics.data.gov.uk/id/local-authority/38,Oxfordshire County Council,GREEN BOOK SALARIES,2040,Agency Staff,08/09/2015,2200024123,529.12,Champion Employment Ltd
http://statistics.data.gov.uk/id/local-authority/38,Oxfordshire County Council,WANTAGE DC,2040,Agency Staff,09/09/2015,2200024009,549.78,Champion Employment Ltd
http://statistics.data.gov.uk/id/local-authority/38,Oxfordshire County Council,FLEET OPERATIONS,2040,Agency Staff,08/09/2015,2200022796,556.7,Champion Employment Ltd
http://statistics.data.gov.uk/id/local-authority/38,Oxfordshire County Council,Financial Assessment,2040,Agency Staff,08/09/2015,2200022926,584.66,Champion Employment Ltd
http://statistics.data.gov.uk/id/local-authority/38,Oxfordshire County Council,CSC MAIN TEAM,2040,Agency Staff,08/09/2015,2200023074,611.84,Champion Employment Ltd
http://statistics.data.gov.uk/id/local-authority/38,Oxfordshire County Council,R & A STAFF & OPS,2040,Agency Staff,10/09/2015,2200024801,617.4,Champion Employment Ltd
http://statistics.data.gov.uk/id/local-authority/38,Oxfordshire County Council,ASC Payments,2040,Agency Staff,11/09/2015,2200025424,666.25,Champion Employment Ltd
http://statistics.data.gov.uk/id/local-authority/38,Oxfordshire County Council,CSC MAIN TEAM,2040,Agency Staff,01/09/2015,2200021457,672.01,Champion Employment Ltd
http://statistics.data.gov.uk/id/local-authority/38,Oxfordshire County Council,PERFORMNCE&INFO SC,2040,Agency Staff,08/09/2015,2200025107,693.74,Champion Employment Ltd
http://statistics.data.gov.uk/id/local-authority/38,Oxfordshire County Council,CARERS OXFORDSHIRE,2040,Agency Staff,08/09/2015,2200022722,730.28,Champion Employment Ltd
http://statistics.data.gov.uk/id/local-authority/38,Oxfordshire County Council,ICT OPERATIONS & MAI,2040,Agency Staff,11/09/2015,2200025422,732.19,Champion Employment Ltd
http://statistics.data.gov.uk/id/local-authority/38,Oxfordshire County Council,FM STH & EAST STAFF,2040,Agency Staff,08/09/2015,2200023386,787.55,Champion Employment Ltd
http://statistics.data.gov.uk/id/local-authority/38,Oxfordshire County Council,RECRUITMENT+MEDICALS,2040,Agency Staff,15/09/2015,2200036332,793.98,Champion Employment Ltd
http://statistics.data.gov.uk/id/local-authority/38,Oxfordshire County Council,ICT OPERATIONS & MAI,2040,Agency Staff,11/09/2015,2200025428,805.87,Champion Employment Ltd
http://statistics.data.gov.uk/id/local-authority/38,Oxfordshire County Council,HSPO COSTS,2040,Agency Staff,11/09/2015,2200025431,831.02,Champion Employment Ltd
http://statistics.data.gov.uk/id/local-authority/38,Oxfordshire County Council,Corp Proc Service,2040,Agency Staff,08/09/2015,2200022826,834.6,Champion Employment Ltd
http://statistics.data.gov.uk/id/local-authority/38,Oxfordshire County Council,FLEET OPERATIONS,2040,Agency Staff,08/09/2015,2200023069,844.43,Champion Employment Ltd
http://statistics.data.gov.uk/id/local-authority/38,Oxfordshire County Council,BUSINESS SUPPORT,2040,Agency Staff,08/09/2015,2200023077,854.32,Champion Employment Ltd
http://statistics.data.gov.uk/id/local-authority/38,Oxfordshire County Council,CYPF ADMIN,2040,Agency Staff,01/09/2015,2200036556,868.52,Champion Employment Ltd
http://statistics.data.gov.uk/id/local-authority/38,Oxfordshire County Council,SOC&HEALTH CARE TEAM,2040,Agency Staff,14/09/2015,2200025763,876.34,Champion Employment Ltd
http://statistics.data.gov.uk/id/local-authority/38,Oxfordshire County Council,DEPUTY DIRECTOR &MAN,2040,Agency Staff,08/09/2015,2200022605,901.53,Champion Employment Ltd
http://statistics.data.gov.uk/id/local-authority/38,Oxfordshire County Council,RECRUITMENT+MEDICALS,2040,Agency Staff,15/09/2015,2200036324,923.81,Champion Employment Ltd
http://statistics.data.gov.uk/id/local-authority/38,Oxfordshire County Council,FLEET OPERATIONS,2040,Agency Staff,08/09/2015,2200022798,924.76,Champion Employment Ltd
http://statistics.data.gov.uk/id/local-authority/38,Oxfordshire County Council,SOC&HEALTH CARE TEAM,2040,Agency Staff,08/09/2015,2200022746,925.02,Champion Employment Ltd
http://statistics.data.gov.uk/id/local-authority/38,Oxfordshire County Council,CSC SUPP & SERVICES,2040,Agency Staff,08/09/2015,2200027624,925.02,Champion Employment Ltd
http://statistics.data.gov.uk/id/local-authority/38,Oxfordshire County Council,CSC SUPP & SERVICES,2040,Agency Staff,08/09/2015,2200027625,925.02,Champion Employment Ltd
http://statistics.data.gov.uk/id/local-authority/38,Oxfordshire County Council,FLEET OPERATIONS,2040,Agency Staff,08/09/2015,2200022795,925.74,Champion Employment Ltd
http://statistics.data.gov.uk/id/local-authority/38,Oxfordshire County Council,FLEET OPERATIONS,2040,Agency Staff,08/09/2015,2200022823,925.74,Champion Employment Ltd
http://statistics.data.gov.uk/id/local-authority/38,Oxfordshire County Council,FLEET OPERATIONS,2040,Agency Staff,08/09/2015,2200022828,925.74,Champion Employment Ltd
http://statistics.data.gov.uk/id/local-authority/38,Oxfordshire County Council,FLEET OPERATIONS,2040,Agency Staff,08/09/2015,2200023067,945.72,Champion Employment Ltd
http://statistics.data.gov.uk/id/local-authority/38,Oxfordshire County Council,FLEET OPERATIONS,2040,Agency Staff,08/09/2015,2200022794,958.5,Champion Employment Ltd
http://statistics.data.gov.uk/id/local-authority/38,Oxfordshire County Council,FLEET OPERATIONS,2040,Agency Staff,08/09/2015,2200022785,975.8,Champion Employment Ltd
http://statistics.data.gov.uk/id/local-authority/38,Oxfordshire County Council,LEGAL SERVICES,2040,Agency Staff,08/09/2015,2200022896,986.54,Champion Employment Ltd
http://statistics.data.gov.uk/id/local-authority/38,Oxfordshire County Council,FLEET OPERATIONS,2040,Agency Staff,02/09/2015,2200020616,999.95,Champion Employment Ltd
http://statistics.data.gov.uk/id/local-authority/38,Oxfordshire County Council,LEP,2040,Agency Staff,08/09/2015,2200026698,"1,019.64",Champion Employment Ltd
http://statistics.data.gov.uk/id/local-authority/38,Oxfordshire County Council,CARERS OXFORDSHIRE,2040,Agency Staff,08/09/2015,2200022716,"1,029.34",Champion Employment Ltd
http://statistics.data.gov.uk/id/local-authority/38,Oxfordshire County Council,CSC SUPP & SERVICES,2040,Agency Staff,08/09/2015,2200027620,"1,029.34",Champion Employment Ltd
http://statistics.data.gov.uk/id/local-authority/38,Oxfordshire County Council,INFORMATION & COMMS,2040,Agency Staff,11/09/2015,2200025441,"1,029.34",Champion Employment Ltd
http://statistics.data.gov.uk/id/local-authority/38,Oxfordshire County Council,ABINGDON DC,2040,Agency Staff,07/09/2015,2200024486,"1,037.90",Champion Employment Ltd
http://statistics.data.gov.uk/id/local-authority/38,Oxfordshire County Council,CSC SUPP & SERVICES,2040,Agency Staff,08/09/2015,2200027622,"1,055.24",Champion Employment Ltd
http://statistics.data.gov.uk/id/local-authority/38,Oxfordshire County Council,Financial Assessment,2040,Agency Staff,08/09/2015,2200022924,"1,066.63",Champion Employment Ltd
http://statistics.data.gov.uk/id/local-authority/38,Oxfordshire County Council,Financial Assessment,2040,Agency Staff,08/09/2015,2200022927,"1,069.50",Champion Employment Ltd
http://statistics.data.gov.uk/id/local-authority/38,Oxfordshire County Council,FLEET OPERATIONS,2040,Agency Staff,02/09/2015,2200020731,"1,069.62",Champion Employment Ltd
http://statistics.data.gov.uk/id/local-authority/38,Oxfordshire County Council,PROCUREMENT,2040,Agency Staff,08/09/2015,2200022905,"1,070.00",Champion Employment Ltd
http://statistics.data.gov.uk/id/local-authority/38,Oxfordshire County Council,CYPF ADMIN,2040,Agency Staff,02/09/2015,2200020575,"1,070.27",Champion Employment Ltd
http://statistics.data.gov.uk/id/local-authority/38,Oxfordshire County Council,CYPF ADMIN,2040,Agency Staff,08/09/2015,2200030134,"1,108.72",Champion Employment Ltd
http://statistics.data.gov.uk/id/local-authority/38,Oxfordshire County Council,INT CUST SERVS PROG,2040,Agency Staff,01/09/2015,2200021435,"1,129.68",Champion Employment Ltd
http://statistics.data.gov.uk/id/local-authority/38,Oxfordshire County Council,AUDIT SERVICES,2040,Agency Staff,08/09/2015,2200027299,"1,164.02",Champion Employment Ltd
http://statistics.data.gov.uk/id/local-authority/38,Oxfordshire County Council,CHERWELL & WEST,2040,Agency Staff,10/09/2015,2200025879,"1,168.25",Champion Employment Ltd
http://statistics.data.gov.uk/id/local-authority/38,Oxfordshire County Council,CSC MAIN TEAM,2040,Agency Staff,01/09/2015,2200021456,"1,173.52",Champion Employment Ltd
http://statistics.data.gov.uk/id/local-authority/38,Oxfordshire County Council,FLEET OPERATIONS,2040,Agency Staff,02/09/2015,2200020730,"1,219.74",Champion Employment Ltd
http://statistics.data.gov.uk/id/local-authority/38,Oxfordshire County Council,MCS,2040,Agency Staff,08/09/2015,2200023078,"1,250.00",Champion Employment Ltd
http://statistics.data.gov.uk/id/local-authority/38,Oxfordshire County Council,Corp Proc Service,2040,Agency Staff,08/09/2015,2200028140,"1,299.44",Champion Employment Ltd
http://statistics.data.gov.uk/id/local-authority/38,Oxfordshire County Council,PERFORMNCE&INFO SC,2040,Agency Staff,04/09/2015,2200025768,"1,310.44",Champion Employment Ltd
http://statistics.data.gov.uk/id/local-authority/38,Oxfordshire County Council,TRADING STANDARDS,2040,Agency Staff,14/09/2015,2200028044,"1,332.00",Champion Employment Ltd
http://statistics.data.gov.uk/id/local-authority/38,Oxfordshire County Council,BRIDGES STAFF,2040,Agency Staff,03/09/2015,2200020938,"1,350.00",Champion Employment Ltd
http://statistics.data.gov.uk/id/local-authority/38,Oxfordshire County Council,BROADBAND PROJECT,2040,Agency Staff,08/09/2015,2200022764,"1,350.00",Champion Employment Ltd
http://statistics.data.gov.uk/id/local-authority/38,Oxfordshire County Council,S38 INSPECT & OTHER,2040,Agency Staff,11/09/2015,2200025217,"1,355.87",Champion Employment Ltd
http://statistics.data.gov.uk/id/local-authority/38,Oxfordshire County Council,EIS ADMIN,2040,Agency Staff,01/09/2015,2200029455,"1,403.92",Champion Employment Ltd
http://statistics.data.gov.uk/id/local-authority/38,Oxfordshire County Council,POLICY & IMPROVEMENT,2040,Agency Staff,03/09/2015,2200020993,"1,417.08",Champion Employment Ltd
http://statistics.data.gov.uk/id/local-authority/38,Oxfordshire County Council,SCH&SOC CARE TRANSP,2040,Agency Staff,15/09/2015,2200027172,"1,427.88",Champion Employment Ltd
http://statistics.data.gov.uk/id/local-authority/38,Oxfordshire County Council,CYPF ADMIN,2040,Agency Staff,21/09/2015,2200035452,"1,443.09",Champion Employment Ltd
http://statistics.data.gov.uk/id/local-authority/38,Oxfordshire County Council,CSC SUPP & SERVICES,2040,Agency Staff,25/09/2015,2200034025,"1,488.37",Champion Employment Ltd
http://statistics.data.gov.uk/id/local-authority/38,Oxfordshire County Council,SCHOOLS ICT SUPPORT,2040,Agency Staff,30/09/2015,2200036434,"1,502.97",Champion Employment Ltd
http://statistics.data.gov.uk/id/local-authority/38,Oxfordshire County Council,ASC Payments,2040,Agency Staff,15/09/2015,2200027396,"1,523.03",Champion Employment Ltd
http://statistics.data.gov.uk/id/local-authority/38,Oxfordshire County Council,SOCIAL INC. TEAM,2040,Agency Staff,01/09/2015,2200020746,"1,529.08",Champion Employment Ltd
http://statistics.data.gov.uk/id/local-authority/38,Oxfordshire County Council,MANAGEMENT,2040,Agency Staff,01/09/2015,2200023891,"1,539.90",Champion Employment Ltd
http://statistics.data.gov.uk/id/local-authority/38,Oxfordshire County Council,CYPF ADMIN,2040,Agency Staff,21/09/2015,2200034296,"1,570.60",Champion Employment Ltd
http://statistics.data.gov.uk/id/local-authority/38,Oxfordshire County Council,ABINGDON DC,2040,Agency Staff,07/09/2015,2200024488,"1,605.00",Champion Employment Ltd
http://statistics.data.gov.uk/id/local-authority/38,Oxfordshire County Council,STR INF MGT PLAN APS,2040,Agency Staff,02/09/2015,2200022757,"1,624.86",Champion Employment Ltd
http://statistics.data.gov.uk/id/local-authority/38,Oxfordshire County Council,ICT OPERATIONS & MAI,2040,Agency Staff,01/09/2015,2200027631,"1,793.26",Champion Employment Ltd
http://statistics.data.gov.uk/id/local-authority/38,Oxfordshire County Council,FLEET OPERATIONS,2040,Agency Staff,01/09/2015,2200027681,"1,818.92",Champion Employment Ltd
http://statistics.data.gov.uk/id/local-authority/38,Oxfordshire County Council,STR INF MGT PLAN APS,2040,Agency Staff,01/09/2015,2200022756,"1,846.52",Champion Employment Ltd
http://statistics.data.gov.uk/id/local-authority/38,Oxfordshire County Council,S38 INSPECT & OTHER,2040,Agency Staff,08/09/2015,2200023461,"1,893.56",Champion Employment Ltd
http://statistics.data.gov.uk/id/local-authority/38,Oxfordshire County Council,COMMERCIAL MANAGEMEN,2040,Agency Staff,08/09/2015,2200022907,"1,902.70",Champion Employment Ltd
http://statistics.data.gov.uk/id/local-authority/38,Oxfordshire County Council,MASH PROJECT,2040,Agency Staff,08/09/2015,2200023885,"1,945.90",Champion Employment Ltd
http://statistics.data.gov.uk/id/local-authority/38,Oxfordshire County Council,DAAT STAFFING,2040,Agency Staff,03/09/2015,2200021368,"1,983.44",Champion Employment Ltd
http://statistics.data.gov.uk/id/local-authority/38,Oxfordshire County Council,LEP,2040,Agency Staff,10/09/2015,2200024543,"2,046.66",Champion Employment Ltd
http://statistics.data.gov.uk/id/local-authority/38,Oxfordshire County Council,OBS,2040,Agency Staff,08/09/2015,2200022920,"2,080.00",Champion Employment Ltd
http://statistics.data.gov.uk/id/local-authority/38,Oxfordshire County Council,DAAT STAFFING,2040,Agency Staff,03/09/2015,2200021220,"2,230.54",Champion Employment Ltd
http://statistics.data.gov.uk/id/local-authority/38,Oxfordshire County Council,RECRUITMENT+MEDICALS,2040,Agency Staff,15/09/2015,2200036316,"2,276.69",Champion Employment Ltd
http://statistics.data.gov.uk/id/local-authority/38,Oxfordshire County Council,FLEET OPERATIONS,2040,Agency Staff,01/09/2015,2200027664,"2,319.53",Champion Employment Ltd
http://statistics.data.gov.uk/id/local-authority/38,Oxfordshire County Council,ASC Payments,2040,Agency Staff,03/09/2015,2200021308,"2,327.03",Champion Employment Ltd
http://statistics.data.gov.uk/id/local-authority/38,Oxfordshire County Council,FLEET OPERATIONS,2040,Agency Staff,01/09/2015,2200027611,"2,333.13",Champion Employment Ltd
http://statistics.data.gov.uk/id/local-authority/38,Oxfordshire County Council,Corp Proc Service,2040,Agency Staff,01/09/2015,2200028188,"2,378.61",Champion Employment Ltd
http://statistics.data.gov.uk/id/local-authority/38,Oxfordshire County Council,CHERWELL & WEST,2040,Agency Staff,10/09/2015,2200025880,"2,425.56",Champion Employment Ltd
http://statistics.data.gov.uk/id/local-authority/38,Oxfordshire County Council,POLICY & IMPROVEMENT,2040,Agency Staff,08/09/2015,2200022219,"2,484.66",Champion Employment Ltd
http://statistics.data.gov.uk/id/local-authority/38,Oxfordshire County Council,TRADING STANDARDS,2040,Agency Staff,14/09/2015,2200026917,"2,592.40",Champion Employment Ltd
http://statistics.data.gov.uk/id/local-authority/38,Oxfordshire County Council,LEP,2040,Agency Staff,22/09/2015,2200030428,"2,663.04",Champion Employment Ltd
http://statistics.data.gov.uk/id/local-authority/38,Oxfordshire County Council,FLEET OPERATIONS,2040,Agency Staff,01/09/2015,2200027763,"2,686.54",Champion Employment Ltd
http://statistics.data.gov.uk/id/local-authority/38,Oxfordshire County Council,LEGAL SERVICES,2040,Agency Staff,08/09/2015,2200022762,"2,758.11",Champion Employment Ltd
http://statistics.data.gov.uk/id/local-authority/38,Oxfordshire County Council,RECRUITMENT+MEDICALS,2040,Agency Staff,15/09/2015,2200036317,"3,027.27",Champion Employment Ltd
http://statistics.data.gov.uk/id/local-authority/38,Oxfordshire County Council,PROCUREMENT,2040,Agency Staff,08/09/2015,2200022900,"3,069.60",Champion Employment Ltd
http://statistics.data.gov.uk/id/local-authority/38,Oxfordshire County Council,R & A STAFF & OPS,2040,Agency Staff,08/09/2015,2200024304,"3,167.10",Champion Employment Ltd
http://statistics.data.gov.uk/id/local-authority/38,Oxfordshire County Council,DEPUTY DIRECTOR &MAN,2040,Agency Staff,08/09/2015,2200029799,"3,167.60",Champion Employment Ltd
http://statistics.data.gov.uk/id/local-authority/38,Oxfordshire County Council,LEGAL SERVICES,2040,Agency Staff,03/09/2015,2200020910,"3,251.06",Champion Employment Ltd
http://statistics.data.gov.uk/id/local-authority/38,Oxfordshire County Council,SAPCOMPETENCYCENTRE,2040,Agency Staff,08/09/2015,2200022894,"3,256.00",Champion Employment Ltd
http://statistics.data.gov.uk/id/local-authority/38,Oxfordshire County Council,OBS,2040,Agency Staff,08/09/2015,2200022753,"3,280.00",Champion Employment Ltd
http://statistics.data.gov.uk/id/local-authority/38,Oxfordshire County Council,OBS,2040,Agency Staff,08/09/2015,2200022755,"3,280.00",Champion Employment Ltd
http://statistics.data.gov.uk/id/local-authority/38,Oxfordshire County Council,S38 INSPECT & OTHER,2040,Agency Staff,11/09/2015,2200025220,"3,408.47",Champion Employment Ltd
http://statistics.data.gov.uk/id/local-authority/38,Oxfordshire County Council,MASH PROJECT,2040,Agency Staff,17/09/2015,2200028882,"3,600.00",Champion Employment Ltd
http://statistics.data.gov.uk/id/local-authority/38,Oxfordshire County Council,COMMUNICATIONS,2040,Agency Staff,08/09/2015,2200027722,"4,429.60",Champion Employment Ltd
http://statistics.data.gov.uk/id/local-authority/38,Oxfordshire County Council,ICT OPERATIONS & MAI,2040,Agency Staff,08/09/2015,2200022898,"4,432.00",Champion Employment Ltd
http://statistics.data.gov.uk/id/local-authority/38,Oxfordshire County Council,CHERWELL & WEST,2040,Agency Staff,10/09/2015,2200025881,"4,738.36",Champion Employment Ltd
http://statistics.data.gov.uk/id/local-authority/38,Oxfordshire County Council,LEGAL SERVICES,2040,Agency Staff,08/09/2015,2200022824,"4,842.72",Champion Employment Ltd
http://statistics.data.gov.uk/id/local-authority/38,Oxfordshire County Council,BROADBAND PROJECT,2040,Agency Staff,08/09/2015,2200022888,"5,075.00",Champion Employment Ltd
http://statistics.data.gov.uk/id/local-authority/38,Oxfordshire County Council,TRADING STANDARDS,2040,Agency Staff,14/09/2015,2200026915,"5,192.50",Champion Employment Ltd
http://statistics.data.gov.uk/id/local-authority/38,Oxfordshire County Council,TRADING STANDARDS,2040,Agency Staff,21/09/2015,2200031462,"6,752.50",Champion Employment Ltd
http://statistics.data.gov.uk/id/local-authority/38,Oxfordshire County Council,INT CUST SERVS PROG,2040,Agency Staff,01/09/2015,2200027630,"7,756.00",Champion Employment Ltd
http://statistics.data.gov.uk/id/local-authority/38,Oxfordshire County Council,ICT OPERATIONS & MAI,2040,Agency Staff,11/09/2015,2200025427,"8,530.50",Champion Employment Ltd
http://statistics.data.gov.uk/id/local-authority/38,Oxfordshire County Council,SCIENCE VALE,2040,Agency Staff,01/09/2015,2200019855,"8,832.46",Champion Employment Ltd
http://statistics.data.gov.uk/id/local-authority/38,Oxfordshire County Council,ADULT PROTECTION,2040,Agency Staff,01/09/2015,2200022324,"9,370.20",Champion Employment Ltd
http://statistics.data.gov.uk/id/local-authority/38,Oxfordshire County Council,MAJOR PROGRAMMES,2040,Agency Staff,10/09/2015,2200024057,"10,508.40",Champion Employment Ltd
http://statistics.data.gov.uk/id/local-authority/38,Oxfordshire County Council,CHERWELL & WEST,2040,Agency Staff,25/09/2015,2200034981,"14,301.91",Champion Employment Ltd
http://statistics.data.gov.uk/id/local-authority/38,Oxfordshire County Council,DEPUTY DIRECTOR &MAN,2040,Agency Staff,09/09/2015,2200023510,"16,136.25",Champion Employment Ltd
http://statistics.data.gov.uk/id/local-authority/38,Oxfordshire County Council,HEADINGTON/ CITY DTS,2040,Agency Staff,07/09/2015,2200022711,576.3,Civicare Oxford Ltd
http://statistics.data.gov.uk/id/local-authority/38,Oxfordshire County Council,HEADINGTON/ CITY DTS,2040,Agency Staff,18/09/2015,2200028890,576.3,Civicare Oxford Ltd
http://statistics.data.gov.uk/id/local-authority/38,Oxfordshire County Council,HEADINGTON/ CITY DTS,2040,Agency Staff,07/09/2015,2200022748,686.48,Civicare Oxford Ltd
http://statistics.data.gov.uk/id/local-authority/38,Oxfordshire County Council,HEADINGTON/ CITY DTS,2040,Agency Staff,02/09/2015,2200020573,881.44,Civicare Oxford Ltd
http://statistics.data.gov.uk/id/local-authority/38,Oxfordshire County Council,HEADINGTON/ CITY DTS,2040,Agency Staff,15/09/2015,2200036463,966.19,Civicare Oxford Ltd
http://statistics.data.gov.uk/id/local-authority/38,Oxfordshire County Council,LD ILF,2040,Agency Staff,01/09/2015,2200034299,885.67,Completely Care Ltd
http://statistics.data.gov.uk/id/local-authority/38,Oxfordshire County Council,LEARN DISAB TEAM STH,2040,Agency Staff,15/09/2015,2200034302,903.59,Completely Care Ltd
http://statistics.data.gov.uk/id/local-authority/38,Oxfordshire County Council,LD ILF,2040,Agency Staff,28/09/2015,2200035790,"1,057.09",Completely Care Ltd
http://statistics.data.gov.uk/id/local-authority/38,Oxfordshire County Council,LEARN DISAB TEAM STH,2040,Agency Staff,28/09/2015,2200035698,"1,084.85",Completely Care Ltd
http://statistics.data.gov.uk/id/local-authority/38,Oxfordshire County Council,LD ILF,2040,Agency Staff,21/09/2015,2200034304,"1,114.23",Completely Care Ltd
http://statistics.data.gov.uk/id/local-authority/38,Oxfordshire County Council,LEARN DISAB TEAM STH,2040,Agency Staff,21/09/2015,2200034307,"1,114.23",Completely Care Ltd
http://statistics.data.gov.uk/id/local-authority/38,Oxfordshire County Council,LEARN DISAB TEAM STH,2040,Agency Staff,01/09/2015,2200034301,"1,126.63",Completely Care Ltd
http://statistics.data.gov.uk/id/local-authority/38,Oxfordshire County Council,LEARN DISAB TEAM STH,2040,Agency Staff,21/09/2015,2200034305,"1,144.39",Completely Care Ltd
http://statistics.data.gov.uk/id/local-authority/38,Oxfordshire County Council,LEARN DISAB TEAM STH,2040,Agency Staff,07/09/2015,2200021818,"1,181.11",Completely Care Ltd
http://statistics.data.gov.uk/id/local-authority/38,Oxfordshire County Council,COMMENTS&INFORMATION,2040,Agency Staff,16/09/2015,2200028053,"1,332.50",Chris Mills
http://statistics.data.gov.uk/id/local-authority/38,Oxfordshire County Council,FAMILY SUPPORT S'TH2,2040,Agency Staff,11/09/2015,2200026900,562.5,Eden Brown Recruitment Ltd
http://statistics.data.gov.uk/id/local-authority/38,Oxfordshire County Council,FAMILY SUPPORT N'TH2,2040,Agency Staff,18/09/2015,2200029743,562.5,Eden Brown Recruitment Ltd
http://statistics.data.gov.uk/id/local-authority/38,Oxfordshire County Council,FAMILY SUPPORT N'TH2,2040,Agency Staff,18/09/2015,2200029736,825.9,Eden Brown Recruitment Ltd
http://statistics.data.gov.uk/id/local-authority/38,Oxfordshire County Council,FAMILY SUPPORT S'TH2,2040,Agency Staff,11/09/2015,2200026899,843.75,Eden Brown Recruitment Ltd
http://statistics.data.gov.uk/id/local-authority/38,Oxfordshire County Council,LOOKED AFTER NORTH,2040,Agency Staff,18/09/2015,2200030057,953.85,Eden Brown Recruitment Ltd
http://statistics.data.gov.uk/id/local-authority/38,Oxfordshire County Council,MASH PROJECT,2040,Agency Staff,15/09/2015,2200031714,976.25,Eden Brown Recruitment Ltd
http://statistics.data.gov.uk/id/local-authority/38,Oxfordshire County Council,ASSESSMENT TEAM NORT,2040,Agency Staff,18/09/2015,2200029734,"1,035.00",Eden Brown Recruitment Ltd
http://statistics.data.gov.uk/id/local-authority/38,Oxfordshire County Council,MASH PROJECT,2040,Agency Staff,15/09/2015,2200029247,"1,047.25",Eden Brown Recruitment Ltd
http://statistics.data.gov.uk/id/local-authority/38,Oxfordshire County Council,MASH PROJECT,2040,Agency Staff,15/09/2015,2200029246,"1,106.25",Eden Brown Recruitment Ltd
http://statistics.data.gov.uk/id/local-authority/38,Oxfordshire County Council,MASH PROJECT,2040,Agency Staff,17/09/2015,2200031710,"1,106.25",Eden Brown Recruitment Ltd
http://statistics.data.gov.uk/id/local-authority/38,Oxfordshire County Council,FAMILY SUPPORT N'TH2,2040,Agency Staff,18/09/2015,2200030125,"1,139.55",Eden Brown Recruitment Ltd
http://statistics.data.gov.uk/id/local-authority/38,Oxfordshire County Council,FAMILY SUPPORT N'TH2,2040,Agency Staff,18/09/2015,2200029741,"1,162.05",Eden Brown Recruitment Ltd
http://statistics.data.gov.uk/id/local-authority/38,Oxfordshire County Council,ASSESSMENT TEAM NORT,2040,Agency Staff,18/09/2015,2200029737,"1,197.60",Eden Brown Recruitment Ltd
http://statistics.data.gov.uk/id/local-authority/38,Oxfordshire County Council,ASSESSMENT TEAM NORT,2040,Agency Staff,18/09/2015,2200029738,"1,276.50",Eden Brown Recruitment Ltd
http://statistics.data.gov.uk/id/local-authority/38,Oxfordshire County Council,ASSESSMENT TEAM NORT,2040,Agency Staff,18/09/2015,2200029740,"1,276.50",Eden Brown Recruitment Ltd
http://statistics.data.gov.uk/id/local-authority/38,Oxfordshire County Council,ASSESSMENT TEAM NORT,2040,Agency Staff,18/09/2015,2200029744,"1,276.50",Eden Brown Recruitment Ltd
http://statistics.data.gov.uk/id/local-authority/38,Oxfordshire County Council,ASSESSMENT TEAM NORT,2040,Agency Staff,18/09/2015,2200030121,"1,276.50",Eden Brown Recruitment Ltd
http://statistics.data.gov.uk/id/local-authority/38,Oxfordshire County Council,ASSESSMENT TEAM NORT,2040,Agency Staff,09/09/2015,2200024769,"1,309.35",Eden Brown Recruitment Ltd
http://statistics.data.gov.uk/id/local-authority/38,Oxfordshire County Council,ASSESSMENT TEAM NORT,2040,Agency Staff,18/09/2015,2200030122,"1,309.80",Eden Brown Recruitment Ltd
http://statistics.data.gov.uk/id/local-authority/38,Oxfordshire County Council,MASH PROJECT,2040,Agency Staff,15/09/2015,2200029025,"1,350.00",Eden Brown Recruitment Ltd
http://statistics.data.gov.uk/id/local-authority/38,Oxfordshire County Council,MASH PROJECT,2040,Agency Staff,15/09/2015,2200029255,"1,350.00",Eden Brown Recruitment Ltd
http://statistics.data.gov.uk/id/local-authority/38,Oxfordshire County Council,MASH PROJECT,2040,Agency Staff,15/09/2015,2200029108,"1,387.50",Eden Brown Recruitment Ltd
http://statistics.data.gov.uk/id/local-authority/38,Oxfordshire County Council,MASH PROJECT,2040,Agency Staff,15/09/2015,2200029112,"1,387.50",Eden Brown Recruitment Ltd
http://statistics.data.gov.uk/id/local-authority/38,Oxfordshire County Council,MASH PROJECT,2040,Agency Staff,15/09/2015,2200029242,"1,387.50",Eden Brown Recruitment Ltd
http://statistics.data.gov.uk/id/local-authority/38,Oxfordshire County Council,MASH PROJECT,2040,Agency Staff,15/09/2015,2200029243,"1,387.50",Eden Brown Recruitment Ltd
http://statistics.data.gov.uk/id/local-authority/38,Oxfordshire County Council,MASH PROJECT,2040,Agency Staff,15/09/2015,2200029244,"1,387.50",Eden Brown Recruitment Ltd
http://statistics.data.gov.uk/id/local-authority/38,Oxfordshire County Council,MASH PROJECT,2040,Agency Staff,15/09/2015,2200029252,"1,387.50",Eden Brown Recruitment Ltd
http://statistics.data.gov.uk/id/local-authority/38,Oxfordshire County Council,FAMILY SUPPORT S'TH2,2040,Agency Staff,11/09/2015,2200026897,"1,431.15",Eden Brown Recruitment Ltd
http://statistics.data.gov.uk/id/local-authority/38,Oxfordshire County Council,FAMILY SUPPORT S'TH2,2040,Agency Staff,11/09/2015,2200026898,"1,432.05",Eden Brown Recruitment Ltd
http://statistics.data.gov.uk/id/local-authority/38,Oxfordshire County Council,LOOKED AFTER NORTH,2040,Agency Staff,09/09/2015,2200024767,"1,446.81",Eden Brown Recruitment Ltd
http://statistics.data.gov.uk/id/local-authority/38,Oxfordshire County Council,ASSESSMENT TEAM NORT,2040,Agency Staff,09/09/2015,2200024772,"1,459.65",Eden Brown Recruitment Ltd
http://statistics.data.gov.uk/id/local-authority/38,Oxfordshire County Council,ASSESSMENT TEAM NORT,2040,Agency Staff,18/09/2015,2200029739,"1,459.65",Eden Brown Recruitment Ltd
http://statistics.data.gov.uk/id/local-authority/38,Oxfordshire County Council,LOOKED AFTER NORTH,2040,Agency Staff,18/09/2015,2200030131,"1,467.75",Eden Brown Recruitment Ltd
http://statistics.data.gov.uk/id/local-authority/38,Oxfordshire County Council,DEPUTY DIRECTOR &MAN,2040,Agency Staff,21/09/2015,2200030337,"1,300.00",Finch Training Services
http://statistics.data.gov.uk/id/local-authority/38,Oxfordshire County Council,DEPUTY DIRECTOR &MAN,2040,Agency Staff,04/09/2015,2200021943,"10,720.00",GatenbySanderson Ltd
http://statistics.data.gov.uk/id/local-authority/38,Oxfordshire County Council,ASSESS TEAM SOUTH,2040,Agency Staff,09/09/2015,2200025610,639,HCL Social Care Ltd
http://statistics.data.gov.uk/id/local-authority/38,Oxfordshire County Council,LEARN DISAB TEAM CTY,2040,Agency Staff,03/09/2015,2200021513,672,HCL Social Care Ltd
http://statistics.data.gov.uk/id/local-authority/38,Oxfordshire County Council,EAST OXFORD HUB,2040,Agency Staff,01/09/2015,2200031463,810,HCL Social Care Ltd
http://statistics.data.gov.uk/id/local-authority/38,Oxfordshire County Council,LOOKED AFTER NORTH,2040,Agency Staff,21/09/2015,2200031746,822.5,HCL Social Care Ltd
http://statistics.data.gov.uk/id/local-authority/38,Oxfordshire County Council,LOCALITY TEAM -SOUTH,2040,Agency Staff,02/09/2015,2200020610,828,HCL Social Care Ltd
http://statistics.data.gov.uk/id/local-authority/38,Oxfordshire County Council,ASSESS TEAM SOUTH,2040,Agency Staff,23/09/2015,2200034333,828,HCL Social Care Ltd
http://statistics.data.gov.uk/id/local-authority/38,Oxfordshire County Council,FAM SUPP NORTH,2040,Agency Staff,23/09/2015,2200033625,882,HCL Social Care Ltd
http://statistics.data.gov.uk/id/local-authority/38,Oxfordshire County Council,LEARN DISAB TEAM CTY,2040,Agency Staff,08/09/2015,2200023569,896,HCL Social Care Ltd
http://statistics.data.gov.uk/id/local-authority/38,Oxfordshire County Council,LEARN DISAB TEAM CTY,2040,Agency Staff,16/09/2015,2200028105,896,HCL Social Care Ltd
http://statistics.data.gov.uk/id/local-authority/38,Oxfordshire County Council,LOCALITY TEAM -SOUTH,2040,Agency Staff,23/09/2015,2200035122,948.75,HCL Social Care Ltd
http://statistics.data.gov.uk/id/local-authority/38,Oxfordshire County Council,LOCALITY TEAM -SOUTH,2040,Agency Staff,08/09/2015,2200033344,983.25,HCL Social Care Ltd
http://statistics.data.gov.uk/id/local-authority/38,Oxfordshire County Council,ASSESS TEAM SOUTH,2040,Agency Staff,15/09/2015,2200027245,"1,026.00",HCL Social Care Ltd
http://statistics.data.gov.uk/id/local-authority/38,Oxfordshire County Council,LOOKED AFTER NORTH,2040,Agency Staff,21/09/2015,2200031756,"1,067.50",HCL Social Care Ltd
http://statistics.data.gov.uk/id/local-authority/38,Oxfordshire County Council,EAST OXFORD HUB,2040,Agency Staff,14/09/2015,2200031451,"1,080.00",HCL Social Care Ltd
http://statistics.data.gov.uk/id/local-authority/38,Oxfordshire County Council,LOOKED AFTER NORTH,2040,Agency Staff,09/09/2015,2200024764,"1,085.00",HCL Social Care Ltd
http://statistics.data.gov.uk/id/local-authority/38,Oxfordshire County Council,LEARN DISAB TEAM CTY,2040,Agency Staff,23/09/2015,2200034605,"1,120.00",HCL Social Care Ltd
http://statistics.data.gov.uk/id/local-authority/38,Oxfordshire County Council,LOCALITY TEAM -SOUTH,2040,Agency Staff,01/09/2015,2200031310,"1,121.25",HCL Social Care Ltd
http://statistics.data.gov.uk/id/local-authority/38,Oxfordshire County Council,EAST OXFORD HUB,2040,Agency Staff,09/09/2015,2200031456,"1,152.00",HCL Social Care Ltd
http://statistics.data.gov.uk/id/local-authority/38,Oxfordshire County Council,LD ILF,2040,Agency Staff,15/09/2015,2200034623,"1,184.00",HCL Social Care Ltd
http://statistics.data.gov.uk/id/local-authority/38,Oxfordshire County Council,LD ILF,2040,Agency Staff,22/09/2015,2200030817,"1,184.00",HCL Social Care Ltd
http://statistics.data.gov.uk/id/local-authority/38,Oxfordshire County Council,EAST OXFORD HUB,2040,Agency Staff,11/09/2015,2200031454,"1,188.00",HCL Social Care Ltd
http://statistics.data.gov.uk/id/local-authority/38,Oxfordshire County Council,CENTRAL HOSP TEAM,2040,Agency Staff,10/09/2015,2200026815,"1,221.00",HCL Social Care Ltd
http://statistics.data.gov.uk/id/local-authority/38,Oxfordshire County Council,CENTRAL HOSP TEAM,2040,Agency Staff,15/09/2015,2200027321,"1,221.00",HCL Social Care Ltd
http://statistics.data.gov.uk/id/local-authority/38,Oxfordshire County Council,CENTRAL HOSP TEAM,2040,Agency Staff,23/09/2015,2200032180,"1,221.00",HCL Social Care Ltd
http://statistics.data.gov.uk/id/local-authority/38,Oxfordshire County Council,LOCALITY TEAM -SOUTH,2040,Agency Staff,01/09/2015,2200021401,"1,276.50",HCL Social Care Ltd
http://statistics.data.gov.uk/id/local-authority/38,Oxfordshire County Council,LOCALITY TEAM - CITY,2040,Agency Staff,30/09/2015,2200036635,"1,280.00",HCL Social Care Ltd
http://statistics.data.gov.uk/id/local-authority/38,Oxfordshire County Council,LOOKED AFTER NORTH,2040,Agency Staff,21/09/2015,2200031741,"1,295.00",HCL Social Care Ltd
http://statistics.data.gov.uk/id/local-authority/38,Oxfordshire County Council,LOOKED AFTER NORTH,2040,Agency Staff,21/09/2015,2200031750,"1,295.00",HCL Social Care Ltd
http://statistics.data.gov.uk/id/local-authority/38,Oxfordshire County Council,LOOKED AFTER NORTH,2040,Agency Staff,21/09/2015,2200031753,"1,295.00",HCL Social Care Ltd
http://statistics.data.gov.uk/id/local-authority/38,Oxfordshire County Council,LOOKED AFTER NORTH,2040,Agency Staff,23/09/2015,2200031731,"1,295.00",HCL Social Care Ltd
http://statistics.data.gov.uk/id/local-authority/38,Oxfordshire County Council,ASSESS TEAM SOUTH,2040,Agency Staff,03/09/2015,2200025577,"1,296.00",HCL Social Care Ltd
http://statistics.data.gov.uk/id/local-authority/38,Oxfordshire County Council,EAST OXFORD HUB,2040,Agency Staff,21/09/2015,2200031445,"1,314.00",HCL Social Care Ltd
http://statistics.data.gov.uk/id/local-authority/38,Oxfordshire County Council,ASSESS TEAM SOUTH,2040,Agency Staff,01/09/2015,2200019902,"1,332.00",HCL Social Care Ltd
http://statistics.data.gov.uk/id/local-authority/38,Oxfordshire County Council,ASSESS TEAM SOUTH,2040,Agency Staff,14/09/2015,2200025580,"1,332.00",HCL Social Care Ltd
http://statistics.data.gov.uk/id/local-authority/38,Oxfordshire County Council,EAST OXFORD HUB,2040,Agency Staff,14/09/2015,2200031453,"1,332.00",HCL Social Care Ltd
http://statistics.data.gov.uk/id/local-authority/38,Oxfordshire County Council,MTFC,2040,Agency Staff,09/09/2015,2200025692,"2,960.00",IW4C Ltd
http://statistics.data.gov.uk/id/local-authority/38,Oxfordshire County Council,MTFC,2040,Agency Staff,15/09/2015,2200027222,"2,960.00",IW4C Ltd
http://statistics.data.gov.uk/id/local-authority/38,Oxfordshire County Council,ROUNDABOUT DAYCARE,2040,Agency Staff,01/09/2015,2200020894,567.45,Kanga Group
http://statistics.data.gov.uk/id/local-authority/38,Oxfordshire County Council,ROUNDABOUT DAYCARE,2040,Agency Staff,01/09/2015,2200020890,611,Kanga Group
http://statistics.data.gov.uk/id/local-authority/38,Oxfordshire County Council,ROUNDABOUT DAYCARE,2040,Agency Staff,01/09/2015,2200020905,735.18,Kanga Group
http://statistics.data.gov.uk/id/local-authority/38,Oxfordshire County Council,ROUNDABOUT DAYCARE,2040,Agency Staff,01/09/2015,2200020895,756.45,Kanga Group
http://statistics.data.gov.uk/id/local-authority/38,Oxfordshire County Council,ROUNDABOUT DAYCARE,2040,Agency Staff,01/09/2015,2200020896,809.68,Kanga Group
http://statistics.data.gov.uk/id/local-authority/38,Oxfordshire County Council,ROUNDABOUT DAYCARE,2040,Agency Staff,07/09/2015,2200021814,910.7,Kanga Group
http://statistics.data.gov.uk/id/local-authority/38,Oxfordshire County Council,ROUNDABOUT DAYCARE,2040,Agency Staff,01/09/2015,2200020893,"1,044.00",Kanga Group
http://statistics.data.gov.uk/id/local-authority/38,Oxfordshire County Council,ROUNDABOUT DAYCARE,2040,Agency Staff,01/09/2015,2200020892,"1,045.80",Kanga Group
http://statistics.data.gov.uk/id/local-authority/38,Oxfordshire County Council,RESIDENTIAL STRATEGY,2040,Agency Staff,17/09/2015,2200029518,678.35,Liquid Personnel Ltd
http://statistics.data.gov.uk/id/local-authority/38,Oxfordshire County Council,NORTH&WEST HOSP TEAM,2040,Agency Staff,16/09/2015,2200028083,783,Liquid Personnel Ltd
http://statistics.data.gov.uk/id/local-authority/38,Oxfordshire County Council,NORTH&WEST HOSP TEAM,2040,Agency Staff,23/09/2015,2200032359,783,Liquid Personnel Ltd
http://statistics.data.gov.uk/id/local-authority/38,Oxfordshire County Council,EAST OXFORD HUB,2040,Agency Staff,10/09/2015,2200031457,812.38,Liquid Personnel Ltd
http://statistics.data.gov.uk/id/local-authority/38,Oxfordshire County Council,NORTH&WEST HOSP TEAM,2040,Agency Staff,01/09/2015,2200026703,864,Liquid Personnel Ltd
http://statistics.data.gov.uk/id/local-authority/38,Oxfordshire County Council,NORTH&WEST HOSP TEAM,2040,Agency Staff,03/09/2015,2200027545,864,Liquid Personnel Ltd
http://statistics.data.gov.uk/id/local-authority/38,Oxfordshire County Council,RESIDENTIAL STRATEGY,2040,Agency Staff,16/09/2015,2200028170,915,Liquid Personnel Ltd
http://statistics.data.gov.uk/id/local-authority/38,Oxfordshire County Council,SOUTH HOSPITAL TEAM,2040,Agency Staff,25/09/2015,2200034188,949.44,Liquid Personnel Ltd
http://statistics.data.gov.uk/id/local-authority/38,Oxfordshire County Council,RESIDENTIAL STRATEGY,2040,Agency Staff,03/09/2015,2200020851,977.44,Liquid Personnel Ltd
http://statistics.data.gov.uk/id/local-authority/38,Oxfordshire County Council,SOUTH HOSPITAL TEAM,2040,Agency Staff,10/09/2015,2200026811,"1,000.60",Liquid Personnel Ltd
http://statistics.data.gov.uk/id/local-authority/38,Oxfordshire County Council,MASH PROJECT,2040,Agency Staff,10/09/2015,2200024176,"1,003.00",Liquid Personnel Ltd
http://statistics.data.gov.uk/id/local-authority/38,Oxfordshire County Council,RESIDENTIAL STRATEGY,2040,Agency Staff,04/09/2015,2200021413,"1,030.46",Liquid Personnel Ltd
http://statistics.data.gov.uk/id/local-authority/38,Oxfordshire County Council,ASSESSMENT TEAM NORT,2040,Agency Staff,16/09/2015,2200028906,"1,034.64",Liquid Personnel Ltd
http://statistics.data.gov.uk/id/local-authority/38,Oxfordshire County Council,NORTH&WEST HOSP TEAM,2040,Agency Staff,21/09/2015,2200031018,"1,044.00",Liquid Personnel Ltd
http://statistics.data.gov.uk/id/local-authority/38,Oxfordshire County Council,NORTH&WEST HOSP TEAM,2040,Agency Staff,21/09/2015,2200031033,"1,044.00",Liquid Personnel Ltd
http://statistics.data.gov.uk/id/local-authority/38,Oxfordshire County Council,NORTH&WEST HOSP TEAM,2040,Agency Staff,30/09/2015,2200036461,"1,044.00",Liquid Personnel Ltd
http://statistics.data.gov.uk/id/local-authority/38,Oxfordshire County Council,ASSESSMENT TEAM NORT,2040,Agency Staff,10/09/2015,2200026769,"1,052.35",Liquid Personnel Ltd
http://statistics.data.gov.uk/id/local-authority/38,Oxfordshire County Council,RESIDENTIAL STRATEGY,2040,Agency Staff,28/09/2015,2200034253,"1,053.00",Liquid Personnel Ltd
http://statistics.data.gov.uk/id/local-authority/38,Oxfordshire County Council,ADULT PROTECTION,2040,Agency Staff,10/09/2015,2200024180,"1,054.00",Liquid Personnel Ltd
http://statistics.data.gov.uk/id/local-authority/38,Oxfordshire County Council,ASSESSMENT TEAM NORT,2040,Agency Staff,10/09/2015,2200026768,"1,057.25",Liquid Personnel Ltd
http://statistics.data.gov.uk/id/local-authority/38,Oxfordshire County Council,RESIDENTIAL STRATEGY,2040,Agency Staff,01/09/2015,2200020335,"1,058.87",Liquid Personnel Ltd
http://statistics.data.gov.uk/id/local-authority/38,Oxfordshire County Council,RESIDENTIAL STRATEGY,2040,Agency Staff,17/09/2015,2200029522,"1,061.50",Liquid Personnel Ltd
http://statistics.data.gov.uk/id/local-authority/38,Oxfordshire County Council,RESIDENTIAL STRATEGY,2040,Agency Staff,16/09/2015,2200028174,"1,067.75",Liquid Personnel Ltd
http://statistics.data.gov.uk/id/local-authority/38,Oxfordshire County Council,FAMILY SUPPORT N'TH2,2040,Agency Staff,10/09/2015,2200024768,"1,140.20",Liquid Personnel Ltd
http://statistics.data.gov.uk/id/local-authority/38,Oxfordshire County Council,RESIDENTIAL STRATEGY,2040,Agency Staff,17/09/2015,2200029520,"1,147.16",Liquid Personnel Ltd
http://statistics.data.gov.uk/id/local-authority/38,Oxfordshire County Council,NORTH&WEST HOSP TEAM,2040,Agency Staff,21/09/2015,2200031004,"1,152.00",Liquid Personnel Ltd
http://statistics.data.gov.uk/id/local-authority/38,Oxfordshire County Council,NORTH&WEST HOSP TEAM,2040,Agency Staff,21/09/2015,2200031298,"1,152.00",Liquid Personnel Ltd
http://statistics.data.gov.uk/id/local-authority/38,Oxfordshire County Council,NORTH&WEST HOSP TEAM,2040,Agency Staff,23/09/2015,2200032177,"1,152.00",Liquid Personnel Ltd
http://statistics.data.gov.uk/id/local-authority/38,Oxfordshire County Council,LOCALITY TEAM - VALE,2040,Agency Staff,16/09/2015,2200028806,"1,193.59",Liquid Personnel Ltd
http://statistics.data.gov.uk/id/local-authority/38,Oxfordshire County Council,SOUTH HOSPITAL TEAM,2040,Agency Staff,01/09/2015,2200026745,"1,216.00",Liquid Personnel Ltd
http://statistics.data.gov.uk/id/local-authority/38,Oxfordshire County Council,NORTH&WEST HOSP TEAM,2040,Agency Staff,03/09/2015,2200026779,"1,218.00",Liquid Personnel Ltd
http://statistics.data.gov.uk/id/local-authority/38,Oxfordshire County Council,EAST OXFORD HUB,2040,Agency Staff,23/09/2015,2200031459,"1,223.64",Liquid Personnel Ltd
http://statistics.data.gov.uk/id/local-authority/38,Oxfordshire County Council,LOCALITY TEAM - VALE,2040,Agency Staff,10/09/2015,2200026925,"1,227.76",Liquid Personnel Ltd
http://statistics.data.gov.uk/id/local-authority/38,Oxfordshire County Council,SOUTH HOSPITAL TEAM,2040,Agency Staff,16/09/2015,2200029250,"1,240.00",Liquid Personnel Ltd
http://statistics.data.gov.uk/id/local-authority/38,Oxfordshire County Council,SOUTH HOSPITAL TEAM,2040,Agency Staff,25/09/2015,2200034189,"1,246.80",Liquid Personnel Ltd
http://statistics.data.gov.uk/id/local-authority/38,Oxfordshire County Council,MASH PROJECT,2040,Agency Staff,16/09/2015,2200029067,"1,258.00",Liquid Personnel Ltd
http://statistics.data.gov.uk/id/local-authority/38,Oxfordshire County Council,ASSESSMENT TEAM NORT,2040,Agency Staff,23/09/2015,2200033620,"1,258.00",Liquid Personnel Ltd
http://statistics.data.gov.uk/id/local-authority/38,Oxfordshire County Council,LEARN DISAB TEAM NTH,2040,Agency Staff,23/09/2015,2200034657,"1,258.00",Liquid Personnel Ltd
http://statistics.data.gov.uk/id/local-authority/38,Oxfordshire County Council,ASSESSMENT TEAM NORT,2040,Agency Staff,16/09/2015,2200028905,"1,260.80",Liquid Personnel Ltd
http://statistics.data.gov.uk/id/local-authority/38,Oxfordshire County Council,LITTLEMORE HUB,2040,Agency Staff,03/09/2015,2200020839,"1,296.00",Liquid Personnel Ltd
http://statistics.data.gov.uk/id/local-authority/38,Oxfordshire County Council,LITTLEMORE HUB,2040,Agency Staff,03/09/2015,2200020976,"1,296.00",Liquid Personnel Ltd
http://statistics.data.gov.uk/id/local-authority/38,Oxfordshire County Council,LITTLEMORE HUB,2040,Agency Staff,03/09/2015,2200020980,"1,296.00",Liquid Personnel Ltd
http://statistics.data.gov.uk/id/local-authority/38,Oxfordshire County Council,LITTLEMORE HUB,2040,Agency Staff,16/09/2015,2200028162,"1,296.00",Liquid Personnel Ltd
http://statistics.data.gov.uk/id/local-authority/38,Oxfordshire County Council,ASSESSMENT TEAM NORT,2040,Agency Staff,03/09/2015,2200020815,"1,306.30",Liquid Personnel Ltd
http://statistics.data.gov.uk/id/local-authority/38,Oxfordshire County Council,SOUTH HOSPITAL TEAM,2040,Agency Staff,24/09/2015,2200033516,"1,308.06",Liquid Personnel Ltd
http://statistics.data.gov.uk/id/local-authority/38,Oxfordshire County Council,LOCALITY TEAM - VALE,2040,Agency Staff,03/09/2015,2200022751,"1,311.11",Liquid Personnel Ltd
http://statistics.data.gov.uk/id/local-authority/38,Oxfordshire County Council,ASSESSMENT TEAM NORT,2040,Agency Staff,23/09/2015,2200033629,"1,311.55",Liquid Personnel Ltd
http://statistics.data.gov.uk/id/local-authority/38,Oxfordshire County Council,ADULT PROTECTION,2040,Agency Staff,10/09/2015,2200024179,"1,326.00",Liquid Personnel Ltd
http://statistics.data.gov.uk/id/local-authority/38,Oxfordshire County Council,ADULT PROTECTION,2040,Agency Staff,14/09/2015,2200026442,"1,326.00",Liquid Personnel Ltd
http://statistics.data.gov.uk/id/local-authority/38,Oxfordshire County Council,ASSESSMENT TEAM NORT,2040,Agency Staff,01/09/2015,2200022150,"1,327.65",Liquid Personnel Ltd
http://statistics.data.gov.uk/id/local-authority/38,Oxfordshire County Council,EAST OXFORD HUB,2040,Agency Staff,23/09/2015,2200031461,"1,338.65",Liquid Personnel Ltd
http://statistics.data.gov.uk/id/local-authority/38,Oxfordshire County Council,ASSESSMENT TEAM NORT,2040,Agency Staff,16/09/2015,2200029288,"1,339.20",Liquid Personnel Ltd
http://statistics.data.gov.uk/id/local-authority/38,Oxfordshire County Council,FAMILY SUPPORT N'TH2,2040,Agency Staff,03/09/2015,2200020814,"1,353.70",Liquid Personnel Ltd
http://statistics.data.gov.uk/id/local-authority/38,Oxfordshire County Council,EAST OXFORD HUB,2040,Agency Staff,16/09/2015,2200031448,"1,362.67",Liquid Personnel Ltd
http://statistics.data.gov.uk/id/local-authority/38,Oxfordshire County Council,RESIDENTIAL STRATEGY,2040,Agency Staff,16/09/2015,2200029517,"1,365.70",Liquid Personnel Ltd
http://statistics.data.gov.uk/id/local-authority/38,Oxfordshire County Council,EAST OXFORD HUB,2040,Agency Staff,23/09/2015,2200031458,"1,369.08",Liquid Personnel Ltd
http://statistics.data.gov.uk/id/local-authority/38,Oxfordshire County Council,FAMILY SUPPORT N'TH2,2040,Agency Staff,30/09/2015,2200036613,"1,375.30",Liquid Personnel Ltd
http://statistics.data.gov.uk/id/local-authority/38,Oxfordshire County Council,ASSESSMENT TEAM NORT,2040,Agency Staff,23/09/2015,2200033626,"1,393.45",Liquid Personnel Ltd
http://statistics.data.gov.uk/id/local-authority/38,Oxfordshire County Council,RESIDENTIAL STRATEGY,2040,Agency Staff,16/09/2015,2200028168,"1,413.80",Liquid Personnel Ltd
http://statistics.data.gov.uk/id/local-authority/38,Oxfordshire County Council,FAMILY SUPPORT N'TH2,2040,Agency Staff,23/09/2015,2200033628,"1,424.40",Liquid Personnel Ltd
http://statistics.data.gov.uk/id/local-authority/38,Oxfordshire County Council,FAMILY SUPPORT N'TH2,2040,Agency Staff,03/09/2015,2200020813,"1,424.75",Liquid Personnel Ltd
http://statistics.data.gov.uk/id/local-authority/38,Oxfordshire County Council,RESIDENTIAL STRATEGY,2040,Agency Staff,23/09/2015,2200032356,"1,425.65",Liquid Personnel Ltd
http://statistics.data.gov.uk/id/local-authority/38,Oxfordshire County Council,NORTH&WEST HOSP TEAM,2040,Agency Staff,01/09/2015,2200026729,"1,426.80",Liquid Personnel Ltd
http://statistics.data.gov.uk/id/local-authority/38,Oxfordshire County Council,NORTH&WEST HOSP TEAM,2040,Agency Staff,21/09/2015,2200031032,"1,440.00",Liquid Personnel Ltd
http://statistics.data.gov.uk/id/local-authority/38,Oxfordshire County Council,FAMILY SUPPORT N'TH2,2040,Agency Staff,16/09/2015,2200028907,"1,476.90",Liquid Personnel Ltd
http://statistics.data.gov.uk/id/local-authority/38,Oxfordshire County Council,NORTH&WEST HOSP TEAM,2040,Agency Staff,10/09/2015,2200026806,"1,566.00",Liquid Personnel Ltd
http://statistics.data.gov.uk/id/local-authority/38,Oxfordshire County Council,NORTH&WEST HOSP TEAM,2040,Agency Staff,23/09/2015,2200032179,"1,566.00",Liquid Personnel Ltd
http://statistics.data.gov.uk/id/local-authority/38,Oxfordshire County Council,NORTH&WEST HOSP TEAM,2040,Agency Staff,16/09/2015,2200028082,"1,728.00",Liquid Personnel Ltd
http://statistics.data.gov.uk/id/local-authority/38,Oxfordshire County Council,NORTH&WEST HOSP TEAM,2040,Agency Staff,21/09/2015,2200031010,"1,728.00",Liquid Personnel Ltd
http://statistics.data.gov.uk/id/local-authority/38,Oxfordshire County Council,NORTH&WEST HOSP TEAM,2040,Agency Staff,21/09/2015,2200031030,"1,728.00",Liquid Personnel Ltd
http://statistics.data.gov.uk/id/local-authority/38,Oxfordshire County Council,NORTH&WEST HOSP TEAM,2040,Agency Staff,30/09/2015,2200036462,"1,728.00",Liquid Personnel Ltd
http://statistics.data.gov.uk/id/local-authority/38,Oxfordshire County Council,NORTH&WEST HOSP TEAM,2040,Agency Staff,21/09/2015,2200031023,"1,757.40",Liquid Personnel Ltd
http://statistics.data.gov.uk/id/local-authority/38,Oxfordshire County Council,RESIDENTIAL STRATEGY,2040,Agency Staff,01/09/2015,2200020334,"1,767.75",Liquid Personnel Ltd
http://statistics.data.gov.uk/id/local-authority/38,Oxfordshire County Council,NORTH&WEST HOSP TEAM,2040,Agency Staff,21/09/2015,2200031022,"1,827.00",Liquid Personnel Ltd
http://statistics.data.gov.uk/id/local-authority/38,Oxfordshire County Council,NORTH&WEST HOSP TEAM,2040,Agency Staff,21/09/2015,2200031028,"1,827.00",Liquid Personnel Ltd
http://statistics.data.gov.uk/id/local-authority/38,Oxfordshire County Council,OSCB,2040,Agency Staff,15/09/2015,2200029323,"1,300.00",M Blyth Associates Ltd
http://statistics.data.gov.uk/id/local-authority/38,Oxfordshire County Council,CORPORATE FINANCE,2040,Agency Staff,17/09/2015,2200028707,"-2,370.00",Michael Page International Recruitm
http://statistics.data.gov.uk/id/local-authority/38,Oxfordshire County Council,CORPORATE FINANCE,2040,Agency Staff,17/09/2015,2200028710,"-1,580.00",Michael Page International Recruitm
http://statistics.data.gov.uk/id/local-authority/38,Oxfordshire County Council,CORPORATE FINANCE,2040,Agency Staff,08/09/2015,2200023643,790,Michael Page International Recruitm
http://statistics.data.gov.uk/id/local-authority/38,Oxfordshire County Council,CORPORATE FINANCE,2040,Agency Staff,01/09/2015,2200020064,"1,580.00",Michael Page International Recruitm
http://statistics.data.gov.uk/id/local-authority/38,Oxfordshire County Council,CORPORATE FINANCE,2040,Agency Staff,04/09/2015,2200021506,"1,580.00",Michael Page International Recruitm
http://statistics.data.gov.uk/id/local-authority/38,Oxfordshire County Council,CORPORATE FINANCE,2040,Agency Staff,08/09/2015,2200022499,"1,580.00",Michael Page International Recruitm
http://statistics.data.gov.uk/id/local-authority/38,Oxfordshire County Council,CORPORATE FINANCE,2040,Agency Staff,17/09/2015,2200028712,"1,580.00",Michael Page International Recruitm
http://statistics.data.gov.uk/id/local-authority/38,Oxfordshire County Council,CORPORATE FINANCE,2040,Agency Staff,04/09/2015,2200021507,"1,975.00",Michael Page International Recruitm
http://statistics.data.gov.uk/id/local-authority/38,Oxfordshire County Council,CORPORATE FINANCE,2040,Agency Staff,08/09/2015,2200023641,"2,370.00",Michael Page International Recruitm
http://statistics.data.gov.uk/id/local-authority/38,Oxfordshire County Council,CORPORATE FINANCE,2040,Agency Staff,17/09/2015,2200028708,"2,370.00",Michael Page International Recruitm
http://statistics.data.gov.uk/id/local-authority/38,Oxfordshire County Council,EYASP,2040,Agency Staff,25/09/2015,2200035499,"11,605.75",Oxford Health NHS
http://statistics.data.gov.uk/id/local-authority/38,Oxfordshire County Council,GREENWOOD CENTRE,2040,Agency Staff,09/09/2015,2200024376,"1,569.69",Paterson Recruitment
http://statistics.data.gov.uk/id/local-authority/38,Oxfordshire County Council,MANAGEMENT,2040,Agency Staff,07/09/2015,2200021944,"10,980.00",Penna Plc
http://statistics.data.gov.uk/id/local-authority/38,Oxfordshire County Council,LOCALITY TEAM -SOUTH,2040,Agency Staff,01/09/2015,2200022365,988.25,Proactivity OT Ltd
http://statistics.data.gov.uk/id/local-authority/38,Oxfordshire County Council,LOCALITY TEAM -SOUTH,2040,Agency Staff,01/09/2015,2200021458,"1,337.45",Proactivity OT Ltd
http://statistics.data.gov.uk/id/local-authority/38,Oxfordshire County Council,LOCALITY TEAM -SOUTH,2040,Agency Staff,01/09/2015,2200022862,"1,337.45",Proactivity OT Ltd
http://statistics.data.gov.uk/id/local-authority/38,Oxfordshire County Council,LOCALITY TEAM - CITY,2040,Agency Staff,07/09/2015,2200022015,"-1,395.35",Randstad Care Ltd
http://statistics.data.gov.uk/id/local-authority/38,Oxfordshire County Council,LOCALITY TEAM - CITY,2040,Agency Staff,07/09/2015,2200021995,"-1,362.90",Randstad Care Ltd
http://statistics.data.gov.uk/id/local-authority/38,Oxfordshire County Council,LOCALITY TEAM - CITY,2040,Agency Staff,07/09/2015,2200021986,"-1,265.55",Randstad Care Ltd
http://statistics.data.gov.uk/id/local-authority/38,Oxfordshire County Council,CENTRAL HOSP TEAM,2040,Agency Staff,18/09/2015,2200029559,"-1,183.22",Randstad Care Ltd
http://statistics.data.gov.uk/id/local-authority/38,Oxfordshire County Council,LOCALITY TEAM - CITY,2040,Agency Staff,07/09/2015,2200021948,-941.05,Randstad Care Ltd
http://statistics.data.gov.uk/id/local-authority/38,Oxfordshire County Council,LOCALITY TEAM -SOUTH,2040,Agency Staff,18/09/2015,2200029842,549.44,Randstad Care Ltd
http://statistics.data.gov.uk/id/local-authority/38,Oxfordshire County Council,LOCALITY TEAM -SOUTH,2040,Agency Staff,01/09/2015,2200022845,618.12,Randstad Care Ltd
http://statistics.data.gov.uk/id/local-authority/38,Oxfordshire County Council,LOCALITY TEAM - CITY,2040,Agency Staff,02/09/2015,2200020580,695.4,Randstad Care Ltd
http://statistics.data.gov.uk/id/local-authority/38,Oxfordshire County Council,LOCALITY TM CHERWELL,2040,Agency Staff,01/09/2015,2200027405,727.65,Randstad Care Ltd
http://statistics.data.gov.uk/id/local-authority/38,Oxfordshire County Council,LOCALITY TM CHERWELL,2040,Agency Staff,07/09/2015,2200027560,921.69,Randstad Care Ltd
http://statistics.data.gov.uk/id/local-authority/38,Oxfordshire County Council,LOCALITY TM CHERWELL,2040,Agency Staff,16/09/2015,2200027419,962.12,Randstad Care Ltd
http://statistics.data.gov.uk/id/local-authority/38,Oxfordshire County Council,LOCALITY TM CHERWELL,2040,Agency Staff,21/09/2015,2200033891,978.29,Randstad Care Ltd
http://statistics.data.gov.uk/id/local-authority/38,Oxfordshire County Council,CENTRAL HOSP TEAM,2040,Agency Staff,28/09/2015,2200034456,983.24,Randstad Care Ltd
http://statistics.data.gov.uk/id/local-authority/38,Oxfordshire County Council,LOCALITY TM CHERWELL,2040,Agency Staff,15/09/2015,2200027454,994.46,Randstad Care Ltd
http://statistics.data.gov.uk/id/local-authority/38,Oxfordshire County Council,LOCALITY TEAM - CITY,2040,Agency Staff,08/09/2015,2200027086,"1,008.33",Randstad Care Ltd
http://statistics.data.gov.uk/id/local-authority/38,Oxfordshire County Council,LOCALITY TEAM -SOUTH,2040,Agency Staff,01/09/2015,2200022841,"1,098.88",Randstad Care Ltd
http://statistics.data.gov.uk/id/local-authority/38,Oxfordshire County Council,LOCALITY TEAM -SOUTH,2040,Agency Staff,25/09/2015,2200034343,"1,150.39",Randstad Care Ltd
http://statistics.data.gov.uk/id/local-authority/38,Oxfordshire County Council,LOCALITY TEAM - CITY,2040,Agency Staff,16/09/2015,2200028762,"1,286.49",Randstad Care Ltd
http://statistics.data.gov.uk/id/local-authority/38,Oxfordshire County Council,LOCALITY TEAM -SOUTH,2040,Agency Staff,18/09/2015,2200029833,"1,287.75",Randstad Care Ltd
http://statistics.data.gov.uk/id/local-authority/38,Oxfordshire County Council,LOCALITY TEAM -SOUTH,2040,Agency Staff,25/09/2015,2200034330,"1,287.75",Randstad Care Ltd
http://statistics.data.gov.uk/id/local-authority/38,Oxfordshire County Council,LOCALITY TEAM - CITY,2040,Agency Staff,08/09/2015,2200027075,"1,303.88",Randstad Care Ltd
http://statistics.data.gov.uk/id/local-authority/38,Oxfordshire County Council,LOCALITY TEAM - CITY,2040,Agency Staff,25/09/2015,2200033559,"1,338.65",Randstad Care Ltd
http://statistics.data.gov.uk/id/local-authority/38,Oxfordshire County Council,LOCALITY TEAM - CITY,2040,Agency Staff,08/09/2015,2200027083,"1,356.03",Randstad Care Ltd
http://statistics.data.gov.uk/id/local-authority/38,Oxfordshire County Council,LOCALITY TEAM - CITY,2040,Agency Staff,08/09/2015,2200027081,"1,460.34",Randstad Care Ltd
http://statistics.data.gov.uk/id/local-authority/38,Oxfordshire County Council,LOCALITY TEAM - CITY,2040,Agency Staff,08/09/2015,2200027077,"1,495.11",Randstad Care Ltd
http://statistics.data.gov.uk/id/local-authority/38,Oxfordshire County Council,LOCALITY TEAM - CITY,2040,Agency Staff,16/09/2015,2200028760,"1,495.11",Randstad Care Ltd
http://statistics.data.gov.uk/id/local-authority/38,Oxfordshire County Council,LOCALITY TEAM - CITY,2040,Agency Staff,25/09/2015,2200033440,"1,495.11",Randstad Care Ltd
http://statistics.data.gov.uk/id/local-authority/38,Oxfordshire County Council,LOCALITY TEAM -SOUTH,2040,Agency Staff,01/09/2015,2200021817,-740,RIG Healthcare
http://statistics.data.gov.uk/id/local-authority/38,Oxfordshire County Council,LOCALITY TEAM -SOUTH,2040,Agency Staff,28/09/2015,2200035431,669.45,RIG Healthcare
http://statistics.data.gov.uk/id/local-authority/38,Oxfordshire County Council,LOCALITY TEAM -SOUTH,2040,Agency Staff,22/09/2015,2200032221,791.15,RIG Healthcare
http://statistics.data.gov.uk/id/local-authority/38,Oxfordshire County Council,LOCALITY TEAM -SOUTH,2040,Agency Staff,02/09/2015,2200020636,"1,001.25",RIG Healthcare
http://statistics.data.gov.uk/id/local-authority/38,Oxfordshire County Council,LOCALITY TEAM -SOUTH,2040,Agency Staff,29/09/2015,2200035920,"1,001.70",RIG Healthcare
http://statistics.data.gov.uk/id/local-authority/38,Oxfordshire County Council,LOCALITY TEAM -SOUTH,2040,Agency Staff,01/09/2015,2200019793,"1,005.75",RIG Healthcare
http://statistics.data.gov.uk/id/local-authority/38,Oxfordshire County Council,LOCALITY TEAM -SOUTH,2040,Agency Staff,23/09/2015,2200033333,"1,118.55",RIG Healthcare
http://statistics.data.gov.uk/id/local-authority/38,Oxfordshire County Council,LOCALITY TEAM - WEST,2040,Agency Staff,07/09/2015,2200027502,"1,152.00",RIG Healthcare
http://statistics.data.gov.uk/id/local-authority/38,Oxfordshire County Council,LOCALITY TEAM - WEST,2040,Agency Staff,01/09/2015,2200027409,"1,184.00",RIG Healthcare
http://statistics.data.gov.uk/id/local-authority/38,Oxfordshire County Council,LOCALITY TEAM -SOUTH,2040,Agency Staff,28/09/2015,2200035423,"1,221.60",RIG Healthcare
http://statistics.data.gov.uk/id/local-authority/38,Oxfordshire County Council,LOCALITY TEAM -SOUTH,2040,Agency Staff,28/09/2015,2200035443,"1,239.30",RIG Healthcare
http://statistics.data.gov.uk/id/local-authority/38,Oxfordshire County Council,LOCALITY TEAM -SOUTH,2040,Agency Staff,01/09/2015,2200020567,"2,342.40",RIG Healthcare
http://statistics.data.gov.uk/id/local-authority/38,Oxfordshire County Council,MASH PROJECT,2040,Agency Staff,25/09/2015,2200033366,-821.25,Sanctuary Personnel Ltd
http://statistics.data.gov.uk/id/local-authority/38,Oxfordshire County Council,CENTRAL HOSP TEAM,2040,Agency Staff,15/09/2015,2200028081,544,Sanctuary Personnel Ltd
http://statistics.data.gov.uk/id/local-authority/38,Oxfordshire County Council,RESIDENTIAL STRATEGY,2040,Agency Staff,16/09/2015,2200029514,732,Sanctuary Personnel Ltd
http://statistics.data.gov.uk/id/local-authority/38,Oxfordshire County Council,LOCALITY TEAM - VALE,2040,Agency Staff,01/09/2015,2200019958,753.75,Sanctuary Personnel Ltd
http://statistics.data.gov.uk/id/local-authority/38,Oxfordshire County Council,LOCALITY TEAM - VALE,2040,Agency Staff,15/09/2015,2200035702,753.75,Sanctuary Personnel Ltd
http://statistics.data.gov.uk/id/local-authority/38,Oxfordshire County Council,LOCALITY TM CHERWELL,2040,Agency Staff,15/09/2015,2200029934,767.68,Sanctuary Personnel Ltd
http://statistics.data.gov.uk/id/local-authority/38,Oxfordshire County Council,LOCALITY TM CHERWELL,2040,Agency Staff,15/09/2015,2200034761,767.68,Sanctuary Personnel Ltd
http://statistics.data.gov.uk/id/local-authority/38,Oxfordshire County Council,CENTRAL HOSP TEAM,2040,Agency Staff,02/09/2015,2200026856,784,Sanctuary Personnel Ltd
http://statistics.data.gov.uk/id/local-authority/38,Oxfordshire County Council,LOCALITY TM CHERWELL,2040,Agency Staff,22/09/2015,2200033902,816,Sanctuary Personnel Ltd
http://statistics.data.gov.uk/id/local-authority/38,Oxfordshire County Council,CENTRAL HOSP TEAM,2040,Agency Staff,01/09/2015,2200026785,848,Sanctuary Personnel Ltd
http://statistics.data.gov.uk/id/local-authority/38,Oxfordshire County Council,RESIDENTIAL STRATEGY,2040,Agency Staff,16/09/2015,2200029494,884.5,Sanctuary Personnel Ltd
http://statistics.data.gov.uk/id/local-authority/38,Oxfordshire County Council,RESIDENTIAL STRATEGY,2040,Agency Staff,16/09/2015,2200029501,884.5,Sanctuary Personnel Ltd
http://statistics.data.gov.uk/id/local-authority/38,Oxfordshire County Council,RESIDENTIAL STRATEGY,2040,Agency Staff,16/09/2015,2200029492,915,Sanctuary Personnel Ltd
http://statistics.data.gov.uk/id/local-authority/38,Oxfordshire County Council,LOCALITY TEAM - CITY,2040,Agency Staff,15/09/2015,2200028809,920,Sanctuary Personnel Ltd
http://statistics.data.gov.uk/id/local-authority/38,Oxfordshire County Council,LOCALITY TEAM - CITY,2040,Agency Staff,01/09/2015,2200019954,960,Sanctuary Personnel Ltd
http://statistics.data.gov.uk/id/local-authority/38,Oxfordshire County Council,LOCALITY TM CHERWELL,2040,Agency Staff,16/09/2015,2200027423,960,Sanctuary Personnel Ltd
http://statistics.data.gov.uk/id/local-authority/38,Oxfordshire County Council,CENTRAL HOSP TEAM,2040,Agency Staff,01/09/2015,2200019945,"1,024.00",Sanctuary Personnel Ltd
http://statistics.data.gov.uk/id/local-authority/38,Oxfordshire County Council,CENTRAL HOSP TEAM,2040,Agency Staff,15/09/2015,2200028564,"1,040.00",Sanctuary Personnel Ltd
http://statistics.data.gov.uk/id/local-authority/38,Oxfordshire County Council,LOCALITY TEAM - VALE,2040,Agency Staff,04/09/2015,2200026941,"1,069.51",Sanctuary Personnel Ltd
http://statistics.data.gov.uk/id/local-authority/38,Oxfordshire County Council,LOCALITY TM CHERWELL,2040,Agency Staff,15/09/2015,2200027452,"1,088.00",Sanctuary Personnel Ltd
http://statistics.data.gov.uk/id/local-authority/38,Oxfordshire County Council,RESIDENTIAL STRATEGY,2040,Agency Staff,16/09/2015,2200029512,"1,143.75",Sanctuary Personnel Ltd
http://statistics.data.gov.uk/id/local-authority/38,Oxfordshire County Council,LOCALITY TEAM - VALE,2040,Agency Staff,15/09/2015,2200034326,"1,147.13",Sanctuary Personnel Ltd
http://statistics.data.gov.uk/id/local-authority/38,Oxfordshire County Council,RESIDENTIAL STRATEGY,2040,Agency Staff,22/09/2015,2200032379,"1,159.00",Sanctuary Personnel Ltd
http://statistics.data.gov.uk/id/local-authority/38,Oxfordshire County Council,LOCALITY TM CHERWELL,2040,Agency Staff,15/09/2015,2200029958,"1,183.68",Sanctuary Personnel Ltd
http://statistics.data.gov.uk/id/local-authority/38,Oxfordshire County Council,LOCALITY TM CHERWELL,2040,Agency Staff,15/09/2015,2200033904,"1,184.00",Sanctuary Personnel Ltd
http://statistics.data.gov.uk/id/local-authority/38,Oxfordshire County Council,LOCALITY TM CHERWELL,2040,Agency Staff,15/09/2015,2200034019,"1,184.00",Sanctuary Personnel Ltd
http://statistics.data.gov.uk/id/local-authority/38,Oxfordshire County Council,LOCALITY TM CHERWELL,2040,Agency Staff,15/09/2015,2200034028,"1,184.00",Sanctuary Personnel Ltd
http://statistics.data.gov.uk/id/local-authority/38,Oxfordshire County Council,LOCALITY TM CHERWELL,2040,Agency Staff,16/09/2015,2200027422,"1,184.00",Sanctuary Personnel Ltd
http://statistics.data.gov.uk/id/local-authority/38,Oxfordshire County Council,CENTRAL HOSP TEAM,2040,Agency Staff,22/09/2015,2200032176,"1,184.00",Sanctuary Personnel Ltd
http://statistics.data.gov.uk/id/local-authority/38,Oxfordshire County Council,LOCALITY TM CHERWELL,2040,Agency Staff,22/09/2015,2200033897,"1,184.00",Sanctuary Personnel Ltd
http://statistics.data.gov.uk/id/local-authority/38,Oxfordshire County Council,LOCALITY TM CHERWELL,2040,Agency Staff,25/09/2015,2200033905,"1,184.00",Sanctuary Personnel Ltd
http://statistics.data.gov.uk/id/local-authority/38,Oxfordshire County Council,LOCALITY TEAM - CITY,2040,Agency Staff,18/09/2015,2200033848,"1,212.49",Sanctuary Personnel Ltd
http://statistics.data.gov.uk/id/local-authority/38,Oxfordshire County Council,LOCALITY TEAM - CITY,2040,Agency Staff,01/09/2015,2200020136,"1,212.50",Sanctuary Personnel Ltd
http://statistics.data.gov.uk/id/local-authority/38,Oxfordshire County Council,LOCALITY TEAM - CITY,2040,Agency Staff,01/09/2015,2200021434,"1,212.50",Sanctuary Personnel Ltd
http://statistics.data.gov.uk/id/local-authority/38,Oxfordshire County Council,LOCALITY TEAM - CITY,2040,Agency Staff,04/09/2015,2200026962,"1,212.51",Sanctuary Personnel Ltd
http://statistics.data.gov.uk/id/local-authority/38,Oxfordshire County Council,LOCALITY TEAM - CITY,2040,Agency Staff,04/09/2015,2200026970,"1,240.00",Sanctuary Personnel Ltd
http://statistics.data.gov.uk/id/local-authority/38,Oxfordshire County Council,LOCALITY TEAM - CITY,2040,Agency Staff,15/09/2015,2200026913,"1,240.00",Sanctuary Personnel Ltd
http://statistics.data.gov.uk/id/local-authority/38,Oxfordshire County Council,LOCALITY TEAM - CITY,2040,Agency Staff,22/09/2015,2200033358,"1,248.00",Sanctuary Personnel Ltd
http://statistics.data.gov.uk/id/local-authority/38,Oxfordshire County Council,ASSESS TEAM SOUTH,2040,Agency Staff,14/09/2015,2200025576,"1,255.10",Sanctuary Personnel Ltd
http://statistics.data.gov.uk/id/local-authority/38,Oxfordshire County Council,CENTRAL HOSP TEAM,2040,Agency Staff,02/09/2015,2200026832,"1,258.00",Sanctuary Personnel Ltd
http://statistics.data.gov.uk/id/local-authority/38,Oxfordshire County Council,CENTRAL HOSP TEAM,2040,Agency Staff,15/09/2015,2200027315,"1,258.00",Sanctuary Personnel Ltd
http://statistics.data.gov.uk/id/local-authority/38,Oxfordshire County Council,CENTRAL HOSP TEAM,2040,Agency Staff,15/09/2015,2200029261,"1,258.00",Sanctuary Personnel Ltd
http://statistics.data.gov.uk/id/local-authority/38,Oxfordshire County Council,CENTRAL HOSP TEAM,2040,Agency Staff,22/09/2015,2200032182,"1,258.00",Sanctuary Personnel Ltd
http://statistics.data.gov.uk/id/local-authority/38,Oxfordshire County Council,CENTRAL HOSP TEAM,2040,Agency Staff,25/09/2015,2200033314,"1,258.00",Sanctuary Personnel Ltd
http://statistics.data.gov.uk/id/local-authority/38,Oxfordshire County Council,CENTRAL HOSP TEAM,2040,Agency Staff,28/09/2015,2200035681,"1,258.00",Sanctuary Personnel Ltd
http://statistics.data.gov.uk/id/local-authority/38,Oxfordshire County Council,CENTRAL HOSP TEAM,2040,Agency Staff,16/09/2015,2200027354,"1,296.00",Sanctuary Personnel Ltd
http://statistics.data.gov.uk/id/local-authority/38,Oxfordshire County Council,LOCALITY TEAM - VALE,2040,Agency Staff,01/09/2015,2200021433,"1,336.89",Sanctuary Personnel Ltd
http://statistics.data.gov.uk/id/local-authority/38,Oxfordshire County Council,LOCALITY TEAM - VALE,2040,Agency Staff,02/09/2015,2200022774,"1,345.52",Sanctuary Personnel Ltd
http://statistics.data.gov.uk/id/local-authority/38,Oxfordshire County Council,LOCALITY TEAM - VALE,2040,Agency Staff,01/09/2015,2200034320,"1,362.77",Sanctuary Personnel Ltd
http://statistics.data.gov.uk/id/local-authority/38,Oxfordshire County Council,LOCALITY TEAM - VALE,2040,Agency Staff,18/09/2015,2200029464,"1,362.77",Sanctuary Personnel Ltd
http://statistics.data.gov.uk/id/local-authority/38,Oxfordshire County Council,LOCALITY TEAM - VALE,2040,Agency Staff,22/09/2015,2200034355,"1,380.00",Sanctuary Personnel Ltd
http://statistics.data.gov.uk/id/local-authority/38,Oxfordshire County Council,LOCALITY TM CHERWELL,2040,Agency Staff,04/09/2015,2200027498,"1,392.00",Sanctuary Personnel Ltd
http://statistics.data.gov.uk/id/local-authority/38,Oxfordshire County Council,RESIDENTIAL STRATEGY,2040,Agency Staff,16/09/2015,2200029504,"1,403.00",Sanctuary Personnel Ltd
http://statistics.data.gov.uk/id/local-authority/38,Oxfordshire County Council,RESIDENTIAL STRATEGY,2040,Agency Staff,16/09/2015,2200033617,"1,433.50",Sanctuary Personnel Ltd
http://statistics.data.gov.uk/id/local-authority/38,Oxfordshire County Council,LOCALITY TM CHERWELL,2040,Agency Staff,15/09/2015,2200034045,"1,440.00",Sanctuary Personnel Ltd
http://statistics.data.gov.uk/id/local-authority/38,Oxfordshire County Council,LOCALITY TM CHERWELL,2040,Agency Staff,15/09/2015,2200034049,"1,600.00",Sanctuary Personnel Ltd
http://statistics.data.gov.uk/id/local-authority/38,Oxfordshire County Council,MASH PROJECT,2040,Agency Staff,16/09/2015,2200027264,"12,264.96",Sanctuary Personnel Ltd
http://statistics.data.gov.uk/id/local-authority/38,Oxfordshire County Council,LEGAL SERVICES,2040,Agency Staff,23/09/2015,2200031609,557.9,Select Appointments
http://statistics.data.gov.uk/id/local-authority/38,Oxfordshire County Council,LEGAL SERVICES,2040,Agency Staff,23/09/2015,2200031618,573.84,Select Appointments
http://statistics.data.gov.uk/id/local-authority/38,Oxfordshire County Council,FAMILY SUPPORT S'TH2,2040,Agency Staff,21/09/2015,2200034909,"1,372.50",Seven Resourcing Ltd
http://statistics.data.gov.uk/id/local-authority/38,Oxfordshire County Council,FAM SUPP SOUTH,2040,Agency Staff,07/09/2015,2200023712,"1,458.26",Seven Resourcing Ltd
http://statistics.data.gov.uk/id/local-authority/38,Oxfordshire County Council,FAM SUPP SOUTH,2040,Agency Staff,22/09/2015,2200031696,"1,479.00",Seven Resourcing Ltd
http://statistics.data.gov.uk/id/local-authority/38,Oxfordshire County Council,FAM SUPP SOUTH,2040,Agency Staff,09/09/2015,2200023710,"1,503.45",Seven Resourcing Ltd
http://statistics.data.gov.uk/id/local-authority/38,Oxfordshire County Council,FAM SUPP SOUTH,2040,Agency Staff,22/09/2015,2200031861,"1,566.00",Seven Resourcing Ltd
http://statistics.data.gov.uk/id/local-authority/38,Oxfordshire County Council,FAM SUPP SOUTH,2040,Agency Staff,17/09/2015,2200028861,"1,609.50",Seven Resourcing Ltd
http://statistics.data.gov.uk/id/local-authority/38,Oxfordshire County Council,FAM SUPP SOUTH,2040,Agency Staff,22/09/2015,2200031312,"1,609.50",Seven Resourcing Ltd
http://statistics.data.gov.uk/id/local-authority/38,Oxfordshire County Council,FAM SUPP SOUTH,2040,Agency Staff,22/09/2015,2200031336,"1,609.50",Seven Resourcing Ltd
http://statistics.data.gov.uk/id/local-authority/38,Oxfordshire County Council,FAM SUPP SOUTH,2040,Agency Staff,22/09/2015,2200031346,"1,609.50",Seven Resourcing Ltd
http://statistics.data.gov.uk/id/local-authority/38,Oxfordshire County Council,FAM SUPP SOUTH,2040,Agency Staff,22/09/2015,2200031679,"1,609.50",Seven Resourcing Ltd
http://statistics.data.gov.uk/id/local-authority/38,Oxfordshire County Council,FAM SUPP SOUTH,2040,Agency Staff,22/09/2015,2200031852,"1,609.50",Seven Resourcing Ltd
http://statistics.data.gov.uk/id/local-authority/38,Oxfordshire County Council,FAM SUPP SOUTH,2040,Agency Staff,22/09/2015,2200031863,"1,609.50",Seven Resourcing Ltd
http://statistics.data.gov.uk/id/local-authority/38,Oxfordshire County Council,FAM SUPP SOUTH,2040,Agency Staff,22/09/2015,2200031865,"1,609.50",Seven Resourcing Ltd
http://statistics.data.gov.uk/id/local-authority/38,Oxfordshire County Council,FAM SUPP SOUTH,2040,Agency Staff,02/09/2015,2200021497,"1,751.40",Seven Resourcing Ltd
http://statistics.data.gov.uk/id/local-authority/38,Oxfordshire County Council,FAM SUPP SOUTH,2040,Agency Staff,01/09/2015,2200021498,"1,763.78",Seven Resourcing Ltd
http://statistics.data.gov.uk/id/local-authority/38,Oxfordshire County Council,FAM SUPP SOUTH,2040,Agency Staff,22/09/2015,2200030940,"1,827.23",Seven Resourcing Ltd
http://statistics.data.gov.uk/id/local-authority/38,Oxfordshire County Council,FAM SUPP SOUTH,2040,Agency Staff,22/09/2015,2200031311,"1,829.40",Seven Resourcing Ltd
http://statistics.data.gov.uk/id/local-authority/38,Oxfordshire County Council,FAM SUPP SOUTH,2040,Agency Staff,29/09/2015,2200035686,"1,855.95",Seven Resourcing Ltd
http://statistics.data.gov.uk/id/local-authority/38,Oxfordshire County Council,FAM SUPP SOUTH,2040,Agency Staff,15/09/2015,2200027770,"1,862.70",Seven Resourcing Ltd
http://statistics.data.gov.uk/id/local-authority/38,Oxfordshire County Council,FAMILY SUPPORT S'TH2,2040,Agency Staff,01/09/2015,2200020017,"1,695.70",SEVEN SOCIAL CARE LTD
http://statistics.data.gov.uk/id/local-authority/38,Oxfordshire County Council,LOCALITY TEAM - CITY,2040,Agency Staff,02/09/2015,2200020546,"-1,393.20",Sugarman Group Ltd
http://statistics.data.gov.uk/id/local-authority/38,Oxfordshire County Council,LOCALITY TEAM - CITY,2040,Agency Staff,01/09/2015,2200021405,503.55,Sugarman Group Ltd
http://statistics.data.gov.uk/id/local-authority/38,Oxfordshire County Council,LOCALITY TEAM - CITY,2040,Agency Staff,17/09/2015,2200029778,507.78,Sugarman Group Ltd
http://statistics.data.gov.uk/id/local-authority/38,Oxfordshire County Council,LOCALITY TEAM - CITY,2040,Agency Staff,01/09/2015,2200021251,"1,350.00",Sugarman Group Ltd
http://statistics.data.gov.uk/id/local-authority/38,Oxfordshire County Council,LOCALITY TEAM - CITY,2040,Agency Staff,02/09/2015,2200020549,"1,393.20",Sugarman Group Ltd
http://statistics.data.gov.uk/id/local-authority/38,Oxfordshire County Council,LOCALITY TEAM - CITY,2040,Agency Staff,25/09/2015,2200033354,"1,433.70",Sugarman Group Ltd
http://statistics.data.gov.uk/id/local-authority/38,Oxfordshire County Council,COMMENTS&INFORMATION,2040,Agency Staff,15/09/2015,2200027234,"2,316.10",Suzanne Gibbon
http://statistics.data.gov.uk/id/local-authority/38,Oxfordshire County Council,LOCALITY TEAM - CITY,2040,Agency Staff,18/09/2015,2200029578,"-1,276.50",Tempest Resourcing Limited
http://statistics.data.gov.uk/id/local-authority/38,Oxfordshire County Council,LOCALITY TEAM - CITY,2040,Agency Staff,10/09/2015,2200026907,517.5,Tempest Resourcing Limited
http://statistics.data.gov.uk/id/local-authority/38,Oxfordshire County Council,LOCALITY TEAM - CITY,2040,Agency Staff,03/09/2015,2200022475,"1,293.75",Tempest Resourcing Limited
http://statistics.data.gov.uk/id/local-authority/38,Oxfordshire County Council,LOCALITY TEAM - CITY,2040,Agency Staff,18/09/2015,2200029721,"1,293.75",Tempest Resourcing Limited
http://statistics.data.gov.uk/id/local-authority/38,Oxfordshire County Council,LOCALITY TEAM - CITY,2040,Agency Staff,29/09/2015,2200035592,"1,293.75",Tempest Resourcing Limited
http://statistics.data.gov.uk/id/local-authority/38,Oxfordshire County Council,COMMENTS&INFORMATION,2040,Agency Staff,25/09/2015,2200035671,647.4,Tim Yeomans
http://statistics.data.gov.uk/id/local-authority/38,Oxfordshire County Council,LEGAL SERVICES,2040,Agency Staff,11/09/2015,2200027380,572.46,Venn Group
http://statistics.data.gov.uk/id/local-authority/38,Oxfordshire County Council,LEGAL SERVICES,2040,Agency Staff,11/09/2015,2200027372,797.36,Venn Group
http://statistics.data.gov.uk/id/local-authority/38,Oxfordshire County Council,LEGAL SERVICES,2040,Agency Staff,11/09/2015,2200027377,858.69,Venn Group
http://statistics.data.gov.uk/id/local-authority/38,Oxfordshire County Council,LEGAL SERVICES,2040,Agency Staff,01/09/2015,2200021473,"1,667.82",Venn Group
http://statistics.data.gov.uk/id/local-authority/38,Oxfordshire County Council,COMMENTS&INFORMATION,2040,Agency Staff,28/09/2015,2200035949,581.7,Debra Johnson
http://statistics.data.gov.uk/id/local-authority/38,Oxfordshire County Council,COMMENTS&INFORMATION,2040,Agency Staff,28/09/2015,2200035951,"1,279.65",Debra Johnson
http://statistics.data.gov.uk/id/local-authority/38,Oxfordshire County Council,COMMENTS&INFORMATION,2040,Agency Staff,14/09/2015,2200026367,"1,218.90",Stephen Barnett
http://statistics.data.gov.uk/id/local-authority/38,Oxfordshire County Council,COMMENTS&INFORMATION,2040,Agency Staff,15/09/2015,2200027229,682.4,Sylvia West
http://statistics.data.gov.uk/id/local-authority/38,Oxfordshire County Council,COMMENTS&INFORMATION,2040,Agency Staff,01/09/2015,2200020109,676.2,Tim Yeomans
http://statistics.data.gov.uk/id/local-authority/38,Oxfordshire County Council,NCS,2040,Agency Staff,28/09/2015,2200034854,"1,057.68",Wesley Clark
http://statistics.data.gov.uk/id/local-authority/38,Oxfordshire County Council,FM NORTH & WEST STAF,2050,Admin and Clerical Staff - Basic Pay,08/09/2015,2200025813,512.91,Champion Employment Ltd
http://statistics.data.gov.uk/id/local-authority/38,Oxfordshire County Council,SCH CAUSING CONCERN,2640,Supply Teachers - Agency,10/09/2015,2200026138,"1,000.00",Sian Rodway Associates
http://statistics.data.gov.uk/id/local-authority/38,Oxfordshire County Council,MOTOR FLEET,3051,Motor IF Own Damage,16/09/2015,3110014374,673,National Windscreens Bristol
http://statistics.data.gov.uk/id/local-authority/38,Oxfordshire County Council,MOTOR FLEET,3053,Motor IF TP Damage,07/09/2015,3110011868,710.58,OCC One Time Vendor
http://statistics.data.gov.uk/id/local-authority/38,Oxfordshire County Council,MOTOR FLEET,3053,Motor IF TP Damage,04/09/2015,3110011770,782.37,OCC One Time Vendor
http://statistics.data.gov.uk/id/local-authority/38,Oxfordshire County Council,OTHER,3071,Insurance Admin Holding Account External Payments,25/09/2015,3110016320,"8,000.00",OCC One Time Vendor
http://statistics.data.gov.uk/id/local-authority/38,Oxfordshire County Council,PROPERTY,3071,Insurance Admin Holding Account External Payments,16/09/2015,3110014521,"15,600.00",Zurich Management Services
http://statistics.data.gov.uk/id/local-authority/38,Oxfordshire County Council,ASC WORKFORCE STRAT,3100,Educational and Vocational Training,04/09/2015,2200028104,815,Abingdon & Witney College
http://statistics.data.gov.uk/id/local-authority/38,Oxfordshire County Council,ASC WORKFORCE STRAT,3100,Educational and Vocational Training,04/09/2015,2200028097,"4,976.00",Abingdon & Witney College
http://statistics.data.gov.uk/id/local-authority/38,Oxfordshire County Council,OXF. EMPLOYMENT SERV,3100,Educational and Vocational Training,01/09/2015,2200019848,500,BASE
http://statistics.data.gov.uk/id/local-authority/38,Oxfordshire County Council,SENSS TRAINING,3100,Educational and Vocational Training,09/09/2015,2200025553,500,Deaf Direct Ltd
http://statistics.data.gov.uk/id/local-authority/38,Oxfordshire County Council,BANBURY HUB,3100,Educational and Vocational Training,09/09/2015,2200032761,880,Family Links
http://statistics.data.gov.uk/id/local-authority/38,Oxfordshire County Council,TRAINING MANAGEMENT,3100,Educational and Vocational Training,25/09/2015,2200035339,"7,150.00",FIRE PROTECTION ASSOCIATION
http://statistics.data.gov.uk/id/local-authority/38,Oxfordshire County Council,TRAINING MANAGEMENT,3100,Educational and Vocational Training,28/09/2015,2200035847,"1,350.00",Fire Service College Ltd
http://statistics.data.gov.uk/id/local-authority/38,Oxfordshire County Council,TRAINING MANAGEMENT,3100,Educational and Vocational Training,10/09/2015,2200025782,"1,499.00",Fire Service College Ltd
http://statistics.data.gov.uk/id/local-authority/38,Oxfordshire County Council,TRAINING MANAGEMENT,3100,Educational and Vocational Training,10/09/2015,2200026896,875,JLD Driver Training Ltd
http://statistics.data.gov.uk/id/local-authority/38,Oxfordshire County Council,TRAINING MANAGEMENT,3100,Educational and Vocational Training,10/09/2015,2200028051,875,JLD Driver Training Ltd
http://statistics.data.gov.uk/id/local-authority/38,Oxfordshire County Council,HILL END,3100,Educational and Vocational Training,16/09/2015,2200028047,577.5,OCN Oxford Thames and Chiltern Ltd
http://statistics.data.gov.uk/id/local-authority/38,Oxfordshire County Council,LEARNER GRANTS,3100,Educational and Vocational Training,09/09/2015,2200024886,"6,320.00",Oxfordshire Play Association
http://statistics.data.gov.uk/id/local-authority/38,Oxfordshire County Council,DEPUTY DIRECTOR &MAN,3100,Educational and Vocational Training,09/09/2015,2200023175,557.6,Professor Ray Jones
http://statistics.data.gov.uk/id/local-authority/38,Oxfordshire County Council,TRADED SEN INCOME,3100,Educational and Vocational Training,09/09/2015,2200026044,550,TEAM-TEACH LTD
http://statistics.data.gov.uk/id/local-authority/38,Oxfordshire County Council,SPECIALISED TRAINING,3100,Educational and Vocational Training,29/09/2015,2200035648,"13,500.00",Turning Point Services Ltd
http://statistics.data.gov.uk/id/local-authority/38,Oxfordshire County Council,CPD TRAINING,3100,Educational and Vocational Training,23/09/2015,2200032160,"2,550.00",UNIVERSITY OF PORTSMOUTH
http://statistics.data.gov.uk/id/local-authority/38,Oxfordshire County Council,TRAINING MANAGEMENT,3100,Educational and Vocational Training,15/09/2015,2200027210,845,WEBER RESCUE UK LTD
http://statistics.data.gov.uk/id/local-authority/38,Oxfordshire County Council,TRAINING MANAGEMENT,3100,Educational and Vocational Training,25/09/2015,2200035676,"1,150.00",Westminster Medical Wing
http://statistics.data.gov.uk/id/local-authority/38,Oxfordshire County Council,ABINGDON DAY SERVICE,3103,Other Training Courses and Qualification,22/09/2015,2200031273,"1,156.00",Abingdon & Witney College
http://statistics.data.gov.uk/id/local-authority/38,Oxfordshire County Council,SEN/ICT EQUIPMENT,3103,Other Training Courses and Qualification,30/09/2015,2200036353,-901.78,Candle ACC
http://statistics.data.gov.uk/id/local-authority/38,Oxfordshire County Council,SEN/ICT EQUIPMENT,3103,Other Training Courses and Qualification,29/09/2015,2200035006,901.78,Candle ACC
http://statistics.data.gov.uk/id/local-authority/38,Oxfordshire County Council,TRAINING MANAGEMENT,3103,Other Training Courses and Qualification,22/09/2015,2200031918,"1,499.00",College of Policing Ltd
http://statistics.data.gov.uk/id/local-authority/38,Oxfordshire County Council,L&D CORE PROGRAMME,3103,Other Training Courses and Qualification,22/09/2015,2200032117,718,Continuum Ventures Ltd
http://statistics.data.gov.uk/id/local-authority/38,Oxfordshire County Council,L&D CORE PROGRAMME,3103,Other Training Courses and Qualification,17/09/2015,2200030397,760.6,Continuum Ventures Ltd
http://statistics.data.gov.uk/id/local-authority/38,Oxfordshire County Council,BROADBAND PROJECT,3103,Other Training Courses and Qualification,22/09/2015,2200032108,"1,920.00",Digital Remit Limited
http://statistics.data.gov.uk/id/local-authority/38,Oxfordshire County Council,BROADBAND PROJECT,3103,Other Training Courses and Qualification,22/09/2015,2200032053,"4,950.00",Digital Remit Limited
http://statistics.data.gov.uk/id/local-authority/38,Oxfordshire County Council,CPD TRAINING,3103,Other Training Courses and Qualification,25/09/2015,2200033683,"1,001.94",Distance Learning College
http://statistics.data.gov.uk/id/local-authority/38,Oxfordshire County Council,TRAINING MANAGEMENT,3103,Other Training Courses and Qualification,30/09/2015,2200036217,780,Fire Service College Ltd
http://statistics.data.gov.uk/id/local-authority/38,Oxfordshire County Council,RESIDENTIAL STRATEGY,3103,Other Training Courses and Qualification,25/09/2015,2200035336,535,INSTITUTE OF FAMILY THERAPY
http://statistics.data.gov.uk/id/local-authority/38,Oxfordshire County Council,C&I PROJECTS,3103,Other Training Courses and Qualification,17/09/2015,2200028828,"1,666.00",NATIONAL AUTISTIC SOCIETY
http://statistics.data.gov.uk/id/local-authority/38,Oxfordshire County Council,FY WORKFORCE DEVLPMN,3103,Other Training Courses and Qualification,22/09/2015,2200032073,"2,500.00",NATIONAL CHILDRENS BUREAU
http://statistics.data.gov.uk/id/local-authority/38,Oxfordshire County Council,IN YEAR FAIR ACCESS,3103,Other Training Courses and Qualification,09/09/2015,2200025720,"4,000.00",Radcliffe Academy Trust
http://statistics.data.gov.uk/id/local-authority/38,Oxfordshire County Council,SHARED LIVES,3103,Other Training Courses and Qualification,28/09/2015,2200034203,-972,ST JOHN AMBULANCE
http://statistics.data.gov.uk/id/local-authority/38,Oxfordshire County Council,SHARED LIVES,3103,Other Training Courses and Qualification,01/09/2015,2200034232,972,ST JOHN AMBULANCE
http://statistics.data.gov.uk/id/local-authority/38,Oxfordshire County Council,S38 INSPECT & OTHER,3103,Other Training Courses and Qualification,10/09/2015,2200024847,720,SYMMONS MADGE ASSOCIATES LLP
http://statistics.data.gov.uk/id/local-authority/38,Oxfordshire County Council,SENSS TRAINING,3105,Training related expenditure,30/09/2015,2200036442,695,David Spybey
http://statistics.data.gov.uk/id/local-authority/38,Oxfordshire County Council,CORPORATE FINANCE,3105,Training related expenditure,21/09/2015,2200030562,"1,450.00",Ernst & Young LLP
http://statistics.data.gov.uk/id/local-authority/38,Oxfordshire County Council,TRAINING MANAGEMENT,3105,Training related expenditure,17/09/2015,2200028602,-650,Fire Service College Ltd
http://statistics.data.gov.uk/id/local-authority/38,Oxfordshire County Council,TRAINING MANAGEMENT,3105,Training related expenditure,22/09/2015,2200031261,540,Fire Service College Ltd
http://statistics.data.gov.uk/id/local-authority/38,Oxfordshire County Council,TRAINING MANAGEMENT,3105,Training related expenditure,03/09/2015,2200025128,650,Fire Service College Ltd
http://statistics.data.gov.uk/id/local-authority/38,Oxfordshire County Council,TRAINING MANAGEMENT,3105,Training related expenditure,09/09/2015,2200024951,650,Fire Service College Ltd
http://statistics.data.gov.uk/id/local-authority/38,Oxfordshire County Council,TRAINING MANAGEMENT,3105,Training related expenditure,18/09/2015,2200032635,650,Fire Service College Ltd
http://statistics.data.gov.uk/id/local-authority/38,Oxfordshire County Council,TRAINING MANAGEMENT,3105,Training related expenditure,21/09/2015,2200030268,650,Fire Service College Ltd
http://statistics.data.gov.uk/id/local-authority/38,Oxfordshire County Council,SCENARIO BASED TRAIN,3105,Training related expenditure,17/09/2015,2200034991,"1,350.00",Fire Service College Ltd
http://statistics.data.gov.uk/id/local-authority/38,Oxfordshire County Council,L&D CORE PROGRAMME,3105,Training related expenditure,09/09/2015,2200025395,500,Jo Cleary
http://statistics.data.gov.uk/id/local-authority/38,Oxfordshire County Council,ASC & CS,3105,Training related expenditure,23/09/2015,2200032327,900,MAKING CONNECTIONS
http://statistics.data.gov.uk/id/local-authority/38,Oxfordshire County Council,Income cancel course,3105,Training related expenditure,04/09/2015,3110011769,"2,390.00",OCC One Time Vendor
http://statistics.data.gov.uk/id/local-authority/38,Oxfordshire County Council,L&D CORE PROGRAMME,3105,Training related expenditure,28/09/2015,2200036145,"2,250.00",Premier Partnership
http://statistics.data.gov.uk/id/local-authority/38,Oxfordshire County Council,FLORENCE PARK CC,3105,Training related expenditure,10/09/2015,2200024658,500,Sue Penna Associates
http://statistics.data.gov.uk/id/local-authority/38,Oxfordshire County Council,OPERATIONAL COSTS,3105,Training related expenditure,02/09/2015,2200020694,"4,250.00",THE CONSULTATION INSTITUTE
http://statistics.data.gov.uk/id/local-authority/38,Oxfordshire County Council,LIABILITY,3152,Liability IF TP Injury,07/09/2015,3110011880,627,OCC One Time Vendor
http://statistics.data.gov.uk/id/local-authority/38,Oxfordshire County Council,LIABILITY,3152,Liability IF TP Injury,15/09/2015,3110013578,"5,000.00",OCC One Time Vendor
http://statistics.data.gov.uk/id/local-authority/38,Oxfordshire County Council,LIABILITY,3152,Liability IF TP Injury,29/09/2015,3110016851,"10,000.00",OCC One Time Vendor
http://statistics.data.gov.uk/id/local-authority/38,Oxfordshire County Council,MOTOR FLEET,3157,Motor IF Fees,09/09/2015,3110013540,594,Essex County Council
http://statistics.data.gov.uk/id/local-authority/38,Oxfordshire County Council,DISCLOSURE & BARRING,3200,Staff Advertising - General,01/09/2015,2200025671,"9,564.00",DISCLOSURE & BARRING SERVICE
http://statistics.data.gov.uk/id/local-authority/38,Oxfordshire County Council,DISCLOSURE & BARRING,3200,Staff Advertising - General,03/09/2015,2200021219,"1,212.50",Security Watchdog
http://statistics.data.gov.uk/id/local-authority/38,Oxfordshire County Council,LIABILITY,3257,Liability IF Fees,09/09/2015,3110013541,800,Essex County Council
http://statistics.data.gov.uk/id/local-authority/38,Oxfordshire County Council,LIABILITY,3257,Liability IF Fees,09/09/2015,3110013542,800,Essex County Council
http://statistics.data.gov.uk/id/local-authority/38,Oxfordshire County Council,MMI SCHEME ARRNGMNT,3257,Liability IF Fees,16/09/2015,3110014412,"1,195.72",Municipal Mutual Insurance Ltd
http://statistics.data.gov.uk/id/local-authority/38,Oxfordshire County Council,CHILDCARE VOUCHERS,3300,Other Employee Expenses,23/09/2015,3110015917,810.18,KiddiVouchers
http://statistics.data.gov.uk/id/local-authority/38,Oxfordshire County Council,HARD FM,3787,Premises Repairs,04/09/2015,2200035082,"-40,554.87",Carillion LGS Ltd
http://statistics.data.gov.uk/id/local-authority/38,Oxfordshire County Council,HARD FM,3787,Premises Repairs,23/09/2015,2200034632,601.19,Carillion LGS Ltd
http://statistics.data.gov.uk/id/local-authority/38,Oxfordshire County Council,HARD FM,3787,Premises Repairs,23/09/2015,2200034658,767.87,Carillion LGS Ltd
http://statistics.data.gov.uk/id/local-authority/38,Oxfordshire County Council,HARD FM,3787,Premises Repairs,23/09/2015,2200034679,"1,122.66",Carillion LGS Ltd
http://statistics.data.gov.uk/id/local-authority/38,Oxfordshire County Council,HARD FM,3787,Premises Repairs,04/09/2015,2200022389,"1,185.98",Carillion LGS Ltd
http://statistics.data.gov.uk/id/local-authority/38,Oxfordshire County Council,HARD FM,3787,Premises Repairs,23/09/2015,2200034648,"1,265.23",Carillion LGS Ltd
http://statistics.data.gov.uk/id/local-authority/38,Oxfordshire County Council,HARD FM,3787,Premises Repairs,23/09/2015,2200034653,"1,660.45",Carillion LGS Ltd
http://statistics.data.gov.uk/id/local-authority/38,Oxfordshire County Council,HARD FM,3787,Premises Repairs,14/09/2015,2200027857,"2,261.84",Carillion LGS Ltd
http://statistics.data.gov.uk/id/local-authority/38,Oxfordshire County Council,HARD FM,3787,Premises Repairs,23/09/2015,2200034687,"2,309.91",Carillion LGS Ltd
http://statistics.data.gov.uk/id/local-authority/38,Oxfordshire County Council,HARD FM,3787,Premises Repairs,29/09/2015,2200035509,"2,492.30",Carillion LGS Ltd
http://statistics.data.gov.uk/id/local-authority/38,Oxfordshire County Council,HARD FM,3787,Premises Repairs,23/09/2015,2200032664,"3,383.60",Carillion LGS Ltd
http://statistics.data.gov.uk/id/local-authority/38,Oxfordshire County Council,HARD FM,3787,Premises Repairs,29/09/2015,2200035511,"4,134.78",Carillion LGS Ltd
http://statistics.data.gov.uk/id/local-authority/38,Oxfordshire County Council,HARD FM,3787,Premises Repairs,23/09/2015,2200034637,"5,245.58",Carillion LGS Ltd
http://statistics.data.gov.uk/id/local-authority/38,Oxfordshire County Council,HARD FM,3787,Premises Repairs,23/09/2015,2200034665,"5,968.32",Carillion LGS Ltd
http://statistics.data.gov.uk/id/local-authority/38,Oxfordshire County Council,HARD FM,3787,Premises Repairs,23/09/2015,2200034699,"6,061.92",Carillion LGS Ltd
http://statistics.data.gov.uk/id/local-authority/38,Oxfordshire County Council,HARD FM,3787,Premises Repairs,23/09/2015,2200034682,"6,749.85",Carillion LGS Ltd
http://statistics.data.gov.uk/id/local-authority/38,Oxfordshire County Council,HARD FM,3787,Premises Repairs,23/09/2015,2200034708,"8,357.92",Carillion LGS Ltd
http://statistics.data.gov.uk/id/local-authority/38,Oxfordshire County Council,HARD FM,3787,Premises Repairs,23/09/2015,2200034707,"9,146.21",Carillion LGS Ltd
http://statistics.data.gov.uk/id/local-authority/38,Oxfordshire County Council,HARD FM,3787,Premises Repairs,23/09/2015,2200034684,"9,509.35",Carillion LGS Ltd
http://statistics.data.gov.uk/id/local-authority/38,Oxfordshire County Council,HARD FM,3787,Premises Repairs,23/09/2015,2200034644,"14,099.44",Carillion LGS Ltd
http://statistics.data.gov.uk/id/local-authority/38,Oxfordshire County Council,ST NICHOLAS PRIMARY,3787,Premises Repairs,10/09/2015,2200027892,"14,584.72",Carillion LGS Ltd
http://statistics.data.gov.uk/id/local-authority/38,Oxfordshire County Council,CROWMARSH GIFFORD CE,3787,Premises Repairs,10/09/2015,2200027891,"16,035.21",Carillion LGS Ltd
http://statistics.data.gov.uk/id/local-authority/38,Oxfordshire County Council,HARD FM,3787,Premises Repairs,23/09/2015,2200034666,"16,472.80",Carillion LGS Ltd
http://statistics.data.gov.uk/id/local-authority/38,Oxfordshire County Council,HARD FM,3787,Premises Repairs,23/09/2015,2200034662,"22,075.52",Carillion LGS Ltd
http://statistics.data.gov.uk/id/local-authority/38,Oxfordshire County Council,HARD FM,3787,Premises Repairs,23/09/2015,2200031860,"27,059.91",Carillion LGS Ltd
http://statistics.data.gov.uk/id/local-authority/38,Oxfordshire County Council,HARD FM,3787,Premises Repairs,30/09/2015,2200036304,"32,026.21",Carillion LGS Ltd
http://statistics.data.gov.uk/id/local-authority/38,Oxfordshire County Council,HARD FM,3787,Premises Repairs,23/09/2015,2200035091,"38,399.35",Carillion LGS Ltd
http://statistics.data.gov.uk/id/local-authority/38,Oxfordshire County Council,HARD FM,3787,Premises Repairs,04/09/2015,2200021617,"40,554.87",Carillion LGS Ltd
http://statistics.data.gov.uk/id/local-authority/38,Oxfordshire County Council,HARD FM,3787,Premises Repairs,17/09/2015,2200033736,"40,554.87",Carillion LGS Ltd
http://statistics.data.gov.uk/id/local-authority/38,Oxfordshire County Council,WILLIAM MORRIS  BANB,3787,Premises Repairs,10/09/2015,2200026891,"160,742.70",Carillion LGS Ltd
http://statistics.data.gov.uk/id/local-authority/38,Oxfordshire County Council,HARD FM,3787,Premises Repairs,09/09/2015,2200028264,"1,038.75",South Oxfordshire District Council
http://statistics.data.gov.uk/id/local-authority/38,Oxfordshire County Council,YENWORTHY LODGE,3821,Grounds Maintenance Contracts,08/09/2015,2200024953,780,Alan Binding
http://statistics.data.gov.uk/id/local-authority/38,Oxfordshire County Council,BUCKS GYPSY &TRAV SV,3821,Grounds Maintenance Contracts,03/09/2015,2200023455,740,Garden Matters
http://statistics.data.gov.uk/id/local-authority/38,Oxfordshire County Council,REAL TIME BUS INFO,3821,Grounds Maintenance Contracts,09/09/2015,2200026466,"6,130.00",Littlethorpe of Leicester Ltd
http://statistics.data.gov.uk/id/local-authority/38,Oxfordshire County Council,BICESTER CC,3821,Grounds Maintenance Contracts,01/09/2015,2200023362,730,PJG MAINTENANCE SERVICES
http://statistics.data.gov.uk/id/local-authority/38,Oxfordshire County Council,WANTAGE DC,3821,Grounds Maintenance Contracts,29/09/2015,2200034965,920,Rob Andrews
http://statistics.data.gov.uk/id/local-authority/38,Oxfordshire County Council,ABINGDON DAY SERVICE,3830,Other Adhoc Site / Grounds Maintenanc,15/09/2015,2200029248,"1,535.01",Carillion LGS Ltd
http://statistics.data.gov.uk/id/local-authority/38,Oxfordshire County Council,HEADINGTON/ CITY DTS,3942,Hire of Accommodation and Facilities,02/09/2015,2200020631,627.5,All Saints Highfield Parish Hall Tr
http://statistics.data.gov.uk/id/local-authority/38,Oxfordshire County Council,MUSIC UNALLOCABLE,3942,Hire of Accommodation and Facilities,25/09/2015,2200035982,"1,500.00",Bicester Learning Academy
http://statistics.data.gov.uk/id/local-authority/38,Oxfordshire County Council,SWIF FUNDING,3942,Hire of Accommodation and Facilities,15/09/2015,2200032216,"3,910.00",Bond Solon Training Ltd
http://statistics.data.gov.uk/id/local-authority/38,Oxfordshire County Council,CENTRAL TEAM OCS,3942,Hire of Accommodation and Facilities,01/09/2015,2200021343,745.2,CMS House
http://statistics.data.gov.uk/id/local-authority/38,Oxfordshire County Council,THE LEYS CC,3942,Hire of Accommodation and Facilities,07/09/2015,2200024171,552.3,Dovecote Voluntary Parent Committee
http://statistics.data.gov.uk/id/local-authority/38,Oxfordshire County Council,THE LEYS CC,3942,Hire of Accommodation and Facilities,01/09/2015,2200020803,580,Dovecote Voluntary Parent Committee
http://statistics.data.gov.uk/id/local-authority/38,Oxfordshire County Council,EYNSHAM & WOODSTK CC,3942,Hire of Accommodation and Facilities,01/09/2015,2200022133,562.5,Hanborough Playing Fields Associati
http://statistics.data.gov.uk/id/local-authority/38,Oxfordshire County Council,PLACEMENTS-FRELEVANT,3942,Hire of Accommodation and Facilities,09/09/2015,2200024759,"1,550.00",Happy Lodge
http://statistics.data.gov.uk/id/local-authority/38,Oxfordshire County Council,UASC 16&17,3942,Hire of Accommodation and Facilities,18/09/2015,2200030114,"1,860.00",Happy Lodge
http://statistics.data.gov.uk/id/local-authority/38,Oxfordshire County Council,UASC 16&17,3942,Hire of Accommodation and Facilities,18/09/2015,2200030115,"1,860.00",Happy Lodge
http://statistics.data.gov.uk/id/local-authority/38,Oxfordshire County Council,ASYLUM SKR NOT GRANT,3942,Hire of Accommodation and Facilities,21/09/2015,2200031869,"1,600.00",Nawaz Property
http://statistics.data.gov.uk/id/local-authority/38,Oxfordshire County Council,OPERATIONAL COSTS,3942,Hire of Accommodation and Facilities,29/09/2015,2200035644,525.2,NYS CORPORATE LTD
http://statistics.data.gov.uk/id/local-authority/38,Oxfordshire County Council,DIRECTOR'S OFFICE,3942,Hire of Accommodation and Facilities,18/09/2015,2200032492,531,NYS CORPORATE LTD
http://statistics.data.gov.uk/id/local-authority/38,Oxfordshire County Council,FY STRATEGIC WORK,3942,Hire of Accommodation and Facilities,01/09/2015,2200030132,580,NYS CORPORATE LTD
http://statistics.data.gov.uk/id/local-authority/38,Oxfordshire County Council,OPERATIONAL COSTS,3942,Hire of Accommodation and Facilities,22/09/2015,2200031276,629.6,NYS CORPORATE LTD
http://statistics.data.gov.uk/id/local-authority/38,Oxfordshire County Council,ASC & CS,3942,Hire of Accommodation and Facilities,24/09/2015,2200033693,816,NYS CORPORATE LTD
http://statistics.data.gov.uk/id/local-authority/38,Oxfordshire County Council,DIRECTOR'S OFFICE,3942,Hire of Accommodation and Facilities,29/09/2015,2200035520,"1,224.34",NYS CORPORATE LTD
http://statistics.data.gov.uk/id/local-authority/38,Oxfordshire County Council,TRADED SEN INCOME,3942,Hire of Accommodation and Facilities,01/09/2015,2200020941,"5,625.00",NYS CORPORATE LTD
http://statistics.data.gov.uk/id/local-authority/38,Oxfordshire County Council,OBS,3942,Hire of Accommodation and Facilities,01/09/2015,2200020275,"1,076.05",Oxford Said Business School Ltd
http://statistics.data.gov.uk/id/local-authority/38,Oxfordshire County Council,NCS,3942,Hire of Accommodation and Facilities,09/09/2015,2200025462,522.65,Preststar Ltd
http://statistics.data.gov.uk/id/local-authority/38,Oxfordshire County Council,FAILED AS EU IGHB,3942,Hire of Accommodation and Facilities,20/09/2015,3500005111,"1,065.00",Red Abacus Ltd
http://statistics.data.gov.uk/id/local-authority/38,Oxfordshire County Council,FAILED AS EU IGHB,3942,Hire of Accommodation and Facilities,30/09/2015,3500005639,"1,065.00",Red Abacus Ltd
http://statistics.data.gov.uk/id/local-authority/38,Oxfordshire County Council,FAILED AS EU IGHB,3942,Hire of Accommodation and Facilities,04/09/2015,3500004335,"2,095.00",Red Abacus Ltd
http://statistics.data.gov.uk/id/local-authority/38,Oxfordshire County Council,FAILED AS EU IGHB,3942,Hire of Accommodation and Facilities,01/09/2015,3500003743,"1,000.00",Sophia Investments
http://statistics.data.gov.uk/id/local-authority/38,Oxfordshire County Council,FAILED AS EU IGHB,3942,Hire of Accommodation and Facilities,01/09/2015,3500003744,"1,000.00",Sophia Investments
http://statistics.data.gov.uk/id/local-authority/38,Oxfordshire County Council,FAILED AS EU IGHB,3942,Hire of Accommodation and Facilities,01/09/2015,3500003745,"1,000.00",Sophia Investments
http://statistics.data.gov.uk/id/local-authority/38,Oxfordshire County Council,FAILED AS EU IGHB,3942,Hire of Accommodation and Facilities,30/09/2015,3500005640,"1,000.00",Sophia Investments
http://statistics.data.gov.uk/id/local-authority/38,Oxfordshire County Council,FAILED AS EU IGHB,3942,Hire of Accommodation and Facilities,30/09/2015,3500005641,"1,000.00",Sophia Investments
http://statistics.data.gov.uk/id/local-authority/38,Oxfordshire County Council,FAILED AS EU IGHB,3942,Hire of Accommodation and Facilities,30/09/2015,3500005642,"1,000.00",Sophia Investments
http://statistics.data.gov.uk/id/local-authority/38,Oxfordshire County Council,FAILED AS EU IGHB,3942,Hire of Accommodation and Facilities,07/09/2015,3500004338,"1,600.00",Sterling Residential
http://statistics.data.gov.uk/id/local-authority/38,Oxfordshire County Council,FAILED AS EU IGHB,3942,Hire of Accommodation and Facilities,23/09/2015,3500005124,"1,900.00",Sterling Residential
http://statistics.data.gov.uk/id/local-authority/38,Oxfordshire County Council,NCS,3942,Hire of Accommodation and Facilities,10/09/2015,2200026176,"1,900.00",The Kings Centre
http://statistics.data.gov.uk/id/local-authority/38,Oxfordshire County Council,FAILED AS EU IGHB,3942,Hire of Accommodation and Facilities,09/09/2015,3500004346,"1,400.00",Nasser Nasib
http://statistics.data.gov.uk/id/local-authority/38,Oxfordshire County Council,FAILED AS EU IGHB,3942,Hire of Accommodation and Facilities,02/09/2015,3500003953,"1,600.00",Nasser Nasib
http://statistics.data.gov.uk/id/local-authority/38,Oxfordshire County Council,FAILED AS EU IGHB,3942,Hire of Accommodation and Facilities,16/09/2015,3500004735,"1,900.00",Nasser Nasib
http://statistics.data.gov.uk/id/local-authority/38,Oxfordshire County Council,FAILED AS EU IGHB,3942,Hire of Accommodation and Facilities,18/09/2015,2200030119,600,Redacted Personal Data
http://statistics.data.gov.uk/id/local-authority/38,Oxfordshire County Council,FAILED AS EU IGHB,3942,Hire of Accommodation and Facilities,18/09/2015,2200030118,"2,325.00",Redacted Personal Data
http://statistics.data.gov.uk/id/local-authority/38,Oxfordshire County Council,FAILED AS EU IGHB,3942,Hire of Accommodation and Facilities,20/09/2015,3500005114,"1,515.00",Redacted Personal Data
http://statistics.data.gov.uk/id/local-authority/38,Oxfordshire County Council,FAILED AS EU IGHB,3942,Hire of Accommodation and Facilities,30/09/2015,3500005914,"1,515.00",Redacted Personal Data
http://statistics.data.gov.uk/id/local-authority/38,Oxfordshire County Council,CORPORATE LANDLORD,3945,Rent,10/09/2015,2200026307,"1,750.00",All Saints Highfield Parish Hall Tr
http://statistics.data.gov.uk/id/local-authority/38,Oxfordshire County Council,WEST OXON DAY SERVIC,3945,Rent,29/09/2015,3500005535,"1,856.87",Carterton Community Centre
http://statistics.data.gov.uk/id/local-authority/38,Oxfordshire County Council,MENTAL HEALTH SAS,3945,Rent,29/09/2015,3500005534,"3,218.13",Carterton Community Centre
http://statistics.data.gov.uk/id/local-authority/38,Oxfordshire County Council,SMALLHOLDINGS,3945,Rent,29/09/2015,3500005542,"1,150.00",Chipping Norton Town Council
http://statistics.data.gov.uk/id/local-authority/38,Oxfordshire County Council,CORPORATE LANDLORD,3945,Rent,29/09/2015,3500005560,"5,554.50",Deloitte LLP
http://statistics.data.gov.uk/id/local-authority/38,Oxfordshire County Council,CORPORATE LANDLORD,3945,Rent,29/09/2015,3500005558,"12,877.50",Deloitte LLP
http://statistics.data.gov.uk/id/local-authority/38,Oxfordshire County Council,CORPORATE LANDLORD,3945,Rent,29/09/2015,3500005556,"22,500.00",Fine Print Holdings Ltd
http://statistics.data.gov.uk/id/local-authority/38,Oxfordshire County Council,CORPORATE LANDLORD,3945,Rent,29/09/2015,3500005533,725,Kennington Village Hall
http://statistics.data.gov.uk/id/local-authority/38,Oxfordshire County Council,CORPORATE LANDLORD,3945,Rent,01/09/2015,3500003733,"1,500.00",Midland Bank P.L.C. Cr A/C 40132276
http://statistics.data.gov.uk/id/local-authority/38,Oxfordshire County Council,CORPORATE LANDLORD,3945,Rent,23/09/2015,3500005121,"1,250.00",North Leigh Memorial Hall
http://statistics.data.gov.uk/id/local-authority/38,Oxfordshire County Council,FLORENCE PARK CC,3945,Rent,09/09/2015,3500004690,875,Oxford City Council
http://statistics.data.gov.uk/id/local-authority/38,Oxfordshire County Council,FLORENCE PARK CC,3945,Rent,26/09/2015,3500005503,875,Oxford City Council
http://statistics.data.gov.uk/id/local-authority/38,Oxfordshire County Council,CONTRACT MANAGEMENT,3945,Rent,29/09/2015,3500005567,"1,250.00",Oxford City Council
http://statistics.data.gov.uk/id/local-authority/38,Oxfordshire County Council,LEP,3945,Rent,15/09/2015,2200030427,"3,125.00",Oxford Innovation Ltd
http://statistics.data.gov.uk/id/local-authority/38,Oxfordshire County Council,CORPORATE LANDLORD,3945,Rent,29/09/2015,3500005543,"1,789.00",Oxfordshire Buildings Trust
http://statistics.data.gov.uk/id/local-authority/38,Oxfordshire County Council,CORPORATE LANDLORD,3945,Rent,29/09/2015,3500005550,"4,412.50",Pembroke College
http://statistics.data.gov.uk/id/local-authority/38,Oxfordshire County Council,CORPORATE LANDLORD,3945,Rent,27/09/2015,3500005521,"6,941.25",Savills (UK) Limited
http://statistics.data.gov.uk/id/local-authority/38,Oxfordshire County Council,CORPORATE LANDLORD,3945,Rent,29/09/2015,3500005551,"1,500.00",Severage Greaves
http://statistics.data.gov.uk/id/local-authority/38,Oxfordshire County Council,SMALLHOLDINGS,3945,Rent,24/09/2015,3500005485,"2,000.00",St Johns College
http://statistics.data.gov.uk/id/local-authority/38,Oxfordshire County Council,CORPORATE LANDLORD,3945,Rent,29/09/2015,3500005537,638.46,Stonesfield Village Hall
http://statistics.data.gov.uk/id/local-authority/38,Oxfordshire County Council,CORPORATE LANDLORD,3945,Rent,29/09/2015,3500005540,"13,750.00",Trs of the Banbury Arts & Charities
http://statistics.data.gov.uk/id/local-authority/38,Oxfordshire County Council,CORPORATE LANDLORD,3945,Rent,29/09/2015,3500005547,"39,994.23",Unipart Service Company Ltd
http://statistics.data.gov.uk/id/local-authority/38,Oxfordshire County Council,CORPORATE LANDLORD,3945,Rent,29/09/2015,3500005548,"41,547.84",Unipart Service Company Ltd
http://statistics.data.gov.uk/id/local-authority/38,Oxfordshire County Council,CORPORATE LANDLORD,3945,Rent,29/09/2015,3500005545,"43,156.46",Unipart Service Company Ltd
http://statistics.data.gov.uk/id/local-authority/38,Oxfordshire County Council,CORPORATE LANDLORD,3945,Rent,29/09/2015,3500005571,"59,488.25",Vale of White Horse District Counci
http://statistics.data.gov.uk/id/local-authority/38,Oxfordshire County Council,CORPORATE LANDLORD,3945,Rent,25/09/2015,3500005496,910.63,West Oxfordshire District Council
http://statistics.data.gov.uk/id/local-authority/38,Oxfordshire County Council,CORPORATE LANDLORD,3945,Rent,29/09/2015,3500005573,"87,500.00",West Oxfordshire District Council
http://statistics.data.gov.uk/id/local-authority/38,Oxfordshire County Council,CORPORATE LANDLORD,3945,Rent,25/09/2015,3500005492,"8,375.00",Willow Property
http://statistics.data.gov.uk/id/local-authority/38,Oxfordshire County Council,CORPORATE LANDLORD,3945,Rent,26/09/2015,3500005499,"23,937.50",Workman LLP
http://statistics.data.gov.uk/id/local-authority/38,Oxfordshire County Council,CORPORATE LANDLORD,3945,Rent,26/09/2015,3500005500,"25,500.00",Workman LLP
http://statistics.data.gov.uk/id/local-authority/38,Oxfordshire County Council,UTILITIES,3950,Non System - Gas,11/09/2015,3110013785,534.25,Total Gas & Power Ltd
http://statistics.data.gov.uk/id/local-authority/38,Oxfordshire County Council,UTILITIES,3950,Non System - Gas,11/09/2015,3110014625,534.25,Total Gas & Power Ltd
http://statistics.data.gov.uk/id/local-authority/38,Oxfordshire County Council,UTILITIES,3950,Non System - Gas,11/09/2015,3110013925,947.07,Total Gas & Power Ltd
http://statistics.data.gov.uk/id/local-authority/38,Oxfordshire County Council,UTILITIES,3950,Non System - Gas,11/09/2015,3110014765,947.07,Total Gas & Power Ltd
http://statistics.data.gov.uk/id/local-authority/38,Oxfordshire County Council,UTILITIES,3950,Non System - Gas,11/09/2015,3110013817,"1,176.47",Total Gas & Power Ltd
http://statistics.data.gov.uk/id/local-authority/38,Oxfordshire County Council,UTILITIES,3950,Non System - Gas,11/09/2015,3110014657,"1,176.47",Total Gas & Power Ltd
http://statistics.data.gov.uk/id/local-authority/38,Oxfordshire County Council,UTILITIES,3951,Non System - Electricity,17/09/2015,3110014860,517.52,NPOWER
http://statistics.data.gov.uk/id/local-authority/38,Oxfordshire County Council,UTILITIES,3951,Non System - Electricity,17/09/2015,3110014848,538.33,NPOWER
http://statistics.data.gov.uk/id/local-authority/38,Oxfordshire County Council,UTILITIES,3951,Non System - Electricity,17/09/2015,3110014865,594.72,NPOWER
http://statistics.data.gov.uk/id/local-authority/38,Oxfordshire County Council,UTILITIES,3951,Non System - Electricity,17/09/2015,3110014905,637.8,NPOWER
http://statistics.data.gov.uk/id/local-authority/38,Oxfordshire County Council,UTILITIES,3951,Non System - Electricity,17/09/2015,3110014877,677.96,NPOWER
http://statistics.data.gov.uk/id/local-authority/38,Oxfordshire County Council,UTILITIES,3951,Non System - Electricity,17/09/2015,3110014850,697.65,NPOWER
http://statistics.data.gov.uk/id/local-authority/38,Oxfordshire County Council,UTILITIES,3951,Non System - Electricity,17/09/2015,3110014925,698.09,NPOWER
http://statistics.data.gov.uk/id/local-authority/38,Oxfordshire County Council,UTILITIES,3951,Non System - Electricity,17/09/2015,3110014817,732.98,NPOWER
http://statistics.data.gov.uk/id/local-authority/38,Oxfordshire County Council,HILL END,3951,Non System - Electricity,17/09/2015,3110014810,764.05,NPOWER
http://statistics.data.gov.uk/id/local-authority/38,Oxfordshire County Council,UTILITIES,3951,Non System - Electricity,17/09/2015,3110014864,768.74,NPOWER
http://statistics.data.gov.uk/id/local-authority/38,Oxfordshire County Council,UTILITIES,3951,Non System - Electricity,17/09/2015,3110014803,802.8,NPOWER
http://statistics.data.gov.uk/id/local-authority/38,Oxfordshire County Council,UTILITIES,3951,Non System - Electricity,17/09/2015,3110014873,804.03,NPOWER
http://statistics.data.gov.uk/id/local-authority/38,Oxfordshire County Council,REDLANDS AND ST JOHN,3951,Non System - Electricity,17/09/2015,3110014826,833.78,NPOWER
http://statistics.data.gov.uk/id/local-authority/38,Oxfordshire County Council,UTILITIES,3951,Non System - Electricity,17/09/2015,3110014900,857.14,NPOWER
http://statistics.data.gov.uk/id/local-authority/38,Oxfordshire County Council,UTILITIES,3951,Non System - Electricity,17/09/2015,3110014926,889.43,NPOWER
http://statistics.data.gov.uk/id/local-authority/38,Oxfordshire County Council,UTILITIES,3951,Non System - Electricity,17/09/2015,3110014929,890.01,NPOWER
http://statistics.data.gov.uk/id/local-authority/38,Oxfordshire County Council,UTILITIES,3951,Non System - Electricity,17/09/2015,3110014901,907.33,NPOWER
http://statistics.data.gov.uk/id/local-authority/38,Oxfordshire County Council,UTILITIES,3951,Non System - Electricity,17/09/2015,3110014897,940.03,NPOWER
http://statistics.data.gov.uk/id/local-authority/38,Oxfordshire County Council,UTILITIES,3951,Non System - Electricity,17/09/2015,3110014807,943.39,NPOWER
http://statistics.data.gov.uk/id/local-authority/38,Oxfordshire County Council,UTILITIES,3951,Non System - Electricity,17/09/2015,3110014804,974.81,NPOWER
http://statistics.data.gov.uk/id/local-authority/38,Oxfordshire County Council,UTILITIES,3951,Non System - Electricity,17/09/2015,3110014854,986.81,NPOWER
http://statistics.data.gov.uk/id/local-authority/38,Oxfordshire County Council,UTILITIES,3951,Non System - Electricity,17/09/2015,3110014825,"1,005.09",NPOWER
http://statistics.data.gov.uk/id/local-authority/38,Oxfordshire County Council,UTILITIES,3951,Non System - Electricity,17/09/2015,3110014936,"1,009.55",NPOWER
http://statistics.data.gov.uk/id/local-authority/38,Oxfordshire County Council,UTILITIES,3951,Non System - Electricity,17/09/2015,3110014889,"1,037.57",NPOWER
http://statistics.data.gov.uk/id/local-authority/38,Oxfordshire County Council,BUCKS GYPSY &TRAV SV,3951,Non System - Electricity,02/09/2015,2200021500,"1,093.13",NPOWER
http://statistics.data.gov.uk/id/local-authority/38,Oxfordshire County Council,UTILITIES,3951,Non System - Electricity,17/09/2015,3110014904,"1,131.18",NPOWER
http://statistics.data.gov.uk/id/local-authority/38,Oxfordshire County Council,UTILITIES,3951,Non System - Electricity,17/09/2015,3110014851,"1,173.06",NPOWER
http://statistics.data.gov.uk/id/local-authority/38,Oxfordshire County Council,THORNHILL P & R,3951,Non System - Electricity,17/09/2015,3110014847,"1,216.61",NPOWER
http://statistics.data.gov.uk/id/local-authority/38,Oxfordshire County Council,EAST ST CTR-PREMISES,3951,Non System - Electricity,17/09/2015,3110014874,"1,273.14",NPOWER
http://statistics.data.gov.uk/id/local-authority/38,Oxfordshire County Council,UTILITIES,3951,Non System - Electricity,17/09/2015,3110014815,"1,274.94",NPOWER
http://statistics.data.gov.uk/id/local-authority/38,Oxfordshire County Council,BUCKS GYPSY &TRAV SV,3951,Non System - Electricity,08/09/2015,2200022617,"1,289.33",NPOWER
http://statistics.data.gov.uk/id/local-authority/38,Oxfordshire County Council,THORNHILL P & R,3951,Non System - Electricity,17/09/2015,3110014923,"1,318.69",NPOWER
http://statistics.data.gov.uk/id/local-authority/38,Oxfordshire County Council,UTILITIES,3951,Non System - Electricity,17/09/2015,3110014809,"1,319.85",NPOWER
http://statistics.data.gov.uk/id/local-authority/38,Oxfordshire County Council,UTILITIES,3951,Non System - Electricity,17/09/2015,3110014839,"1,400.81",NPOWER
http://statistics.data.gov.uk/id/local-authority/38,Oxfordshire County Council,UTILITIES,3951,Non System - Electricity,17/09/2015,3110014801,"1,436.69",NPOWER
http://statistics.data.gov.uk/id/local-authority/38,Oxfordshire County Council,KILVROUGH MANOR,3951,Non System - Electricity,17/09/2015,3110014838,"1,494.15",NPOWER
http://statistics.data.gov.uk/id/local-authority/38,Oxfordshire County Council,UTILITIES,3951,Non System - Electricity,17/09/2015,3110014908,"1,522.25",NPOWER
http://statistics.data.gov.uk/id/local-authority/38,Oxfordshire County Council,UTILITIES,3951,Non System - Electricity,17/09/2015,3110014819,"1,528.90",NPOWER
http://statistics.data.gov.uk/id/local-authority/38,Oxfordshire County Council,MUSIC UNALLOCABLE,3951,Non System - Electricity,17/09/2015,3110014921,"1,533.09",NPOWER
http://statistics.data.gov.uk/id/local-authority/38,Oxfordshire County Council,UTILITIES,3951,Non System - Electricity,17/09/2015,3110014829,"1,548.30",NPOWER
http://statistics.data.gov.uk/id/local-authority/38,Oxfordshire County Council,WATER EATON P & R,3951,Non System - Electricity,17/09/2015,3110014849,"1,632.99",NPOWER
http://statistics.data.gov.uk/id/local-authority/38,Oxfordshire County Council,WATER EATON P & R,3951,Non System - Electricity,17/09/2015,3110014924,"1,632.99",NPOWER
http://statistics.data.gov.uk/id/local-authority/38,Oxfordshire County Council,WITNEY RESOURCE CENT,3951,Non System - Electricity,17/09/2015,3110014822,"1,819.07",NPOWER
http://statistics.data.gov.uk/id/local-authority/38,Oxfordshire County Council,HILL END,3951,Non System - Electricity,17/09/2015,3110014806,"1,965.71",NPOWER
http://statistics.data.gov.uk/id/local-authority/38,Oxfordshire County Council,UTILITIES,3951,Non System - Electricity,17/09/2015,3110014892,"2,091.39",NPOWER
http://statistics.data.gov.uk/id/local-authority/38,Oxfordshire County Council,UTILITIES,3951,Non System - Electricity,17/09/2015,3110014932,"2,181.15",NPOWER
http://statistics.data.gov.uk/id/local-authority/38,Oxfordshire County Council,UTILITIES,3951,Non System - Electricity,17/09/2015,3110014855,"2,216.29",NPOWER
http://statistics.data.gov.uk/id/local-authority/38,Oxfordshire County Council,UTILITIES,3951,Non System - Electricity,17/09/2015,3110014808,"2,279.77",NPOWER
http://statistics.data.gov.uk/id/local-authority/38,Oxfordshire County Council,UTILITIES,3951,Non System - Electricity,17/09/2015,3110014812,"2,498.35",NPOWER
http://statistics.data.gov.uk/id/local-authority/38,Oxfordshire County Council,UTILITIES,3951,Non System - Electricity,17/09/2015,3110014823,"2,904.80",NPOWER
http://statistics.data.gov.uk/id/local-authority/38,Oxfordshire County Council,UTILITIES,3951,Non System - Electricity,17/09/2015,3110014863,"3,356.58",NPOWER
http://statistics.data.gov.uk/id/local-authority/38,Oxfordshire County Council,ABBEY SCH SWIM POOL,3951,Non System - Electricity,17/09/2015,3110014816,"4,990.28",NPOWER
http://statistics.data.gov.uk/id/local-authority/38,Oxfordshire County Council,ICT OPERATIONS & MAI,3951,Non System - Electricity,02/09/2015,2200020548,"7,136.96",SPECIALIST COMPUTER CENTRES
http://statistics.data.gov.uk/id/local-authority/38,Oxfordshire County Council,SERV DELIV UTILITIES,3955,Non System - Water - Rated,16/09/2015,2200034162,510.99,Thames Water Utilities Ltd
http://statistics.data.gov.uk/id/local-authority/38,Oxfordshire County Council,BUCKS GYPSY &TRAV SV,3956,Non System - Water - Metered,03/09/2015,2200020950,780.7,AFFINITY WATER
http://statistics.data.gov.uk/id/local-authority/38,Oxfordshire County Council,BUCKS GYPSY &TRAV SV,3956,Non System - Water - Metered,01/09/2015,2200020331,"2,502.88",AFFINITY WATER
http://statistics.data.gov.uk/id/local-authority/38,Oxfordshire County Council,UTILITIES,3956,Non System - Water - Metered,10/09/2015,3110015071,563.27,Thames Water Utilities Ltd
http://statistics.data.gov.uk/id/local-authority/38,Oxfordshire County Council,WANTAGE/ DIDCOT DTS,3956,Non System - Water - Metered,10/09/2015,3110015065,583.63,Thames Water Utilities Ltd
http://statistics.data.gov.uk/id/local-authority/38,Oxfordshire County Council,WANTAGE/ DIDCOT DTS,3956,Non System - Water - Metered,25/09/2015,3110016413,584.28,Thames Water Utilities Ltd
http://statistics.data.gov.uk/id/local-authority/38,Oxfordshire County Council,EAST ST CTR-PREMISES,3956,Non System - Water - Metered,25/09/2015,3110016351,676.31,Thames Water Utilities Ltd
http://statistics.data.gov.uk/id/local-authority/38,Oxfordshire County Council,HILL END,3956,Non System - Water - Metered,10/09/2015,3110015059,768.62,Thames Water Utilities Ltd
http://statistics.data.gov.uk/id/local-authority/38,Oxfordshire County Council,THORNHILL P & R,3956,Non System - Water - Metered,10/09/2015,3110015037,787.16,Thames Water Utilities Ltd
http://statistics.data.gov.uk/id/local-authority/38,Oxfordshire County Council,UTILITIES,3956,Non System - Water - Metered,25/09/2015,3110016454,804.09,Thames Water Utilities Ltd
http://statistics.data.gov.uk/id/local-authority/38,Oxfordshire County Council,GYPSY & TRAVELLER SV,3956,Non System - Water - Metered,04/09/2015,2200021502,810.2,Thames Water Utilities Ltd
http://statistics.data.gov.uk/id/local-authority/38,Oxfordshire County Council,GYPSY & TRAVELLER SV,3956,Non System - Water - Metered,01/09/2015,2200020330,"1,247.86",Thames Water Utilities Ltd
http://statistics.data.gov.uk/id/local-authority/38,Oxfordshire County Council,GYPSY & TRAVELLER SV,3956,Non System - Water - Metered,01/09/2015,2200020081,"1,965.81",Thames Water Utilities Ltd
http://statistics.data.gov.uk/id/local-authority/38,Oxfordshire County Council,GYPSY & TRAVELLER SV,3956,Non System - Water - Metered,01/09/2015,2200020086,"2,493.67",Thames Water Utilities Ltd
http://statistics.data.gov.uk/id/local-authority/38,Oxfordshire County Council,HILL END,3956,Non System - Water - Metered,10/09/2015,3110015060,"3,653.57",Thames Water Utilities Ltd
http://statistics.data.gov.uk/id/local-authority/38,Oxfordshire County Council,CORPORATE LANDLORD,3980,Service Charges - Premises,07/09/2015,2200023378,"4,653.77",Banbury Charities
http://statistics.data.gov.uk/id/local-authority/38,Oxfordshire County Council,THE ROUNDABOUT CNTRE,3980,Service Charges - Premises,15/09/2015,2200029176,820,Carillion LGS Ltd
http://statistics.data.gov.uk/id/local-authority/38,Oxfordshire County Council,THE ROUNDABOUT CNTRE,3980,Service Charges - Premises,15/09/2015,2200029178,"1,466.08",Carillion LGS Ltd
http://statistics.data.gov.uk/id/local-authority/38,Oxfordshire County Council,THE ROUNDABOUT CNTRE,3980,Service Charges - Premises,15/09/2015,2200028786,"1,863.00",Carillion LGS Ltd
http://statistics.data.gov.uk/id/local-authority/38,Oxfordshire County Council,THE ROUNDABOUT CNTRE,3980,Service Charges - Premises,15/09/2015,2200029179,"2,233.28",Carillion LGS Ltd
http://statistics.data.gov.uk/id/local-authority/38,Oxfordshire County Council,THE ROUNDABOUT CNTRE,3980,Service Charges - Premises,15/09/2015,2200029183,"3,616.00",Carillion LGS Ltd
http://statistics.data.gov.uk/id/local-authority/38,Oxfordshire County Council,THE ROUNDABOUT CNTRE,3980,Service Charges - Premises,15/09/2015,2200029173,"3,761.00",Carillion LGS Ltd
http://statistics.data.gov.uk/id/local-authority/38,Oxfordshire County Council,THE ROUNDABOUT CNTRE,3980,Service Charges - Premises,15/09/2015,2200029177,"3,860.00",Carillion LGS Ltd
http://statistics.data.gov.uk/id/local-authority/38,Oxfordshire County Council,THE ROUNDABOUT CNTRE,3980,Service Charges - Premises,15/09/2015,2200027894,"4,277.00",Carillion LGS Ltd
http://statistics.data.gov.uk/id/local-authority/38,Oxfordshire County Council,CORPORATE LANDLORD,3980,Service Charges - Premises,29/09/2015,3500005559,668.5,Deloitte LLP
http://statistics.data.gov.uk/id/local-authority/38,Oxfordshire County Council,CORPORATE LANDLORD,3980,Service Charges - Premises,07/09/2015,2200023302,857.71,John Horner Partnership
http://statistics.data.gov.uk/id/local-authority/38,Oxfordshire County Council,CORPORATE LANDLORD,3980,Service Charges - Premises,17/09/2015,2200029556,559.6,North Leigh Memorial Hall Trustees
http://statistics.data.gov.uk/id/local-authority/38,Oxfordshire County Council,CORPORATE LANDLORD,3980,Service Charges - Premises,16/09/2015,2200033518,"19,767.00",Oxford City Council
http://statistics.data.gov.uk/id/local-authority/38,Oxfordshire County Council,CORPORATE LANDLORD,3980,Service Charges - Premises,16/09/2015,2200031133,"28,068.00",Oxford City Council
http://statistics.data.gov.uk/id/local-authority/38,Oxfordshire County Council,CORPORATE LANDLORD,3980,Service Charges - Premises,25/09/2015,3500005493,"2,906.00",Paul Chaston Commercial Property Lt
http://statistics.data.gov.uk/id/local-authority/38,Oxfordshire County Council,CORPORATE LANDLORD,3980,Service Charges - Premises,29/09/2015,3500005553,"26,525.00",Paul Chaston Commercial Property Lt
http://statistics.data.gov.uk/id/local-authority/38,Oxfordshire County Council,CORPORATE LANDLORD,3980,Service Charges - Premises,28/09/2015,3500005532,"1,329.01",Savills (UK) Limited
http://statistics.data.gov.uk/id/local-authority/38,Oxfordshire County Council,CORPORATE LANDLORD,3980,Service Charges - Premises,29/09/2015,3500005549,"26,265.25",Unipart Service Company Ltd
http://statistics.data.gov.uk/id/local-authority/38,Oxfordshire County Council,CORPORATE LANDLORD,3980,Service Charges - Premises,24/09/2015,3500005486,"27,285.50",Unipart Service Company Ltd
http://statistics.data.gov.uk/id/local-authority/38,Oxfordshire County Council,CORPORATE LANDLORD,3980,Service Charges - Premises,29/09/2015,3500005546,"28,514.75",Unipart Service Company Ltd
http://statistics.data.gov.uk/id/local-authority/38,Oxfordshire County Council,CORPORATE LANDLORD,3980,Service Charges - Premises,29/09/2015,3500005569,"6,070.28",Vale of White Horse District Counci
http://statistics.data.gov.uk/id/local-authority/38,Oxfordshire County Council,CORPORATE LANDLORD,3980,Service Charges - Premises,29/09/2015,2200035880,"386,769.81",Vale of White Horse District Counci
http://statistics.data.gov.uk/id/local-authority/38,Oxfordshire County Council,CORPORATE LANDLORD,3980,Service Charges - Premises,25/09/2015,3500005495,"1,157.26",West Oxfordshire District Council
http://statistics.data.gov.uk/id/local-authority/38,Oxfordshire County Council,CORPORATE LANDLORD,3980,Service Charges - Premises,29/09/2015,3500005574,"2,750.00",West Oxfordshire District Council
http://statistics.data.gov.uk/id/local-authority/38,Oxfordshire County Council,CORPORATE LANDLORD,3980,Service Charges - Premises,29/09/2015,3500005555,979.5,Workman LLP
http://statistics.data.gov.uk/id/local-authority/38,Oxfordshire County Council,CORPORATE LANDLORD,3980,Service Charges - Premises,26/09/2015,3500005501,985.54,Workman LLP
http://statistics.data.gov.uk/id/local-authority/38,Oxfordshire County Council,CORPORATE LANDLORD,4001,Uniform Business Rates,01/09/2015,3500003759,648,Cherwell District Council
http://statistics.data.gov.uk/id/local-authority/38,Oxfordshire County Council,CORPORATE LANDLORD,4001,Uniform Business Rates,01/09/2015,3500003755,727,Cherwell District Council
http://statistics.data.gov.uk/id/local-authority/38,Oxfordshire County Council,CONTRACT MANAGEMENT,4001,Uniform Business Rates,01/09/2015,3500003776,937,Cherwell District Council
http://statistics.data.gov.uk/id/local-authority/38,Oxfordshire County Council,CORPORATE LANDLORD,4001,Uniform Business Rates,01/09/2015,3500003769,"1,072.00",Cherwell District Council
http://statistics.data.gov.uk/id/local-authority/38,Oxfordshire County Council,CORPORATE LANDLORD,4001,Uniform Business Rates,01/09/2015,3500003765,"1,159.00",Cherwell District Council
http://statistics.data.gov.uk/id/local-authority/38,Oxfordshire County Council,CORPORATE LANDLORD,4001,Uniform Business Rates,01/09/2015,3500003757,"1,171.00",Cherwell District Council
http://statistics.data.gov.uk/id/local-authority/38,Oxfordshire County Council,CORPORATE LANDLORD,4001,Uniform Business Rates,01/09/2015,3500003775,"1,405.00",Cherwell District Council
http://statistics.data.gov.uk/id/local-authority/38,Oxfordshire County Council,CORPORATE LANDLORD,4001,Uniform Business Rates,01/09/2015,3500003763,"1,627.00",Cherwell District Council
http://statistics.data.gov.uk/id/local-authority/38,Oxfordshire County Council,CORPORATE LANDLORD,4001,Uniform Business Rates,01/09/2015,3500003756,"1,824.00",Cherwell District Council
http://statistics.data.gov.uk/id/local-authority/38,Oxfordshire County Council,CORPORATE LANDLORD,4001,Uniform Business Rates,01/09/2015,3500003780,"2,071.00",Cherwell District Council
http://statistics.data.gov.uk/id/local-authority/38,Oxfordshire County Council,CORPORATE LANDLORD,4001,Uniform Business Rates,01/09/2015,3500003760,"2,354.00",Cherwell District Council
http://statistics.data.gov.uk/id/local-authority/38,Oxfordshire County Council,CORPORATE LANDLORD,4001,Uniform Business Rates,01/09/2015,3500003766,"2,712.00",Cherwell District Council
http://statistics.data.gov.uk/id/local-authority/38,Oxfordshire County Council,WATER EATON P & R,4001,Uniform Business Rates,01/09/2015,3500003778,"2,933.00",Cherwell District Council
http://statistics.data.gov.uk/id/local-authority/38,Oxfordshire County Council,CORPORATE LANDLORD,4001,Uniform Business Rates,01/09/2015,3500003772,"3,574.00",Cherwell District Council
http://statistics.data.gov.uk/id/local-authority/38,Oxfordshire County Council,CORPORATE LANDLORD,4001,Uniform Business Rates,01/09/2015,3500003761,"7,050.00",Cherwell District Council
http://statistics.data.gov.uk/id/local-authority/38,Oxfordshire County Council,CORPORATE LANDLORD,4001,Uniform Business Rates,01/09/2015,3500003781,"11,093.00",Cherwell District Council
http://statistics.data.gov.uk/id/local-authority/38,Oxfordshire County Council,CORPORATE LANDLORD,4001,Uniform Business Rates,15/09/2015,2200029742,"-25,636.00",Oxford City Council
http://statistics.data.gov.uk/id/local-authority/38,Oxfordshire County Council,CORPORATE LANDLORD,4001,Uniform Business Rates,01/09/2015,3500003824,684,Oxford City Council
http://statistics.data.gov.uk/id/local-authority/38,Oxfordshire County Council,CORPORATE LANDLORD,4001,Uniform Business Rates,01/09/2015,3500003800,696,Oxford City Council
http://statistics.data.gov.uk/id/local-authority/38,Oxfordshire County Council,CORPORATE LANDLORD,4001,Uniform Business Rates,01/09/2015,3500003811,720,Oxford City Council
http://statistics.data.gov.uk/id/local-authority/38,Oxfordshire County Council,CORPORATE LANDLORD,4001,Uniform Business Rates,01/09/2015,3500003816,768,Oxford City Council
http://statistics.data.gov.uk/id/local-authority/38,Oxfordshire County Council,CORPORATE LANDLORD,4001,Uniform Business Rates,01/09/2015,3500003803,780,Oxford City Council
http://statistics.data.gov.uk/id/local-authority/38,Oxfordshire County Council,CORPORATE LANDLORD,4001,Uniform Business Rates,01/09/2015,3500003804,852,Oxford City Council
http://statistics.data.gov.uk/id/local-authority/38,Oxfordshire County Council,CORPORATE LANDLORD,4001,Uniform Business Rates,01/09/2015,3500003817,949,Oxford City Council
http://statistics.data.gov.uk/id/local-authority/38,Oxfordshire County Council,CORPORATE LANDLORD,4001,Uniform Business Rates,01/09/2015,3500003814,998,Oxford City Council
http://statistics.data.gov.uk/id/local-authority/38,Oxfordshire County Council,CORPORATE LANDLORD,4001,Uniform Business Rates,01/09/2015,3500003802,"1,319.00",Oxford City Council
http://statistics.data.gov.uk/id/local-authority/38,Oxfordshire County Council,CORPORATE LANDLORD,4001,Uniform Business Rates,01/09/2015,3500003826,"1,762.00",Oxford City Council
http://statistics.data.gov.uk/id/local-authority/38,Oxfordshire County Council,CORPORATE LANDLORD,4001,Uniform Business Rates,01/09/2015,3500003806,"1,836.00",Oxford City Council
http://statistics.data.gov.uk/id/local-authority/38,Oxfordshire County Council,CORPORATE LANDLORD,4001,Uniform Business Rates,01/09/2015,3500003807,"2,071.00",Oxford City Council
http://statistics.data.gov.uk/id/local-authority/38,Oxfordshire County Council,CORPORATE LANDLORD,4001,Uniform Business Rates,01/09/2015,3500003808,"2,120.00",Oxford City Council
http://statistics.data.gov.uk/id/local-authority/38,Oxfordshire County Council,CORPORATE LANDLORD,4001,Uniform Business Rates,01/09/2015,3500003809,"2,588.00",Oxford City Council
http://statistics.data.gov.uk/id/local-authority/38,Oxfordshire County Council,CORPORATE LANDLORD,4001,Uniform Business Rates,01/09/2015,3500003825,"2,736.00",Oxford City Council
http://statistics.data.gov.uk/id/local-authority/38,Oxfordshire County Council,CORPORATE LANDLORD,4001,Uniform Business Rates,01/09/2015,3500003812,"3,007.00",Oxford City Council
http://statistics.data.gov.uk/id/local-authority/38,Oxfordshire County Council,CORPORATE LANDLORD,4001,Uniform Business Rates,01/09/2015,3500003819,"3,574.00",Oxford City Council
http://statistics.data.gov.uk/id/local-authority/38,Oxfordshire County Council,CORPORATE LANDLORD,4001,Uniform Business Rates,01/09/2015,3500003823,"4,659.00",Oxford City Council
http://statistics.data.gov.uk/id/local-authority/38,Oxfordshire County Council,CORPORATE LANDLORD,4001,Uniform Business Rates,01/09/2015,3500003815,"6,705.00",Oxford City Council
http://statistics.data.gov.uk/id/local-authority/38,Oxfordshire County Council,CORPORATE LANDLORD,4001,Uniform Business Rates,01/09/2015,3500003810,"7,987.00",Oxford City Council
http://statistics.data.gov.uk/id/local-authority/38,Oxfordshire County Council,CORPORATE LANDLORD,4001,Uniform Business Rates,01/09/2015,3500003828,"11,586.00",Oxford City Council
http://statistics.data.gov.uk/id/local-authority/38,Oxfordshire County Council,CORPORATE LANDLORD,4001,Uniform Business Rates,01/09/2015,3500003818,"11,980.00",Oxford City Council
http://statistics.data.gov.uk/id/local-authority/38,Oxfordshire County Council,CORPORATE LANDLORD,4001,Uniform Business Rates,01/09/2015,3500003801,"15,037.00",Oxford City Council
http://statistics.data.gov.uk/id/local-authority/38,Oxfordshire County Council,CORPORATE LANDLORD,4001,Uniform Business Rates,01/09/2015,3500003827,"22,555.00",Oxford City Council
http://statistics.data.gov.uk/id/local-authority/38,Oxfordshire County Council,CORPORATE LANDLORD,4001,Uniform Business Rates,10/09/2015,2200028173,"25,756.00",Oxford City Council
http://statistics.data.gov.uk/id/local-authority/38,Oxfordshire County Council,CORPORATE LANDLORD,4001,Uniform Business Rates,01/09/2015,3500003886,"1,374.00",Powys County Council
http://statistics.data.gov.uk/id/local-authority/38,Oxfordshire County Council,CORPORATE LANDLORD,4001,Uniform Business Rates,01/09/2015,3500003903,504,South Oxfordshire District Council
http://statistics.data.gov.uk/id/local-authority/38,Oxfordshire County Council,CORPORATE LANDLORD,4001,Uniform Business Rates,01/09/2015,3500003907,672,South Oxfordshire District Council
http://statistics.data.gov.uk/id/local-authority/38,Oxfordshire County Council,CORPORATE LANDLORD,4001,Uniform Business Rates,01/09/2015,3500003924,684,South Oxfordshire District Council
http://statistics.data.gov.uk/id/local-authority/38,Oxfordshire County Council,CORPORATE LANDLORD,4001,Uniform Business Rates,01/09/2015,3500003914,744,South Oxfordshire District Council
http://statistics.data.gov.uk/id/local-authority/38,Oxfordshire County Council,CORPORATE LANDLORD,4001,Uniform Business Rates,01/09/2015,3500003909,756,South Oxfordshire District Council
http://statistics.data.gov.uk/id/local-authority/38,Oxfordshire County Council,CORPORATE LANDLORD,4001,Uniform Business Rates,01/09/2015,3500003911,937,South Oxfordshire District Council
http://statistics.data.gov.uk/id/local-authority/38,Oxfordshire County Council,CORPORATE LANDLORD,4001,Uniform Business Rates,01/09/2015,3500003897,961,South Oxfordshire District Council
http://statistics.data.gov.uk/id/local-authority/38,Oxfordshire County Council,CORPORATE LANDLORD,4001,Uniform Business Rates,01/09/2015,3500003910,974,South Oxfordshire District Council
http://statistics.data.gov.uk/id/local-authority/38,Oxfordshire County Council,CORPORATE LANDLORD,4001,Uniform Business Rates,01/09/2015,3500003920,"1,023.00",South Oxfordshire District Council
http://statistics.data.gov.uk/id/local-authority/38,Oxfordshire County Council,CORPORATE LANDLORD,4001,Uniform Business Rates,01/09/2015,3500003906,"1,171.00",South Oxfordshire District Council
http://statistics.data.gov.uk/id/local-authority/38,Oxfordshire County Council,CONTRACT MANAGEMENT,4001,Uniform Business Rates,01/09/2015,3500003888,"1,393.00",South Oxfordshire District Council
http://statistics.data.gov.uk/id/local-authority/38,Oxfordshire County Council,CORPORATE LANDLORD,4001,Uniform Business Rates,01/09/2015,3500003917,"1,491.00",South Oxfordshire District Council
http://statistics.data.gov.uk/id/local-authority/38,Oxfordshire County Council,CORPORATE LANDLORD,4001,Uniform Business Rates,01/09/2015,3500003901,"1,590.00",South Oxfordshire District Council
http://statistics.data.gov.uk/id/local-authority/38,Oxfordshire County Council,CORPORATE LANDLORD,4001,Uniform Business Rates,01/09/2015,3500003899,"2,206.00",South Oxfordshire District Council
http://statistics.data.gov.uk/id/local-authority/38,Oxfordshire County Council,CORPORATE LANDLORD,4001,Uniform Business Rates,01/09/2015,3500003905,"3,007.00",South Oxfordshire District Council
http://statistics.data.gov.uk/id/local-authority/38,Oxfordshire County Council,CORPORATE LANDLORD,4001,Uniform Business Rates,01/09/2015,3500003894,"3,229.00",South Oxfordshire District Council
http://statistics.data.gov.uk/id/local-authority/38,Oxfordshire County Council,CORPORATE LANDLORD,4001,Uniform Business Rates,01/09/2015,3500003900,"4,240.00",South Oxfordshire District Council
http://statistics.data.gov.uk/id/local-authority/38,Oxfordshire County Council,THORNHILL P & R,4001,Uniform Business Rates,01/09/2015,3500003890,"5,472.00",South Oxfordshire District Council
http://statistics.data.gov.uk/id/local-authority/38,Oxfordshire County Council,CORPORATE LANDLORD,4001,Uniform Business Rates,01/09/2015,3500003736,"1,125.00",The City and Council of Swansea
http://statistics.data.gov.uk/id/local-authority/38,Oxfordshire County Council,CORPORATE LANDLORD,4001,Uniform Business Rates,01/09/2015,3500003932,600,Vale of White Horse District Counci
http://statistics.data.gov.uk/id/local-authority/38,Oxfordshire County Council,CORPORATE LANDLORD,4001,Uniform Business Rates,01/09/2015,3500003935,660,Vale of White Horse District Counci
http://statistics.data.gov.uk/id/local-authority/38,Oxfordshire County Council,CORPORATE LANDLORD,4001,Uniform Business Rates,01/09/2015,3500003939,660,Vale of White Horse District Counci
http://statistics.data.gov.uk/id/local-authority/38,Oxfordshire County Council,CORPORATE LANDLORD,4001,Uniform Business Rates,01/09/2015,3500003940,660,Vale of White Horse District Counci
http://statistics.data.gov.uk/id/local-authority/38,Oxfordshire County Council,CONTRACT MANAGEMENT,4001,Uniform Business Rates,01/09/2015,3500003943,"1,368.00",Vale of White Horse District Counci
http://statistics.data.gov.uk/id/local-authority/38,Oxfordshire County Council,CORPORATE LANDLORD,4001,Uniform Business Rates,01/09/2015,3500003936,"1,479.00",Vale of White Horse District Counci
http://statistics.data.gov.uk/id/local-authority/38,Oxfordshire County Council,CORPORATE LANDLORD,4001,Uniform Business Rates,01/09/2015,3500003938,"1,553.00",Vale of White Horse District Counci
http://statistics.data.gov.uk/id/local-authority/38,Oxfordshire County Council,CONTRACT MANAGEMENT,4001,Uniform Business Rates,01/09/2015,3500003927,"1,762.00",Vale of White Horse District Counci
http://statistics.data.gov.uk/id/local-authority/38,Oxfordshire County Council,CORPORATE LANDLORD,4001,Uniform Business Rates,01/09/2015,3500003937,"1,824.00",Vale of White Horse District Counci
http://statistics.data.gov.uk/id/local-authority/38,Oxfordshire County Council,CORPORATE LANDLORD,4001,Uniform Business Rates,01/09/2015,3500003930,"2,169.00",Vale of White Horse District Counci
http://statistics.data.gov.uk/id/local-authority/38,Oxfordshire County Council,CORPORATE LANDLORD,4001,Uniform Business Rates,01/09/2015,3500003942,"3,993.00",Vale of White Horse District Counci
http://statistics.data.gov.uk/id/local-authority/38,Oxfordshire County Council,CORPORATE LANDLORD,4001,Uniform Business Rates,01/09/2015,3500003880,552,West Oxfordshire District Council
http://statistics.data.gov.uk/id/local-authority/38,Oxfordshire County Council,CORPORATE LANDLORD,4001,Uniform Business Rates,01/09/2015,3500003865,624,West Oxfordshire District Council
http://statistics.data.gov.uk/id/local-authority/38,Oxfordshire County Council,CORPORATE LANDLORD,4001,Uniform Business Rates,01/09/2015,3500003869,648,West Oxfordshire District Council
http://statistics.data.gov.uk/id/local-authority/38,Oxfordshire County Council,CORPORATE LANDLORD,4001,Uniform Business Rates,01/09/2015,3500003874,684,West Oxfordshire District Council
http://statistics.data.gov.uk/id/local-authority/38,Oxfordshire County Council,CORPORATE LANDLORD,4001,Uniform Business Rates,01/09/2015,3500003875,720,West Oxfordshire District Council
http://statistics.data.gov.uk/id/local-authority/38,Oxfordshire County Council,CORPORATE LANDLORD,4001,Uniform Business Rates,01/09/2015,3500003878,720,West Oxfordshire District Council
http://statistics.data.gov.uk/id/local-authority/38,Oxfordshire County Council,CORPORATE LANDLORD,4001,Uniform Business Rates,01/09/2015,3500003870,756,West Oxfordshire District Council
http://statistics.data.gov.uk/id/local-authority/38,Oxfordshire County Council,CORPORATE LANDLORD,4001,Uniform Business Rates,01/09/2015,3500003871,792,West Oxfordshire District Council
http://statistics.data.gov.uk/id/local-authority/38,Oxfordshire County Council,CORPORATE LANDLORD,4001,Uniform Business Rates,01/09/2015,3500003859,998,West Oxfordshire District Council
http://statistics.data.gov.uk/id/local-authority/38,Oxfordshire County Council,CORPORATE LANDLORD,4001,Uniform Business Rates,01/09/2015,3500003872,"1,109.00",West Oxfordshire District Council
http://statistics.data.gov.uk/id/local-authority/38,Oxfordshire County Council,CORPORATE LANDLORD,4001,Uniform Business Rates,01/09/2015,3500003873,"1,516.00",West Oxfordshire District Council
http://statistics.data.gov.uk/id/local-authority/38,Oxfordshire County Council,CORPORATE LANDLORD,4001,Uniform Business Rates,01/09/2015,3500003867,"1,602.00",West Oxfordshire District Council
http://statistics.data.gov.uk/id/local-authority/38,Oxfordshire County Council,CORPORATE LANDLORD,4001,Uniform Business Rates,01/09/2015,3500003881,"1,664.00",West Oxfordshire District Council
http://statistics.data.gov.uk/id/local-authority/38,Oxfordshire County Council,CORPORATE LANDLORD,4001,Uniform Business Rates,15/09/2015,2200028175,"1,782.17",West Oxfordshire District Council
http://statistics.data.gov.uk/id/local-authority/38,Oxfordshire County Council,CORPORATE LANDLORD,4001,Uniform Business Rates,01/09/2015,3500003882,"1,849.00",West Oxfordshire District Council
http://statistics.data.gov.uk/id/local-authority/38,Oxfordshire County Council,CORPORATE LANDLORD,4001,Uniform Business Rates,01/09/2015,3500003879,"3,377.00",West Oxfordshire District Council
http://statistics.data.gov.uk/id/local-authority/38,Oxfordshire County Council,CORPORATE LANDLORD,4001,Uniform Business Rates,01/09/2015,3500003877,"3,574.00",West Oxfordshire District Council
http://statistics.data.gov.uk/id/local-authority/38,Oxfordshire County Council,CORPORATE LANDLORD,4001,Uniform Business Rates,04/09/2015,2200024369,"24,047.00",West Oxfordshire District Council
http://statistics.data.gov.uk/id/local-authority/38,Oxfordshire County Council,CORPORATE LANDLORD,4001,Uniform Business Rates,01/09/2015,3500003945,"1,233.00",West Somerset District Council
http://statistics.data.gov.uk/id/local-authority/38,Oxfordshire County Council,EQUIP TESTING &MAINT,4040,Fire Equipment,09/09/2015,2200023301,894.25,Hilti Gb Limited
http://statistics.data.gov.uk/id/local-authority/38,Oxfordshire County Council,ABINGDON DC,4042,Fixtures and Fittings,01/09/2015,2200020101,666.9,Carillion LGS Ltd
http://statistics.data.gov.uk/id/local-authority/38,Oxfordshire County Council,THE ROUNDABOUT CNTRE,4042,Fixtures and Fittings,17/09/2015,2200028839,750,Carillion LGS Ltd
http://statistics.data.gov.uk/id/local-authority/38,Oxfordshire County Council,THE ROUNDABOUT CNTRE,4042,Fixtures and Fittings,15/09/2015,2200029170,"1,660.00",Carillion LGS Ltd
http://statistics.data.gov.uk/id/local-authority/38,Oxfordshire County Council,THE ROUNDABOUT CNTRE,4042,Fixtures and Fittings,15/09/2015,2200028011,"2,179.12",Carillion LGS Ltd
http://statistics.data.gov.uk/id/local-authority/38,Oxfordshire County Council,THE ROUNDABOUT CNTRE,4042,Fixtures and Fittings,15/09/2015,2200027220,"2,574.88",Carillion LGS Ltd
http://statistics.data.gov.uk/id/local-authority/38,Oxfordshire County Council,THE ROUNDABOUT CNTRE,4042,Fixtures and Fittings,15/09/2015,2200027219,"2,631.00",Carillion LGS Ltd
http://statistics.data.gov.uk/id/local-authority/38,Oxfordshire County Council,THE ROUNDABOUT CNTRE,4042,Fixtures and Fittings,16/09/2015,2200028043,"2,631.00",Carillion LGS Ltd
http://statistics.data.gov.uk/id/local-authority/38,Oxfordshire County Council,THE ROUNDABOUT CNTRE,4042,Fixtures and Fittings,15/09/2015,2200028008,"3,354.40",Carillion LGS Ltd
http://statistics.data.gov.uk/id/local-authority/38,Oxfordshire County Council,HILL END,4070,Cleaning services,09/09/2015,2200025817,"1,000.00",Aspire Oxfordshire
http://statistics.data.gov.uk/id/local-authority/38,Oxfordshire County Council,HILL END,4070,Cleaning services,10/09/2015,2200024605,"1,000.00",Aspire Oxfordshire
http://statistics.data.gov.uk/id/local-authority/38,Oxfordshire County Council,REAL TIME BUS INFO,4070,Cleaning services,15/09/2015,2200028145,689.76,Bus Shelters Ltd
http://statistics.data.gov.uk/id/local-authority/38,Oxfordshire County Council,REAL TIME BUS INFO,4070,Cleaning services,15/09/2015,2200028147,689.76,Bus Shelters Ltd
http://statistics.data.gov.uk/id/local-authority/38,Oxfordshire County Council,SOFT FM,4070,Cleaning services,14/09/2015,2200027844,"3,600.62",Carillion LGS Ltd
http://statistics.data.gov.uk/id/local-authority/38,Oxfordshire County Council,REGISTRAR,4070,Cleaning services,21/09/2015,2200030361,500,D F Williams Cleaning Services Ltd
http://statistics.data.gov.uk/id/local-authority/38,Oxfordshire County Council,PREMISES,4070,Cleaning services,01/09/2015,2200020179,965,D F Williams Cleaning Services Ltd
http://statistics.data.gov.uk/id/local-authority/38,Oxfordshire County Council,CSB - HEALTH 2,4070,Cleaning services,30/09/2015,2200036522,915,EXTREME ENVIRONMENTAL SERVICES LTD
http://statistics.data.gov.uk/id/local-authority/38,Oxfordshire County Council,FLETCHERS HOUSE SITE,4070,Cleaning services,01/09/2015,2200020835,622.33,Parker Contract Cleaning
http://statistics.data.gov.uk/id/local-authority/38,Oxfordshire County Council,FLETCHERS HOUSE SITE,4070,Cleaning services,04/09/2015,2200022260,622.33,Parker Contract Cleaning
http://statistics.data.gov.uk/id/local-authority/38,Oxfordshire County Council,Refuse,4092,General Refuse Collection and Disposal,11/09/2015,2200024938,"-6,534.93",GRUNDON WASTE MANAGEMENT LTD
http://statistics.data.gov.uk/id/local-authority/38,Oxfordshire County Council,CORPORATE LANDLORD,4092,General Refuse Collection and Disposal,04/09/2015,3500004337,"1,144.98",West Oxfordshire District Council
http://statistics.data.gov.uk/id/local-authority/38,Oxfordshire County Council,CORPORATE LANDLORD,4111,Security Costs,01/09/2015,2200020170,520,Securipol (Systems) Ltd
http://statistics.data.gov.uk/id/local-authority/38,Oxfordshire County Council,ELECTRIC AVENUE,4111,Security Costs,02/09/2015,2200020902,550,Securipol Ltd
http://statistics.data.gov.uk/id/local-authority/38,Oxfordshire County Council,COUNTY HALL,4111,Security Costs,01/09/2015,2200020289,614.85,Securipol Ltd
http://statistics.data.gov.uk/id/local-authority/38,Oxfordshire County Council,CORPORATE LANDLORD,4111,Security Costs,02/09/2015,2200020646,668.8,Securipol Ltd
http://statistics.data.gov.uk/id/local-authority/38,Oxfordshire County Council,DIDCOT HUB,4111,Security Costs,04/09/2015,2200023724,768,Securipol Ltd
http://statistics.data.gov.uk/id/local-authority/38,Oxfordshire County Council,KNIGHTS COURT,4111,Security Costs,02/09/2015,2200025000,808.5,Securipol Ltd
http://statistics.data.gov.uk/id/local-authority/38,Oxfordshire County Council,CORPORATE LANDLORD,4111,Security Costs,02/09/2015,2200021737,903,Securipol Ltd
http://statistics.data.gov.uk/id/local-authority/38,Oxfordshire County Council,SPEEDWELL HOUSE,4111,Security Costs,02/09/2015,2200020783,"1,191.25",Securipol Ltd
http://statistics.data.gov.uk/id/local-authority/38,Oxfordshire County Council,SAMUELSON HOUSE,4111,Security Costs,10/09/2015,2200024222,"1,700.00",Securipol Ltd
http://statistics.data.gov.uk/id/local-authority/38,Oxfordshire County Council,SAMUELSON HOUSE,4111,Security Costs,21/09/2015,2200030098,"1,700.00",Securipol Ltd
http://statistics.data.gov.uk/id/local-authority/38,Oxfordshire County Council,HARD FM,4122,Other premises related costs,14/09/2015,2200027845,"3,518.74",Carillion LGS Ltd
http://statistics.data.gov.uk/id/local-authority/38,Oxfordshire County Council,PREMISES,4122,Other premises related costs,07/09/2015,2200021951,"4,723.40",Carillion LGS Ltd
http://statistics.data.gov.uk/id/local-authority/38,Oxfordshire County Council,FM RECHARGES,4122,Other premises related costs,24/09/2015,2200032610,"1,123.23",Nationwide Business Relocations Ltd
http://statistics.data.gov.uk/id/local-authority/38,Oxfordshire County Council,CORPORATE LANDLORD,4122,Other premises related costs,08/09/2015,2200024820,"2,189.27",Nationwide Business Relocations Ltd
http://statistics.data.gov.uk/id/local-authority/38,Oxfordshire County Council,CORPORATE LANDLORD,4122,Other premises related costs,18/09/2015,2200034596,"4,396.50",Wright Contractors Ltd
http://statistics.data.gov.uk/id/local-authority/38,Oxfordshire County Council,FLEET OPERATIONS,4220,Vehicle Workshop Spares and Consumables,15/09/2015,2200027212,"4,305.00",SIEMENS FINANCIAL SERVICES LTD
http://statistics.data.gov.uk/id/local-authority/38,Oxfordshire County Council,WOODLANDS CENTRE,4232,Vehicle Fuel,22/09/2015,2200031594,"1,365.00",OJ Williams
http://statistics.data.gov.uk/id/local-authority/38,Oxfordshire County Council,PROCUREMENT,4232,Vehicle Fuel,17/09/2015,2200031405,693.5,Allstar Business Solutions Ltd
http://statistics.data.gov.uk/id/local-authority/38,Oxfordshire County Council,PROCUREMENT,4232,Vehicle Fuel,30/09/2015,2200035740,722.32,Allstar Business Solutions Ltd
http://statistics.data.gov.uk/id/local-authority/38,Oxfordshire County Council,PROCUREMENT,4232,Vehicle Fuel,29/09/2015,2200035809,880.48,Allstar Business Solutions Ltd
http://statistics.data.gov.uk/id/local-authority/38,Oxfordshire County Council,PROCUREMENT,4232,Vehicle Fuel,04/09/2015,2200030079,901.89,Allstar Business Solutions Ltd
http://statistics.data.gov.uk/id/local-authority/38,Oxfordshire County Council,PROCUREMENT,4232,Vehicle Fuel,11/09/2015,2200024775,925.53,Allstar Business Solutions Ltd
http://statistics.data.gov.uk/id/local-authority/38,Oxfordshire County Council,PROCUREMENT,4232,Vehicle Fuel,10/09/2015,2200033520,"1,478.94",Allstar Business Solutions Ltd
http://statistics.data.gov.uk/id/local-authority/38,Oxfordshire County Council,PROCUREMENT,4232,Vehicle Fuel,29/09/2015,2200035204,633.71,Certas Energy UK Ltd
http://statistics.data.gov.uk/id/local-authority/38,Oxfordshire County Council,PROCUREMENT,4232,Vehicle Fuel,23/09/2015,2200032039,663.76,Certas Energy UK Ltd
http://statistics.data.gov.uk/id/local-authority/38,Oxfordshire County Council,PROCUREMENT,4232,Vehicle Fuel,23/09/2015,2200032042,708.96,Certas Energy UK Ltd
http://statistics.data.gov.uk/id/local-authority/38,Oxfordshire County Council,PROCUREMENT,4232,Vehicle Fuel,28/09/2015,2200034797,724.24,Certas Energy UK Ltd
http://statistics.data.gov.uk/id/local-authority/38,Oxfordshire County Council,PROCUREMENT,4232,Vehicle Fuel,11/09/2015,2200028102,844.78,Certas Energy UK Ltd
http://statistics.data.gov.uk/id/local-authority/38,Oxfordshire County Council,PROCUREMENT,4232,Vehicle Fuel,23/09/2015,2200032045,876.2,Certas Energy UK Ltd
http://statistics.data.gov.uk/id/local-authority/38,Oxfordshire County Council,PROCUREMENT,4232,Vehicle Fuel,11/09/2015,2200026389,880.9,Certas Energy UK Ltd
http://statistics.data.gov.uk/id/local-authority/38,Oxfordshire County Council,PROCUREMENT,4232,Vehicle Fuel,23/09/2015,2200032007,895.3,Certas Energy UK Ltd
http://statistics.data.gov.uk/id/local-authority/38,Oxfordshire County Council,PROCUREMENT,4232,Vehicle Fuel,09/09/2015,2200023860,"1,101.13",Certas Energy UK Ltd
http://statistics.data.gov.uk/id/local-authority/38,Oxfordshire County Council,PROCUREMENT,4232,Vehicle Fuel,11/09/2015,2200026390,"1,314.30",Certas Energy UK Ltd
http://statistics.data.gov.uk/id/local-authority/38,Oxfordshire County Council,PROCUREMENT,4232,Vehicle Fuel,02/09/2015,2200020691,"1,761.80",Certas Energy UK Ltd
http://statistics.data.gov.uk/id/local-authority/38,Oxfordshire County Council,PROCUREMENT,4232,Vehicle Fuel,11/09/2015,2200025568,"2,373.91",Certas Energy UK Ltd
http://statistics.data.gov.uk/id/local-authority/38,Oxfordshire County Council,FLEET OPERATIONS,4232,Vehicle Fuel,08/09/2015,2200022426,"7,022.40",Certas Energy UK Ltd
http://statistics.data.gov.uk/id/local-authority/38,Oxfordshire County Council,SPECIAL ACCOUNT,4270,HTM / Other Vehicle - Hire Charges,10/09/2015,2200026812,900,Bakers Commercial Services Ltd
http://statistics.data.gov.uk/id/local-authority/38,Oxfordshire County Council,CAR LEASING,4270,HTM / Other Vehicle - Hire Charges,07/09/2015,2200024368,"4,196.00",Commercial Services Trading Ltd
http://statistics.data.gov.uk/id/local-authority/38,Oxfordshire County Council,CAR LEASING,4270,HTM / Other Vehicle - Hire Charges,07/09/2015,2200024366,"4,390.00",Commercial Services Trading Ltd
http://statistics.data.gov.uk/id/local-authority/38,Oxfordshire County Council,WITNEY HUB,4270,HTM / Other Vehicle - Hire Charges,04/09/2015,2200021565,533.6,Heyfordian Travel Ltd
http://statistics.data.gov.uk/id/local-authority/38,Oxfordshire County Council,BICESTER CC,4270,HTM / Other Vehicle - Hire Charges,01/09/2015,2200019849,900,Heyfordian Travel Ltd
http://statistics.data.gov.uk/id/local-authority/38,Oxfordshire County Council,CAR LEASING,4270,HTM / Other Vehicle - Hire Charges,25/09/2015,2200035084,"3,477.21",LeasePlan UK Ltd t/a Automotive Lea
http://statistics.data.gov.uk/id/local-authority/38,Oxfordshire County Council,VEHICLE MAINTENANCE,4270,HTM / Other Vehicle - Hire Charges,17/09/2015,2200031141,"10,849.84",LeasePlan UK Ltd t/a Automotive Lea
http://statistics.data.gov.uk/id/local-authority/38,Oxfordshire County Council,VEHICLE MAINTENANCE,4270,HTM / Other Vehicle - Hire Charges,17/09/2015,2200031142,"10,849.84",LeasePlan UK Ltd t/a Automotive Lea
http://statistics.data.gov.uk/id/local-authority/38,Oxfordshire County Council,VEHICLE MAINTENANCE,4270,HTM / Other Vehicle - Hire Charges,01/09/2015,2200020105,"5,800.00",London Hire
http://statistics.data.gov.uk/id/local-authority/38,Oxfordshire County Council,VEHICLE MAINTENANCE,4270,HTM / Other Vehicle - Hire Charges,11/09/2015,2200026923,"5,800.00",London Hire
http://statistics.data.gov.uk/id/local-authority/38,Oxfordshire County Council,VEHICLE MAINTENANCE,4270,HTM / Other Vehicle - Hire Charges,18/09/2015,2200029428,"6,250.00",London Hire
http://statistics.data.gov.uk/id/local-authority/38,Oxfordshire County Council,MUSIC UNALLOCABLE,4270,HTM / Other Vehicle - Hire Charges,16/09/2015,2200027610,"2,065.00",Pulham & Sons (Coaches) Ltd
http://statistics.data.gov.uk/id/local-authority/38,Oxfordshire County Council,HEADINGTON/ CITY DTS,4270,HTM / Other Vehicle - Hire Charges,09/09/2015,2200023535,"1,368.63",The Village Motor Company Ltd
http://statistics.data.gov.uk/id/local-authority/38,Oxfordshire County Council,ROW MAINT,4280,Car Leasing Business Rentals,07/09/2015,2200021801,"-6,975.19",Commercial Services Trading Ltd
http://statistics.data.gov.uk/id/local-authority/38,Oxfordshire County Council,ROW MAINT,4280,Car Leasing Business Rentals,07/09/2015,2200021800,"-6,660.41",Commercial Services Trading Ltd
http://statistics.data.gov.uk/id/local-authority/38,Oxfordshire County Council,ROW MAINT,4280,Car Leasing Business Rentals,07/09/2015,2200021790,"7,067.00",Commercial Services Trading Ltd
http://statistics.data.gov.uk/id/local-authority/38,Oxfordshire County Council,ROW MAINT,4280,Car Leasing Business Rentals,07/09/2015,2200021791,"7,401.00",Commercial Services Trading Ltd
http://statistics.data.gov.uk/id/local-authority/38,Oxfordshire County Council,PD COMM SUPP AB'DON,4314,"Other Trans Contract Costs (CRB, Car Sea",01/09/2015,3110011588,558.08,Oxon Transport Services Ltd
http://statistics.data.gov.uk/id/local-authority/38,Oxfordshire County Council,YENWORTHY LODGE,4314,"Other Trans Contract Costs (CRB, Car Sea",22/09/2015,3110015285,"1,300.00",Tappins Coaches Ltd
http://statistics.data.gov.uk/id/local-authority/38,Oxfordshire County Council,WOODLANDS CENTRE,4314,"Other Trans Contract Costs (CRB, Car Sea",22/09/2015,3110015283,"1,580.00",Tappins Coaches Ltd
http://statistics.data.gov.uk/id/local-authority/38,Oxfordshire County Council,KILVROUGH MANOR,4314,"Other Trans Contract Costs (CRB, Car Sea",22/09/2015,3110015287,"1,860.00",Tappins Coaches Ltd
http://statistics.data.gov.uk/id/local-authority/38,Oxfordshire County Council,SEN TRANSPORT,4320,Pupil / Client Travel Reimbursement,14/09/2015,3110013453,"1,331.20",Redacted Personal Data
http://statistics.data.gov.uk/id/local-authority/38,Oxfordshire County Council,MAINSTREAM-PRIMARY,4322,"Season Tickets - Bus, Rail & Ferry",09/09/2015,3110012667,726,First Great Western Ltd
http://statistics.data.gov.uk/id/local-authority/38,Oxfordshire County Council,MAINSTREAM-SECONDARY,4322,"Season Tickets - Bus, Rail & Ferry",14/09/2015,3110013488,"9,690.00",Reading Transport Ltd
http://statistics.data.gov.uk/id/local-authority/38,Oxfordshire County Council,MAINSTREAM-SECONDARY,4322,"Season Tickets - Bus, Rail & Ferry",29/09/2015,3110016900,"-3,647.00",Stagecoach Services Ltd
http://statistics.data.gov.uk/id/local-authority/38,Oxfordshire County Council,MAINSTREAM-SECONDARY,4322,"Season Tickets - Bus, Rail & Ferry",29/09/2015,3110016899,-814,Stagecoach Services Ltd
http://statistics.data.gov.uk/id/local-authority/38,Oxfordshire County Council,MAINSTREAM-SECONDARY,4322,"Season Tickets - Bus, Rail & Ferry",29/09/2015,3110016901,657,Stagecoach Services Ltd
http://statistics.data.gov.uk/id/local-authority/38,Oxfordshire County Council,TRANSPORT COSTS,4330,Transport to School Activities,23/09/2015,3110015452,917.63,Redacted Personal Data
http://statistics.data.gov.uk/id/local-authority/38,Oxfordshire County Council,SEN TRANSPORT,4330,Transport to School Activities,18/09/2015,3110014989,"1,183.00",C S Comley
http://statistics.data.gov.uk/id/local-authority/38,Oxfordshire County Council,SEN TRANSPORT,4330,Transport to School Activities,18/09/2015,3110014987,"1,231.10",C S Comley
http://statistics.data.gov.uk/id/local-authority/38,Oxfordshire County Council,TRANSPORT COSTS,4330,Transport to School Activities,23/09/2015,3110015473,697.78,Redacted Personal Data
http://statistics.data.gov.uk/id/local-authority/38,Oxfordshire County Council,TRANSPORT COSTS,4330,Transport to School Activities,23/09/2015,3110015440,565.12,Redacted Personal Data
http://statistics.data.gov.uk/id/local-authority/38,Oxfordshire County Council,TRANSPORT COSTS,4330,Transport to School Activities,23/09/2015,3110015405,"1,021.69",Redacted Personal Data
http://statistics.data.gov.uk/id/local-authority/38,Oxfordshire County Council,TRANSPORT COSTS,4330,Transport to School Activities,23/09/2015,3110015488,641.37,Redacted Personal Data
http://statistics.data.gov.uk/id/local-authority/38,Oxfordshire County Council,TRANSPORT COSTS,4330,Transport to School Activities,23/09/2015,3110015332,527.84,Redacted Personal Data
http://statistics.data.gov.uk/id/local-authority/38,Oxfordshire County Council,TRANSPORT COSTS,4330,Transport to School Activities,23/09/2015,3110015397,614.58,Redacted Personal Data
http://statistics.data.gov.uk/id/local-authority/38,Oxfordshire County Council,TRANSPORT COSTS,4330,Transport to School Activities,23/09/2015,3110015358,627.46,Redacted Personal Data
http://statistics.data.gov.uk/id/local-authority/38,Oxfordshire County Council,SEN TRANSPORT,4330,Transport to School Activities,22/09/2015,3110015277,"1,024.86",Abingdon Taxis FKN Autotaxis
http://statistics.data.gov.uk/id/local-authority/38,Oxfordshire County Council,SEN TRANSPORT,4330,Transport to School Activities,14/09/2015,3110013452,"1,092.47",Abingdon Taxis FKN Autotaxis
http://statistics.data.gov.uk/id/local-authority/38,Oxfordshire County Council,SEN TRANSPORT,4330,Transport to School Activities,22/09/2015,3110015258,"1,092.47",Abingdon Taxis FKN Autotaxis
http://statistics.data.gov.uk/id/local-authority/38,Oxfordshire County Council,SEN TRANSPORT,4330,Transport to School Activities,22/09/2015,3110015263,"1,282.62",Abingdon Taxis FKN Autotaxis
http://statistics.data.gov.uk/id/local-authority/38,Oxfordshire County Council,SEN TRANSPORT,4330,Transport to School Activities,22/09/2015,3110015266,"1,304.52",Abingdon Taxis FKN Autotaxis
http://statistics.data.gov.uk/id/local-authority/38,Oxfordshire County Council,SEN TRANSPORT,4330,Transport to School Activities,22/09/2015,3110015261,"2,356.64",Abingdon Taxis FKN Autotaxis
http://statistics.data.gov.uk/id/local-authority/38,Oxfordshire County Council,SEN TRANSPORT,4330,Transport to School Activities,22/09/2015,3110015279,"2,393.68",Abingdon Taxis FKN Autotaxis
http://statistics.data.gov.uk/id/local-authority/38,Oxfordshire County Council,SEN TRANSPORT,4330,Transport to School Activities,22/09/2015,3110015273,"3,100.00",Abingdon Taxis FKN Autotaxis
http://statistics.data.gov.uk/id/local-authority/38,Oxfordshire County Council,SEN TRANSPORT,4330,Transport to School Activities,22/09/2015,3110015268,"3,341.47",Abingdon Taxis FKN Autotaxis
http://statistics.data.gov.uk/id/local-authority/38,Oxfordshire County Council,MAINSTREAM-PRIMARY,4330,Transport to School Activities,14/09/2015,3110013410,528,Ace Taxis (West Oxfordshire) Ltd
http://statistics.data.gov.uk/id/local-authority/38,Oxfordshire County Council,MAINSTREAM-SECONDARY,4330,Transport to School Activities,30/09/2015,3110017670,"1,995.41",AKR Ltd
http://statistics.data.gov.uk/id/local-authority/38,Oxfordshire County Council,MAINSTREAM-PRIMARY,4330,Transport to School Activities,30/09/2015,3110017668,"2,500.00",AKR Ltd
http://statistics.data.gov.uk/id/local-authority/38,Oxfordshire County Council,SEN TRANSPORT,4330,Transport to School Activities,30/09/2015,3110017674,"2,800.00",AKR Ltd
http://statistics.data.gov.uk/id/local-authority/38,Oxfordshire County Council,MAINSTREAM-SECONDARY,4330,Transport to School Activities,30/09/2015,3110017669,"3,066.84",AKR Ltd
http://statistics.data.gov.uk/id/local-authority/38,Oxfordshire County Council,SEN TRANSPORT,4330,Transport to School Activities,30/09/2015,3110017672,"3,180.00",AKR Ltd
http://statistics.data.gov.uk/id/local-authority/38,Oxfordshire County Council,MAINSTREAM-SECONDARY,4330,Transport to School Activities,30/09/2015,3110017667,"3,317.79",AKR Ltd
http://statistics.data.gov.uk/id/local-authority/38,Oxfordshire County Council,SEN TRANSPORT,4330,Transport to School Activities,30/09/2015,3110017629,"1,016.80",Angelas Travel
http://statistics.data.gov.uk/id/local-authority/38,Oxfordshire County Council,SEN TRANSPORT,4330,Transport to School Activities,30/09/2015,3110017632,"1,195.60",Angelas Travel
http://statistics.data.gov.uk/id/local-authority/38,Oxfordshire County Council,SEN TRANSPORT,4330,Transport to School Activities,30/09/2015,3110017630,"1,569.60",Angelas Travel
http://statistics.data.gov.uk/id/local-authority/38,Oxfordshire County Council,MAINSTREAM-SECONDARY,4330,Transport to School Activities,16/09/2015,3110014562,"2,228.70",Angelas Travel
http://statistics.data.gov.uk/id/local-authority/38,Oxfordshire County Council,MAINSTREAM-SECONDARY,4330,Transport to School Activities,30/09/2015,3110017636,"2,493.00",Angelas Travel
http://statistics.data.gov.uk/id/local-authority/38,Oxfordshire County Council,MAINSTREAM-SECONDARY,4330,Transport to School Activities,30/09/2015,3110017635,"2,589.40",Angelas Travel
http://statistics.data.gov.uk/id/local-authority/38,Oxfordshire County Council,MAINSTREAM-SECONDARY,4330,Transport to School Activities,30/09/2015,3110017634,"2,971.60",Angelas Travel
http://statistics.data.gov.uk/id/local-authority/38,Oxfordshire County Council,SEN TRANSPORT,4330,Transport to School Activities,17/09/2015,3110014792,500,Black and White Cars T/A Banbury Ta
http://statistics.data.gov.uk/id/local-authority/38,Oxfordshire County Council,TRANSPORT COSTS,4330,Transport to School Activities,23/09/2015,3110015886,560,Black and White Cars T/A Banbury Ta
http://statistics.data.gov.uk/id/local-authority/38,Oxfordshire County Council,TRANSPORT COSTS,4330,Transport to School Activities,02/09/2015,3110011604,588,Black and White Cars T/A Banbury Ta
http://statistics.data.gov.uk/id/local-authority/38,Oxfordshire County Council,LOOKED AFTER NORTH,4330,Transport to School Activities,02/09/2015,3110011617,780,Black and White Cars T/A Banbury Ta
http://statistics.data.gov.uk/id/local-authority/38,Oxfordshire County Council,LOOKED AFTER NORTH,4330,Transport to School Activities,23/09/2015,3110015896,780,Black and White Cars T/A Banbury Ta
http://statistics.data.gov.uk/id/local-authority/38,Oxfordshire County Council,TRANSPORT COSTS,4330,Transport to School Activities,15/09/2015,3110013683,"1,176.00",Black and White Cars T/A Banbury Ta
http://statistics.data.gov.uk/id/local-authority/38,Oxfordshire County Council,POST 16 SEN,4330,Transport to School Activities,17/09/2015,3110014791,"1,422.00",Black and White Cars T/A Banbury Ta
http://statistics.data.gov.uk/id/local-authority/38,Oxfordshire County Council,POST 16 SEN,4330,Transport to School Activities,02/09/2015,3110011607,"1,440.00",Black and White Cars T/A Banbury Ta
http://statistics.data.gov.uk/id/local-authority/38,Oxfordshire County Council,ASSESS TEAM CITY,4330,Transport to School Activities,02/09/2015,3110011603,"1,666.00",Black and White Cars T/A Banbury Ta
http://statistics.data.gov.uk/id/local-authority/38,Oxfordshire County Council,RESPITE,4330,Transport to School Activities,04/09/2015,3110011711,"1,760.00",Black and White Cars T/A Banbury Ta
http://statistics.data.gov.uk/id/local-authority/38,Oxfordshire County Council,MAINSTREAM-SECONDARY,4330,Transport to School Activities,30/09/2015,3110017661,"3,441.40",Blunsdons Coach Travel
http://statistics.data.gov.uk/id/local-authority/38,Oxfordshire County Council,MAINSTREAM-SECONDARY,4330,Transport to School Activities,30/09/2015,3110017660,"3,599.60",Blunsdons Coach Travel
http://statistics.data.gov.uk/id/local-authority/38,Oxfordshire County Council,TRANSPORT,4330,Transport to School Activities,02/09/2015,3110011634,"10,428.62",British Red Cross Society
http://statistics.data.gov.uk/id/local-authority/38,Oxfordshire County Council,MEADOWBROOK TRANSPT,4330,Transport to School Activities,30/09/2015,3110017662,620,Browns Taxis Ltd
http://statistics.data.gov.uk/id/local-authority/38,Oxfordshire County Council,MEADOWBROOK TRANSPT,4330,Transport to School Activities,03/09/2015,3110011670,765,Browns Taxis Ltd
http://statistics.data.gov.uk/id/local-authority/38,Oxfordshire County Council,LOOKED AFTER CITY 2,4330,Transport to School Activities,02/09/2015,3110011485,622,Redacted Personal Data
http://statistics.data.gov.uk/id/local-authority/38,Oxfordshire County Council,SEN TRANSPORT,4330,Transport to School Activities,09/09/2015,3110012352,"2,926.00",C&M Management Services Ltd
http://statistics.data.gov.uk/id/local-authority/38,Oxfordshire County Council,SEN TRANSPORT,4330,Transport to School Activities,30/09/2015,3110017665,"14,820.00",Cambridgeshire County Council
http://statistics.data.gov.uk/id/local-authority/38,Oxfordshire County Council,TRANSPORT COSTS,4330,Transport to School Activities,01/09/2015,3110011098,"1,395.00",Charlies Taxis Ltd
http://statistics.data.gov.uk/id/local-authority/38,Oxfordshire County Council,SEN TRANSPORT,4330,Transport to School Activities,08/09/2015,3110011922,"1,050.00",Chiltern Taxis
http://statistics.data.gov.uk/id/local-authority/38,Oxfordshire County Council,SEN TRANSPORT,4330,Transport to School Activities,29/09/2015,3110016882,550,Findlay CS Ltd
http://statistics.data.gov.uk/id/local-authority/38,Oxfordshire County Council,SEN TRANSPORT,4330,Transport to School Activities,29/09/2015,3110016865,"1,200.00",Findlay CS Ltd
http://statistics.data.gov.uk/id/local-authority/38,Oxfordshire County Council,SEN TRANSPORT,4330,Transport to School Activities,29/09/2015,3110016869,"1,760.00",Findlay CS Ltd
http://statistics.data.gov.uk/id/local-authority/38,Oxfordshire County Council,SEN TRANSPORT,4330,Transport to School Activities,29/09/2015,3110016873,"2,178.80",Findlay CS Ltd
http://statistics.data.gov.uk/id/local-authority/38,Oxfordshire County Council,SEN TRANSPORT,4330,Transport to School Activities,29/09/2015,3110016877,"2,856.60",Findlay CS Ltd
http://statistics.data.gov.uk/id/local-authority/38,Oxfordshire County Council,MAINSTREAM-SECONDARY,4330,Transport to School Activities,29/09/2015,3110016863,"3,744.30",Findlay CS Ltd
http://statistics.data.gov.uk/id/local-authority/38,Oxfordshire County Council,MAINSTREAM-SECONDARY,4330,Transport to School Activities,02/09/2015,3110011596,598,Go Green Taxis
http://statistics.data.gov.uk/id/local-authority/38,Oxfordshire County Council,MAINSTREAM-PRIMARY,4330,Transport to School Activities,02/09/2015,3110011595,660,Go Green Taxis
http://statistics.data.gov.uk/id/local-authority/38,Oxfordshire County Council,MAINSTREAM-SECONDARY,4330,Transport to School Activities,02/09/2015,3110011598,858,Go Green Taxis
http://statistics.data.gov.uk/id/local-authority/38,Oxfordshire County Council,MAINSTREAM-SECONDARY,4330,Transport to School Activities,14/09/2015,3110013402,572,Henley Taxis Ltd
http://statistics.data.gov.uk/id/local-authority/38,Oxfordshire County Council,FAM SUPP SOUTH,4330,Transport to School Activities,15/09/2015,3110013650,595,Henley Taxis Ltd
http://statistics.data.gov.uk/id/local-authority/38,Oxfordshire County Council,SEN TRANSPORT,4330,Transport to School Activities,14/09/2015,3110013395,949.46,Henley Taxis Ltd
http://statistics.data.gov.uk/id/local-authority/38,Oxfordshire County Council,SEN TRANSPORT,4330,Transport to School Activities,14/09/2015,3110013387,960,Henley Taxis Ltd
http://statistics.data.gov.uk/id/local-authority/38,Oxfordshire County Council,SEN TRANSPORT,4330,Transport to School Activities,14/09/2015,3110013398,"1,094.34",Henley Taxis Ltd
http://statistics.data.gov.uk/id/local-authority/38,Oxfordshire County Council,SEN TRANSPORT,4330,Transport to School Activities,14/09/2015,3110013390,"1,430.00",Henley Taxis Ltd
http://statistics.data.gov.uk/id/local-authority/38,Oxfordshire County Council,MAINSTREAM-SECONDARY,4330,Transport to School Activities,09/09/2015,3110012348,600,Heyfordian Travel Ltd
http://statistics.data.gov.uk/id/local-authority/38,Oxfordshire County Council,MAINSTREAM-SECONDARY,4330,Transport to School Activities,15/09/2015,3110013764,789.95,Heyfordian Travel Ltd
http://statistics.data.gov.uk/id/local-authority/38,Oxfordshire County Council,MAINSTREAM-PRIMARY,4330,Transport to School Activities,15/09/2015,3110013774,800,Heyfordian Travel Ltd
http://statistics.data.gov.uk/id/local-authority/38,Oxfordshire County Council,MAINSTREAM-PRIMARY,4330,Transport to School Activities,15/09/2015,3110013750,868.91,Heyfordian Travel Ltd
